Trans No,Service Area Categorisation,Service Division Categorisation,Responsbile Unit,Unit Code,Expense Type,Expense Sub Type,Expense Code,Narrative,Amount,Invoice Date,Cap/Rev,Supplier Name,
1,Central Services,SupS Chief Execs,Local Involvement Network,A01039,Third Party Payments          ,Private Contractors           ,EH10,Contract Payments                       ,2764.94,12/10/2016,R,VOICEABILITY                  ,
2,Central Services,SupS Chief Execs,Local Involvement Network,A01039,Third Party Payments          ,Private Contractors           ,EH10,Contract Payments                       ,10423.75,04/10/2016,R,MERTON VOLUNTARY SERV COUNCIL ,
3,Central Services,SupS Chief Execs,Local Involvement Network,A01039,Third Party Payments          ,Private Contractors           ,EH10,Contract Payments                       ,1428,30/09/2016,R,VOICEABILITY                  ,
4,Central Services,SupS Chief Execs,Local Involvement Network,A01039,Third Party Payments          ,Private Contractors           ,EH10,Contract Payments                       ,10423.75,01/09/2016,R,MERTON VOLUNTARY SERV COUNCIL ,
5,Central Services,SupS Chief Execs,Local Involvement Network,A01039,Third Party Payments          ,Private Contractors           ,EH10,Contract Payments                       ,10423.75,01/09/2016,R,MERTON VOLUNTARY SERV COUNCIL ,
6,Cultural Env Reg&Plan Services,Comm Safety (Crime Reduction),Crime and Strategy Team,A01100,Third Party Payments          ,Private Contractors           ,EH02,Miscellaneous Hired Services            ,5164,03/10/2016,R,IKNOW SOLUTIONS UK LTD        ,
7,Cultural Env Reg&Plan Services,Comm Safety (Crime Reduction),Crime and Strategy Team,A01100,Third Party Payments          ,Private Contractors           ,EH02,Miscellaneous Hired Services            ,28000,23/09/2016,R,VICTIM SUPPORT                ,
8,Cultural Env Reg&Plan Services,Comm Safety (Crime Reduction),Crime and Strategy Team,A01100,Third Party Payments          ,Private Contractors           ,EH02,Miscellaneous Hired Services            ,28000,14/07/2016,R,VICTIM SUPPORT                ,
9,Cultural Env Reg&Plan Services,Comm Safety (Crime Reduction),CCTV,A01200,Supplies & Services           ,Services                      ,DF57,Consulting Engineers Fees               ,2729.61,17/10/2016,R,GLOBAL MSC SECURITY LTD       ,
10,Cultural Env Reg&Plan Services,Comm Safety (Crime Reduction),CCTV,A01200,Supplies & Services           ,Equip Furniture/Materials     ,DA01,Equipment - R & M                       ,3554.12,12/10/2016,R,TYCO FIRE & INTEGR'TD SOL (UK ,
11,Cultural Env Reg&Plan Services,Comm Safety (Crime Reduction),CCTV,A01200,Premises Related Expenditure  ,Energy Costs                  ,BB02,Electricity                             ,1076.31,10/10/2016,R,SCOTTISH POWER                ,
12,Cultural Env Reg&Plan Services,Comm Safety (Crime Reduction),CCTV,A01200,Supplies & Services           ,Comms and Computing           ,DG15,Network Maintenance                     ,9359.56,23/09/2016,R,BT REDCARE                    ,
13,Cultural Env Reg&Plan Services,Comm Safety (Crime Reduction),CCTV,A01200,Supplies & Services           ,Comms and Computing           ,DG15,Network Maintenance                     ,5000,29/03/2016,R,EXPONENTIAL-E LTD             ,
14,Cultural Env Reg&Plan Services,Comm Safety (Crime Reduction),Anti-Social Behaviour,A01202,Supplies & Services           ,Comms and Computing           ,DG02,Software Licences                       ,3665,20/09/2016,R,VANTAGE TECHNOLOGIES LIMITED  ,
15,Central Services,SupS Chief Execs,NON-STATUTORY MARKETING & COMM,A02019,Supplies & Services           ,Prntng Stnry Gen Off Exp      ,DE11,Print Room Costs                        ,732.6,25/10/2016,R,REDACTED,
16,Central Services,SupS Chief Execs,NON-STATUTORY MARKETING & COMM,A02019,Supplies & Services           ,Comms and Computing           ,DG04,Postage - General                       ,1051.13,19/10/2016,R,ROYAL MAIL                    ,
17,Central Services,SupS Chief Execs,NON-STATUTORY MARKETING & COMM,A02019,Supplies & Services           ,Services                      ,DF02,Misc Advertising/Publicity              ,537.5,27/09/2016,R,JCDECAUX UNITED KINGDOM       ,
18,Central Services,SupS Chief Execs,NON-STATUTORY MARKETING & COMM,A02019,Supplies & Services           ,Services                      ,DF02,Misc Advertising/Publicity              ,537.5,27/09/2016,R,JCDECAUX UNITED KINGDOM       ,
19,Central Services,SupS Chief Execs,NON-STATUTORY MARKETING & COMM,A02019,Premises Related Expenditure  ,Rents                         ,BC03,Room/venue rental hire                  ,2400,15/09/2016,R,SOUTH THAMES COLLEGE          ,
20,Central Services,SupS Chief Execs,NON-STATUTORY MARKETING & COMM,A02019,Supplies & Services           ,Services                      ,DF35,Graphic Design                          ,5175,14/09/2016,R,THE BIG IDEA (MARK BUCKINGHAM),
21,Central Services,SupS Chief Execs,NON-STATUTORY MARKETING & COMM,A02019,Supplies & Services           ,Services                      ,DF02,Misc Advertising/Publicity              ,537.5,25/08/2016,R,JCDECAUX UNITED KINGDOM       ,
22,Central Services,0,Sales and Marketing                     ,A02034,Supplies & Services           ,Services                      ,DF02,Misc Advertising/Publicity              ,1045.44,08/09/2016,R,WANDSWORTH COUNCIL            ,
23,Central Services,0,Sales and Marketing                     ,A02034,Supplies & Services           ,Services                      ,DF02,Misc Advertising/Publicity              ,640,03/05/2016,R,FAMILIES SW                   ,
24,CS -Oth Operating Inc & Expend,T/A Corporate Services,Prting Jobs - Internal,A03040,Supplies & Services           ,Prntng Stnry Gen Off Exp      ,DE05,Micro-filming                           ,13055.4,03/10/2016,R,MISL LTD                      ,
25,CS -Oth Operating Inc & Expend,T/A Corporate Services,Prting Jobs - Internal,A03040,Supplies & Services           ,Prntng Stnry Gen Off Exp      ,DE05,Micro-filming                           ,1885.42,28/09/2016,R,MISL LTD                      ,
26,CS -Oth Operating Inc & Expend,T/A Corporate Services,Prting Jobs - Internal,A03040,Supplies & Services           ,Prntng Stnry Gen Off Exp      ,DE05,Micro-filming                           ,6043.68,23/09/2016,R,MISL LTD                      ,
27,CS -Oth Operating Inc & Expend,T/A Corporate Services,Prting Jobs - Internal,A03040,Supplies & Services           ,Prntng Stnry Gen Off Exp      ,DE05,Micro-filming                           ,1561.6,23/09/2016,R,MISL LTD                      ,
28,CS -Oth Operating Inc & Expend,T/A Corporate Services,Prting Jobs - Internal,A03040,Supplies & Services           ,Prntng Stnry Gen Off Exp      ,DE05,Micro-filming                           ,1532.75,23/09/2016,R,MISL LTD                      ,
29,CS -Oth Operating Inc & Expend,T/A Corporate Services,Prting Jobs - Internal,A03040,Supplies & Services           ,Prntng Stnry Gen Off Exp      ,DE05,Micro-filming                           ,1880,12/09/2016,R,MISL LTD                      ,
30,CS -Oth Operating Inc & Expend,T/A Corporate Services,Prtng Jobs - Ext Agncy,A03041,Supplies & Services           ,Prntng Stnry Gen Off Exp      ,DE01,External Printing                       ,1180,24/10/2016,R,CUSTOMISED GRAPHICS PRINT LTD ,
31,CS -Oth Operating Inc & Expend,T/A Corporate Services,Prtng Jobs - Ext Agncy,A03041,Supplies & Services           ,Prntng Stnry Gen Off Exp      ,DE01,External Printing                       ,994,15/10/2016,R,OFFICE DEPOT UK LTD           ,
32,CS -Oth Operating Inc & Expend,T/A Corporate Services,Prtng Jobs - Ext Agncy,A03041,Supplies & Services           ,Prntng Stnry Gen Off Exp      ,DE01,External Printing                       ,520,27/09/2016,R,CUSTOMISED GRAPHICS PRINT LTD ,
33,CS -Oth Operating Inc & Expend,T/A Corporate Services,PrintUnit-HighVolPhtcopying,A03042,Supplies & Services           ,Equip Furniture/Materials     ,DA06,Paper-Internal Print Jobs               ,8450,07/10/2016,R,RAINBOW OFFICE SUPPLIES LTD   ,
34,CS -Oth Operating Inc & Expend,T/A Corporate Services,Translation Services,A04060,Supplies & Services           ,Equip Furniture/Materials     ,DA09,Equip-Purchases                         ,810,30/09/2016,R,DMA SIGNS LTD                 ,
35,Central Services,Grants - Voluntary Groups,VOLUNTARY SECTOR COORDINATION,A04082,Supplies & Services           ,Grants and Subscriptions      ,DJ01,Grants                                  ,40000,01/10/2016,R,MERTON CIL                    ,
36,Central Services,Grants - Voluntary Groups,VOLUNTARY SECTOR COORDINATION,A04082,Supplies & Services           ,Grants and Subscriptions      ,DJ01,Grants                                  ,170949,01/10/2016,R,MERTON CITIZEN ADVICE BUREAU  ,
37,Central Services,Grants - Voluntary Groups,VOLUNTARY SECTOR COORDINATION,A04082,Supplies & Services           ,Grants and Subscriptions      ,DJ01,Grants                                  ,12500,01/10/2016,R,MERTON COMMUNITY TRANSPORT    ,
38,Central Services,Grants - Voluntary Groups,VOLUNTARY SECTOR COORDINATION,A04082,Supplies & Services           ,Grants and Subscriptions      ,DJ01,Grants                                  ,62742,01/10/2016,R,MERTON VOLUNTARY SERV COUNCIL ,
39,Central Services,Grants - Voluntary Groups,VOLUNTARY SECTOR COORDINATION,A04082,Supplies & Services           ,Grants and Subscriptions      ,DJ01,Grants                                  ,10000,01/10/2016,R,SOUTH LONDON REFUGEE ASSOC.   ,
40,Central Services,Grants - Voluntary Groups,VOLUNTARY SECTOR COORDINATION,A04082,Supplies & Services           ,Grants and Subscriptions      ,DJ01,Grants                                  ,26882.5,01/10/2016,R,SPRINGFIELD LAW CENTRE LTD    ,
41,Central Services,Grants - Voluntary Groups,VOLUNTARY SECTOR COORDINATION,A04082,Supplies & Services           ,Grants and Subscriptions      ,DJ01,Grants                                  ,28017,01/10/2016,R,SW LONDON LAW CENTRES         ,
42,Highways & Transport Services,On-street parking,Blue Badge Service,A04088,Supplies & Services           ,Comms and Computing           ,DG15,Network Maintenance                     ,889.2,04/10/2016,R,NORTHGATE PUBLIC SERV (UK) LTD,
43,Central Services,SupS Health & Safety,Learning and Development,B06146,Employees                     ,Indirect Employee Expenses    ,AB57,EXTERNAL TRAINING COSTS                 ,8400,18/10/2016,R,SKILLSARENA CORPORATE LTD     ,
44,Central Services,SupS Health & Safety,Learning and Development,B06146,Employees                     ,Indirect Employee Expenses    ,AB57,EXTERNAL TRAINING COSTS                 ,1500,18/10/2016,R,SKILLSARENA CORPORATE LTD     ,
45,Central Services,SupS Health & Safety,Learning and Development,B06146,Employees                     ,Indirect Employee Expenses    ,AB57,EXTERNAL TRAINING COSTS                 ,675,17/10/2016,R,PEARLCATCHERS LIMITED         ,
46,Central Services,SupS Health & Safety,Learning and Development,B06146,Employees                     ,Indirect Employee Expenses    ,AB57,EXTERNAL TRAINING COSTS                 ,675,17/10/2016,R,PEARLCATCHERS LIMITED         ,
47,Central Services,SupS Health & Safety,Learning and Development,B06146,Employees                     ,Indirect Employee Expenses    ,AB57,EXTERNAL TRAINING COSTS                 ,675,17/10/2016,R,PEARLCATCHERS LIMITED         ,
48,Central Services,SupS Health & Safety,Learning and Development,B06146,Employees                     ,Indirect Employee Expenses    ,AB57,EXTERNAL TRAINING COSTS                 ,830,13/10/2016,R,MAYBO LTD                     ,
49,Central Services,SupS Health & Safety,Learning and Development,B06146,Employees                     ,Indirect Employee Expenses    ,AB57,EXTERNAL TRAINING COSTS                 ,731,13/10/2016,R,PERSONAL STRENGTHS (UK) LTD   ,
50,Central Services,SupS Health & Safety,Learning and Development,B06146,Employees                     ,Indirect Employee Expenses    ,AB57,EXTERNAL TRAINING COSTS                 ,1500,13/10/2016,R,THE LEARNING ARCHITECT        ,
51,Central Services,SupS Health & Safety,Learning and Development,B06146,Employees                     ,Indirect Employee Expenses    ,AB57,EXTERNAL TRAINING COSTS                 ,1018.27,11/10/2016,R,RETIREMENT EDUCATION SERVICES ,
52,Central Services,SupS Health & Safety,Learning and Development,B06146,Employees                     ,Indirect Employee Expenses    ,AB57,EXTERNAL TRAINING COSTS                 ,550,10/10/2016,R,MSH TRAINING & CONSULTANCY LTD,
53,Central Services,SupS Health & Safety,Learning and Development,B06146,Employees                     ,Indirect Employee Expenses    ,AB57,EXTERNAL TRAINING COSTS                 ,1220,06/10/2016,R,BTFI LIMITED                  ,
54,Central Services,SupS Health & Safety,Learning and Development,B06146,Employees                     ,Indirect Employee Expenses    ,AB57,EXTERNAL TRAINING COSTS                 ,720.7,04/10/2016,R,CHANGE CONSULTANCY            ,
55,Central Services,SupS Health & Safety,Learning and Development,B06146,Employees                     ,Indirect Employee Expenses    ,AB57,EXTERNAL TRAINING COSTS                 ,1500,30/09/2016,R,THE LEARNING ARCHITECT        ,
56,Central Services,SupS Health & Safety,Learning and Development,B06146,Employees                     ,Indirect Employee Expenses    ,AB57,EXTERNAL TRAINING COSTS                 ,590,29/09/2016,R,CHANGE CONSULTANCY            ,
57,Central Services,SupS Health & Safety,Learning and Development,B06146,Employees                     ,Indirect Employee Expenses    ,AB57,EXTERNAL TRAINING COSTS                 ,675,29/09/2016,R,PEARLCATCHERS LIMITED         ,
58,Central Services,SupS Health & Safety,Learning and Development,B06146,Employees                     ,Indirect Employee Expenses    ,AB57,EXTERNAL TRAINING COSTS                 ,675,29/09/2016,R,PEARLCATCHERS LIMITED         ,
59,Central Services,SupS Health & Safety,Learning and Development,B06146,Employees                     ,Indirect Employee Expenses    ,AB57,EXTERNAL TRAINING COSTS                 ,562.5,29/09/2016,R,PEARLCATCHERS LIMITED         ,
60,Central Services,SupS Health & Safety,Learning and Development,B06146,Employees                     ,Indirect Employee Expenses    ,AB57,EXTERNAL TRAINING COSTS                 ,1500,29/09/2016,R,SALVEO SAFETY                 ,
61,Central Services,SupS Health & Safety,Learning and Development,B06146,Employees                     ,Indirect Employee Expenses    ,AB57,EXTERNAL TRAINING COSTS                 ,995,28/09/2016,R,THE INST. OF RISK MANAGEMENT  ,
62,Central Services,SupS Health & Safety,Learning and Development,B06146,Employees                     ,Indirect Employee Expenses    ,AB57,EXTERNAL TRAINING COSTS                 ,500,15/09/2016,R,OXFORD BROOKES UNIVERSITY     ,
63,Central Services,SupS Health & Safety,Learning and Development,B06146,Employees                     ,Indirect Employee Expenses    ,AB57,EXTERNAL TRAINING COSTS                 ,517.5,13/09/2016,R,ASSIST KNOWLEDGE DEVELOPMENT  ,
64,Central Services,SupS Health & Safety,Learning and Development,B06146,Employees                     ,Indirect Employee Expenses    ,AB57,EXTERNAL TRAINING COSTS                 ,7500,06/09/2016,R,JACKIE HARROP LTD             ,
65,,,Library Self Service                    ,CC011AB,Vehicles Plant Equipment and Machinery,0,D3,Equipment                               ,1044.04,10/10/2016,C,SICO EUROPE LIMITED           ,
66,,,Library Self Service                    ,CC011AB,New Construction Conversion and Renovation,0,B4,Contractor - Site works                 ,3650,27/08/2016,C,D N H PROPERTY MAINTENANCE    ,
67,,,Library Self Service                    ,CC011AB,New Construction Conversion and Renovation,0,B4,Contractor - Site works                 ,900,27/08/2016,C,D N H PROPERTY MAINTENANCE    ,
68,,,CCTV (match funding)                    ,CE002EA,Vehicles Plant Equipment and Machinery,0,D3,Equipment                               ,4800,30/09/2016,C,TYCO FIRE & INTEGR'TD SOL (UK ,
69,,,Disabled Facilities Grant DCLG          ,CE004RA,Other Capital Expenditure,0,E1,Grants                                  ,673.31,31/10/2016,C,CBS ADAPTATION                ,
70,,,Disabled Facilities Grant DCLG          ,CE004RA,Other Capital Expenditure,0,E1,Grants                                  ,5760,26/10/2016,C,VISTASCAPES                   ,
71,,,Disabled Facilities Grant DCLG          ,CE004RA,Other Capital Expenditure,0,E1,Grants                                  ,1837.91,11/10/2016,C,CBS ADAPTATION                ,
72,,,Disabled Facilities Grant DCLG          ,CE004RA,Other Capital Expenditure,0,E1,Grants                                  ,1739.15,11/10/2016,C,CBS ADAPTATION                ,
73,,,Disabled Facilities Grant DCLG          ,CE004RA,Other Capital Expenditure,0,E1,Grants                                  ,1353.53,11/10/2016,C,CBS ADAPTATION                ,
74,,,Disabled Facilities Grant DCLG          ,CE004RA,Other Capital Expenditure,0,E1,Grants                                  ,859,11/10/2016,C,CBS ADAPTATION                ,
75,,,Disabled Facilities Grant DCLG          ,CE004RA,Other Capital Expenditure,0,E1,Grants                                  ,821.28,11/10/2016,C,REDACTED,
76,,,Disabled Facilities Grant DCLG          ,CE004RA,Other Capital Expenditure,0,E1,Grants                                  ,945.2,11/10/2016,C,SUTTON STAYING PUT            ,
77,,,Disabled Facilities Grant DCLG          ,CE004RA,Other Capital Expenditure,0,E1,Grants                                  ,6844,11/10/2016,C,WEIR BUILDING SERVICES        ,
78,,,Disabled Facilities Grant DCLG          ,CE004RA,Other Capital Expenditure,0,E1,Grants                                  ,1945,07/10/2016,C,STAYING FIRST                 ,
79,,,Disabled Facilities Grant DCLG          ,CE004RA,Other Capital Expenditure,0,E1,Grants                                  ,7607,07/10/2016,C,THE LIFECARE CENTRE           ,
80,,,Disabled Facilities Grant DCLG          ,CE004RA,Other Capital Expenditure,0,E1,Grants                                  ,4140,07/10/2016,C,THE LIFECARE CENTRE           ,
81,,,Disabled Facilities Grant DCLG          ,CE004RA,Other Capital Expenditure,0,E1,Grants                                  ,551.53,06/10/2016,C,CBS ADAPTATION                ,
82,,,Disabled Facilities Grant DCLG          ,CE004RA,Other Capital Expenditure,0,E1,Grants                                  ,3146.5,06/10/2016,C,WEALDEN REHAB                 ,
83,,,Colliers Wd- Regeneration Fund          ,CE006FB,New Construction Conversion and Renovation,0,B3,Other Expenses D&S Structure            ,5910,29/09/2016,C,ROBUS CERAMICS                ,
84,,,Mitcham Major schemes                   ,CE006FD,New Construction Conversion and Renovation,0,B5,Suppliers - Site works                  ,23516.44,18/10/2016,C,DW WINDSOR LTD                ,
85,,,Mitcham Major schemes                   ,CE006FD,New Construction Conversion and Renovation,0,B5,Suppliers - Site works                  ,19424.76,18/10/2016,C,DW WINDSOR LTD                ,
86,,,Mitcham Major schemes                   ,CE006FD,New Construction Conversion and Renovation,0,B4,Contractor - Site works                 ,820,16/10/2016,C,CLOVER GARDEN MAINTENANCE     ,
87,,,Mitcham Major schemes                   ,CE006FD,New Construction Conversion and Renovation,0,B4,Contractor - Site works                 ,163269.91,12/10/2016,C,FM CONWAY LTD                 ,
88,,,Mitcham Major schemes                   ,CE006FD,New Construction Conversion and Renovation,0,B4,Contractor - Site works                 ,16730.09,12/10/2016,C,FM CONWAY LTD                 ,
89,,,Mitcham Major schemes                   ,CE006FD,New Construction Conversion and Renovation,0,B6,Other Costs - Site works                ,708,05/10/2016,C,UK POWER NETWORKS (OPERATIONS),
90,,,Mitcham Major schemes                   ,CE006FD,New Construction Conversion and Renovation,0,B6,Other Costs - Site works                ,3469,04/10/2016,C,BT PAYPHONES & EXPEDITE       ,
91,,,Mitcham Major schemes                   ,CE006FD,New Construction Conversion and Renovation,0,B6,Other Costs - Site works                ,1453.49,27/09/2016,C,LONDON BUS SERVICES LIMITED   ,
92,,,London Rd Cemetery Extension            ,CE010CA,New Construction Conversion and Renovation,0,B4,Contractor - Site works                 ,7470.34,23/09/2016,C,BLAKEDOWN LANDSCAPES (SE) LTD ,
93,,,London Rd Cemetery Extension            ,CE010CA,New Construction Conversion and Renovation,0,B4,Contractor - Site works                 ,1200,23/09/2016,C,BLAKEDOWN LANDSCAPES (SE) LTD ,
94,,,Parks Investment                        ,CE013SA,New Construction Conversion and Renovation,0,B4,Contractor - Site works                 ,5543,12/10/2016,C,D N H PROPERTY MAINTENANCE    ,
95,,,Parks Investment                        ,CE013SA,New Construction Conversion and Renovation,0,B4,Contractor - Site works                 ,4173.77,12/10/2016,C,D N H PROPERTY MAINTENANCE    ,
96,,,Parks Investment                        ,CE013SA,New Construction Conversion and Renovation,0,B4,Contractor - Site works                 ,3980,12/10/2016,C,PRO-TEQ SURFACING (UK) LTD    ,
97,,,Parks Investment                        ,CE013SA,New Construction Conversion and Renovation,0,B4,Contractor - Site works                 ,5760,12/10/2016,C,TAYLOR BUILDING COMPANY LTD   ,
98,,,Parks Investment                        ,CE013SA,New Construction Conversion and Renovation,0,B4,Contractor - Site works                 ,1000,12/10/2016,C,TUFCOAT LTD                   ,
99,,,Parks Investment                        ,CE013SA,New Construction Conversion and Renovation,0,B4,Contractor - Site works                 ,25719,11/10/2016,C,HAGS - SMP LIMITED            ,
100,,,Parks Investment                        ,CE013SA,New Construction Conversion and Renovation,0,B4,Contractor - Site works                 ,3850,07/10/2016,C,TAYLOR BUILDING COMPANY LTD   ,
101,,,Parks Investment                        ,CE013SA,New Construction Conversion and Renovation,0,B4,Contractor - Site works                 ,3700,07/10/2016,C,TAYLOR BUILDING COMPANY LTD   ,
102,,,Parks Investment                        ,CE013SA,New Construction Conversion and Renovation,0,B4,Contractor - Site works                 ,1299,22/09/2016,C,TUFCOAT LTD                   ,
103,,,Parks Investment                        ,CE013SA,New Construction Conversion and Renovation,0,B4,Contractor - Site works                 ,1290,22/09/2016,C,TUFCOAT LTD                   ,
104,,,Parks Investment                        ,CE013SA,New Construction Conversion and Renovation,0,B4,Contractor - Site works                 ,2350,14/09/2016,C,PROLUDIC LTD                  ,
105,,,Parks Investment                        ,CE013SA,New Construction Conversion and Renovation,0,B4,Contractor - Site works                 ,10160,13/09/2016,C,AAA SCAFFOLDING LONDON LTD    ,
106,,,Parks Investment                        ,CE013SA,New Construction Conversion and Renovation,0,B4,Contractor - Site works                 ,14350,09/09/2016,C,REDDINGTON GROUNDWORKS LTD    ,
107,,,Parks Investment                        ,CE013SA,New Construction Conversion and Renovation,0,B4,Contractor - Site works                 ,11000,17/08/2016,C,D N H PROPERTY MAINTENANCE    ,
108,,,Surface Water Drainage                  ,CE024FA,New Construction Conversion and Renovation,0,B4,Contractor - Site works                 ,5000,06/10/2016,C,FM CONWAY LTD                 ,
109,,,Borough Roads Maintenance               ,CE026FA,New Construction Conversion and Renovation,0,B4,Contractor - Site works                 ,26231.8,24/10/2016,C,FM CONWAY LTD                 ,
110,,,Borough Roads Maintenance               ,CE026FA,New Construction Conversion and Renovation,0,B4,Contractor - Site works                 ,34358.21,03/10/2016,C,FM CONWAY LTD                 ,
111,,,Borough Roads Maintenance               ,CE026FA,New Construction Conversion and Renovation,0,B4,Contractor - Site works                 ,27000,14/09/2016,C,FM CONWAY LTD                 ,
112,,,Borough Roads Maintenance               ,CE026FA,New Construction Conversion and Renovation,0,B4,Contractor - Site works                 ,20000,14/09/2016,C,FM CONWAY LTD                 ,
113,,,Borough Roads Maintenance               ,CE026FA,New Construction Conversion and Renovation,0,B4,Contractor - Site works                 ,4500,14/09/2016,C,FM CONWAY LTD                 ,
114,,,Borough Roads Maintenance               ,CE026FA,New Construction Conversion and Renovation,0,B4,Contractor - Site works                 ,797.15,14/09/2016,C,FM CONWAY LTD                 ,
115,,,TFL Projected Slippage                  ,CE026SA,New Construction Conversion and Renovation,0,B6,Other Costs - Site works                ,10005.96,27/09/2016,C,LONDON BUS SERVICES LIMITED   ,
116,,,Pay & Display Machine                   ,CE029AA,Vehicles Plant Equipment and Machinery,0,D3,Equipment                               ,3100,21/10/2016,C,WORLDPAY LTD                  ,
117,,,Pay & Display Machine                   ,CE029AA,Vehicles Plant Equipment and Machinery,0,D3,Equipment                               ,3100,21/10/2016,C,WORLDPAY LTD                  ,
118,,,Pay & Display Machine                   ,CE029AA,Vehicles Plant Equipment and Machinery,0,D3,Equipment                               ,1550,21/10/2016,C,WORLDPAY LTD                  ,
119,,,Repairs to Footways                     ,CE029FA,New Construction Conversion and Renovation,0,B4,Contractor - Site works                 ,40000,24/10/2016,C,FM CONWAY LTD                 ,
120,,,Repairs to Footways                     ,CE029FA,New Construction Conversion and Renovation,0,B4,Contractor - Site works                 ,20000,24/10/2016,C,FM CONWAY LTD                 ,
121,,,Repairs to Footways                     ,CE029FA,New Construction Conversion and Renovation,0,B4,Contractor - Site works                 ,50000,06/10/2016,C,FM CONWAY LTD                 ,
122,,,Repairs to Footways                     ,CE029FA,New Construction Conversion and Renovation,0,B4,Contractor - Site works                 ,20783.17,06/10/2016,C,FM CONWAY LTD                 ,
123,,,Repairs to Footways                     ,CE029FA,New Construction Conversion and Renovation,0,B4,Contractor - Site works                 ,2000,14/09/2016,C,FM CONWAY LTD                 ,
124,,,Leisure Centre Plant & Machine          ,CE038MA,New Construction Conversion and Renovation,0,B4,Contractor - Site works                 ,746.02,22/09/2016,C,BILFINGER EUROPA FACILITY     ,
125,,,Leisure Centre Plant & Machine          ,CE038MA,New Construction Conversion and Renovation,0,B4,Contractor - Site works                 ,3360,09/09/2016,C,ERGRO BUILDING SERVICES LTD   ,
126,,,Leisure Centre Plant & Machine          ,CE038MA,New Construction Conversion and Renovation,0,B5,Suppliers - Site works                  ,24950,19/08/2016,C,ASTON CORD ENERGY SERVICES    ,
127,,,Leisure Centre Plant & Machine          ,CE038MA,New Construction Conversion and Renovation,0,B5,Suppliers - Site works                  ,2929.88,19/08/2016,C,ASTON CORD ENERGY SERVICES    ,
128,,,Morden Leisure Centre                   ,CE045AA,New Construction Conversion and Renovation,0,B2,Site Surveys D&S Structure              ,3575,18/10/2016,C,OPUS TOWER SURVEY             ,
129,,,Morden Leisure Centre                   ,CE045AA,New Construction Conversion and Renovation,0,B1,Consultants Fees D&S Structure          ,3882,30/09/2016,C,GARDINER & THEOBALD LLP       ,
130,,,Morden Leisure Centre                   ,CE045AA,New Construction Conversion and Renovation,0,B1,Consultants Fees D&S Structure          ,3500,30/09/2016,C,SWEETT (UK) LIMITED           ,
131,,,Morden Leisure Centre                   ,CE045AA,Acquisition of Land and Existing Buildings,0,A2,External Fees                           ,2306,28/09/2016,C,BLAKE MORGAN                  ,
132,,,B672a-f Connecting Colliers Wd          ,CE049CA,New Construction Conversion and Renovation,0,B6,Other Costs - Site works                ,5511.58,19/10/2016,C,TRANSPORT FOR LONDON          ,
133,,,Town Centre Investment                  ,CE061FB,New Construction Conversion and Renovation,0,B4,Contractor - Site works                 ,236730.09,12/10/2016,C,FM CONWAY LTD                 ,
134,,,Town Centre Investment                  ,CE061FB,New Construction Conversion and Renovation,0,B4,Contractor - Site works                 ,7832.12,12/10/2016,C,FM CONWAY LTD                 ,
135,,,Town Centre Investment                  ,CE061FB,New Construction Conversion and Renovation,0,B5,Suppliers - Site works                  ,1033.17,21/09/2016,C,CEDAR NURSERY                 ,
136,,,Town Centre Investment                  ,CE061FB,New Construction Conversion and Renovation,0,B5,Suppliers - Site works                  ,970.62,09/09/2016,C,CEDAR NURSERY                 ,
137,,,Town Centre Investment                  ,CE061FB,New Construction Conversion and Renovation,0,B5,Suppliers - Site works                  ,1567.6,15/07/2016,C,CEDAR NURSERY                 ,
138,,,Town Centre Investment                  ,CE061FB,New Construction Conversion and Renovation,0,B5,Suppliers - Site works                  ,1336.42,12/07/2016,C,CEDAR NURSERY                 ,
139,,,Brighter Business,CE061FJ,Other Capital Expenditure,0,E1,Grants                                  ,1992.36,30/09/2016,C,CONCEPT BUILDING SERVICES LTD ,
140,,,Street Lighting Replacement Pr          ,CE068FA,New Construction Conversion and Renovation,0,B6,Other Costs - Site works                ,693,13/10/2016,C,UK POWER NETWORKS (OPERATIONS),
141,,,Street Lighting Replacement Pr          ,CE068FA,New Construction Conversion and Renovation,0,B4,Contractor - Site works                 ,4266,07/10/2016,C,TK CONSTRUCT & ELECTRIC INSTAL,
142,,,Street Lighting Replacement Pr          ,CE068FA,New Construction Conversion and Renovation,0,B4,Contractor - Site works                 ,1686.5,07/10/2016,C,TK CONSTRUCT & ELECTRIC INSTAL,
143,,,Street Lighting Replacement Pr          ,CE068FA,New Construction Conversion and Renovation,0,B6,Other Costs - Site works                ,748,07/10/2016,C,UK POWER NETWORKS (OPERATIONS),
144,,,Street Lighting Replacement Pr          ,CE068FA,New Construction Conversion and Renovation,0,B6,Other Costs - Site works                ,748,05/10/2016,C,UK POWER NETWORKS (OPERATIONS),
145,,,Street Lighting Replacement Pr          ,CE068FA,New Construction Conversion and Renovation,0,B6,Other Costs - Site works                ,693,05/10/2016,C,UK POWER NETWORKS (OPERATIONS),
146,,,Street Lighting Replacement Pr          ,CE068FA,New Construction Conversion and Renovation,0,B4,Contractor - Site works                 ,1058.66,30/09/2016,C,KIER INTEGRATED SERVICES LTD  ,
147,,,Street Lighting Replacement Pr          ,CE068FA,New Construction Conversion and Renovation,0,B4,Contractor - Site works                 ,15000,29/09/2016,C,KIER INTEGRATED SERVICES LTD  ,
148,,,Street Lighting Replacement Pr          ,CE068FA,New Construction Conversion and Renovation,0,B4,Contractor - Site works                 ,3708,29/09/2016,C,KIER INTEGRATED SERVICES LTD  ,
149,,,Street Lighting Replacement Pr          ,CE068FA,New Construction Conversion and Renovation,0,B6,Other Costs - Site works                ,748,22/09/2016,C,UK POWER NETWORKS (OPERATIONS),
150,,,Street Lighting Replacement Pr          ,CE068FA,New Construction Conversion and Renovation,0,B4,Contractor - Site works                 ,1810.18,16/09/2016,C,KIER INTEGRATED SERVICES LTD  ,
151,,,Street Lighting Replacement Pr          ,CE068FA,New Construction Conversion and Renovation,0,B4,Contractor - Site works                 ,3632.72,28/07/2016,C,KIER INTEGRATED SERVICES LTD  ,
152,,,Street Lighting Replacement Pr          ,CE068FA,New Construction Conversion and Renovation,0,B4,Contractor - Site works                 ,2319.91,28/07/2016,C,KIER INTEGRATED SERVICES LTD  ,
153,,,Replacement of Fleet Vehicles           ,CE082EA,Vehicles Plant Equipment and Machinery,0,D1,Vehicles                                ,58606.66,10/10/2016,C,COMMERCIAL SERV'S TRADING LTD ,
154,,,Alley Gating Scheme - Fly Tip           ,CE087FA,Other Capital Expenditure,0,E1,Grants                                  ,4383.18,21/10/2016,C,SAXON SECURITY LOCKS          ,
155,,,Alley Gating Scheme - Fly Tip           ,CE087FA,Other Capital Expenditure,0,E1,Grants                                  ,846.6,19/10/2016,C,GRILLESAFE SECURITY LTD       ,
156,,,Alley Gating Scheme - Fly Tip           ,CE087FA,Other Capital Expenditure,0,E1,Grants                                  ,762.75,18/10/2016,C,RHINO STEEL CONSTRUCTION LTD  ,
157,,,Printers and handhelds                  ,CE095EB,Vehicles Plant Equipment and Machinery,0,D3,Equipment                               ,744.57,18/10/2016,C,IMPERIAL CIVIL ENFORC.SOLUT.  ,
158,,,MSJCB Loan,CE103MD,New Construction Conversion and Renovation,0,B4,Contractor - Site works                 ,45000,12/10/2016,C,D N H PROPERTY MAINTENANCE    ,
159,,,Cycle access/parking                    ,CE104FG,New Construction Conversion and Renovation,0,B2,Site Surveys D&S Structure              ,1400,27/09/2016,C,TRAFFICWATCH (UK) LTD.        ,
160,,,Cycle access/parking                    ,CE104FG,New Construction Conversion and Renovation,0,B2,Site Surveys D&S Structure              ,575,27/09/2016,C,TRAFFICWATCH (UK) LTD.        ,
161,,,Mitcham Town Centre                     ,CE104FP,New Construction Conversion and Renovation,0,B4,Contractor - Site works                 ,1130,11/10/2016,C,SHUTTER MEDIA LIMITED         ,
162,,,Mitcham Town Centre                     ,CE104FP,New Construction Conversion and Renovation,0,B6,Other Costs - Site works                ,708,05/10/2016,C,UK POWER NETWORKS (OPERATIONS),
163,,,Mitcham Town Centre                     ,CE104FP,New Construction Conversion and Renovation,0,B6,Other Costs - Site works                ,708,05/10/2016,C,UK POWER NETWORKS (OPERATIONS),
164,,,Mitcham Town Centre                     ,CE104FP,New Construction Conversion and Renovation,0,B6,Other Costs - Site works                ,681,27/09/2016,C,LONDON BUS SERVICES LIMITED   ,
165,,,A298/A238 Strategic Corridor            ,CE104FQ,New Construction Conversion and Renovation,0,B4,Contractor - Site works                 ,9297.38,24/10/2016,C,FM CONWAY LTD                 ,
166,,,Casualty Reduction & Schools            ,CE104RA,New Construction Conversion and Renovation,0,B4,Contractor - Site works                 ,10000,24/10/2016,C,FM CONWAY LTD                 ,
167,,,Casualty Reduction & Schools            ,CE104RA,New Construction Conversion and Renovation,0,B2,Site Surveys D&S Structure              ,995,24/10/2016,C,TRAFFICWATCH (UK) LTD.        ,
168,,,Casualty Reduction & Schools            ,CE104RA,New Construction Conversion and Renovation,0,B4,Contractor - Site works                 ,2076.44,22/09/2016,C,SIMMONSIGNS LIMITED           ,
169,,,Casualty Reduction & Schools            ,CE104RA,New Construction Conversion and Renovation,0,B4,Contractor - Site works                 ,500,14/09/2016,C,FM CONWAY LTD                 ,
170,,,Cycle Improvements                      ,CE104RM,New Construction Conversion and Renovation,0,B4,Contractor - Site works                 ,500,14/09/2016,C,FM CONWAY LTD                 ,
171,,,Bus Stop Compliance                     ,CE105FR,New Construction Conversion and Renovation,0,B4,Contractor - Site works                 ,531.92,24/10/2016,C,FM CONWAY LTD                 ,
172,,,Bus Stop Compliance                     ,CE105FR,New Construction Conversion and Renovation,0,B4,Contractor - Site works                 ,7143.5,03/10/2016,C,FM CONWAY LTD                 ,
173,,,B626a-c Cottnhm Prk&Hollnd Gdn,CE110SG,New Construction Conversion and Renovation,0,B4,Contractor - Site works                 ,14650,14/09/2016,C,PROLUDIC LTD                  ,
174,,,Biking Borough Programme                ,CE128RA,Vehicles Plant Equipment and Machinery,0,D3,Equipment                               ,1000,15/09/2016,C,CYCLEHOOP LTD                 ,
175,,,Traffic Schemes                         ,CE142FA,Vehicles Plant Equipment and Machinery,0,D4,Specialist furniture                    ,9620,19/10/2016,C,PANDORA TECHNOLOGIES LIMITED  ,
176,,,Traffic Schemes                         ,CE142FA,Vehicles Plant Equipment and Machinery,0,D4,Specialist furniture                    ,10500,30/09/2016,C,ZEBRITE LTD                   ,
177,,,1 Coinage change P&D Machines,CE150AC,Vehicles Plant Equipment and Machinery,0,D3,Equipment                               ,12695.04,18/10/2016,C,IMPERIAL CIVIL ENFORC.SOLUT.  ,
178,,,Canons Parks for People                 ,CE157AA,New Construction Conversion and Renovation,0,B1,Consultants Fees D&S Structure          ,5885,10/10/2016,C,SOUTHERN GREEN LIMITED        ,
179,,,Canons Parks for People                 ,CE157AA,New Construction Conversion and Renovation,0,B4,Contractor - Site works                 ,1375,04/08/2016,C,TAYLOR BUILDING COMPANY LTD   ,
180,,,Invest to Save schemes-General          ,CF003SA,New Construction Conversion and Renovation,0,B4,Contractor - Site works                 ,5947.67,20/10/2016,C,JOJU SOLA                     ,
181,,,Invest to Save schemes-General          ,CF003SA,New Construction Conversion and Renovation,0,B4,Contractor - Site works                 ,11074.2,17/09/2016,C,D N H PROPERTY MAINTENANCE    ,
182,,,Invest to Save schemes-General          ,CF003SA,New Construction Conversion and Renovation,0,B4,Contractor - Site works                 ,755,17/09/2016,C,D N H PROPERTY MAINTENANCE    ,
183,,,Merton Abbey Temp Accomodation          ,CS022AC,New Construction Conversion and Renovation,0,B1,Consultants Fees D&S Structure          ,500,30/09/2016,C,EIGHT ASSOCIATES LTD          ,
184,,,Dundonald expansion                     ,CS031AC,New Construction Conversion and Renovation,0,B4,Contractor - Site works                 ,175000,24/10/2016,C,KIND & COMPANY (BUILDERS) LTD ,
185,,,Dundonald expansion                     ,CS031AC,New Construction Conversion and Renovation,0,B1,Consultants Fees D&S Structure          ,812.5,17/10/2016,C,AREA LANDSCAPE ARCHITECTS     ,
186,,,Dundonald expansion                     ,CS031AC,New Construction Conversion and Renovation,0,B1,Consultants Fees D&S Structure          ,1500,30/09/2016,C,SYNERGY CPC LLP               ,
187,,,Schs Cap Maint & Accessibility          ,CS080SD,New Construction Conversion and Renovation,0,B4,Contractor - Site works                 ,23819,08/09/2016,C,BILFINGER EUROPA FACILITY     ,
188,,,New School 6fe,CS085SF,New Construction Conversion and Renovation,0,B1,Consultants Fees D&S Structure          ,22722.86,30/09/2016,C,DHP (UK) LLP                  ,
189,,,New School 6fe,CS085SF,New Construction Conversion and Renovation,0,B1,Consultants Fees D&S Structure          ,4590.33,30/09/2016,C,SYNERGY CPC LLP               ,
190,,,Harris Merton 2fe                       ,CS085SG,New Construction Conversion and Renovation,0,B1,Consultants Fees D&S Structure          ,1292,30/09/2016,C,SUMMERS INMAN                 ,
191,,,Perseid                                 ,CS092AA,New Construction Conversion and Renovation,0,B1,Consultants Fees D&S Structure          ,5750,29/09/2016,C,DHP (UK) LLP                  ,
192,,,Primary Expansion Contingency,CS094AA,New Construction Conversion and Renovation,0,B1,Consultants Fees D&S Structure          ,7217,30/09/2016,C,HAVERSTOCK ASSOCIATES LLP     ,
193,,,Disaster recovery                       ,CT003EA,Vehicles Plant Equipment and Machinery,0,D3,Equipment                               ,2000,05/10/2016,C,ASSURED NETWORK SERVICES LTD  ,
194,,,IT Equipment                            ,CT006EA,Vehicles Plant Equipment and Machinery,0,D5,Software                                ,13805,19/10/2016,C,CIVICA UK LIMITED             ,
195,,,IT Equipment                            ,CT006EA,Vehicles Plant Equipment and Machinery,0,D5,Software                                ,2510,19/10/2016,C,CIVICA UK LIMITED             ,
196,,,IT Equipment                            ,CT006EA,Vehicles Plant Equipment and Machinery,0,D3,Equipment                               ,1250,19/10/2016,C,NET-CTRL                      ,
197,,,IT Equipment                            ,CT006EA,Vehicles Plant Equipment and Machinery,0,D3,Equipment                               ,15888.6,18/10/2016,C,XMA LIMITED                   ,
198,,,IT Equipment                            ,CT006EA,Vehicles Plant Equipment and Machinery,0,D5,Software                                ,4396,04/10/2016,C,NU NETWORK PRODUCTS LTD       ,
199,,,IT Equipment                            ,CT006EA,Vehicles Plant Equipment and Machinery,0,D5,Software                                ,3196,04/10/2016,C,NU NETWORK PRODUCTS LTD       ,
200,,,IT Equipment                            ,CT006EA,Vehicles Plant Equipment and Machinery,0,D5,Software                                ,512.87,04/10/2016,C,NU NETWORK PRODUCTS LTD       ,
201,,,IT Equipment                            ,CT006EA,Vehicles Plant Equipment and Machinery,0,D3,Equipment                               ,571.34,04/10/2016,C,XMA LIMITED                   ,
202,,,IT Equipment                            ,CT006EA,Vehicles Plant Equipment and Machinery,0,D3,Equipment                               ,2095,30/09/2016,C,NETWORK SOLUTIONS INC         ,
203,,,IT Equipment                            ,CT006EA,Vehicles Plant Equipment and Machinery,0,D3,Equipment                               ,1187.2,29/09/2016,C,XMA LIMITED                   ,
204,,,IT Equipment                            ,CT006EA,Vehicles Plant Equipment and Machinery,0,D3,Equipment                               ,678.4,29/09/2016,C,XMA LIMITED                   ,
205,,,IT Equipment                            ,CT006EA,Vehicles Plant Equipment and Machinery,0,D3,Equipment                               ,903.76,27/09/2016,C,SPECIALIST COMPUTER CENT. PLC ,
206,,,IT Equipment                            ,CT006EA,Vehicles Plant Equipment and Machinery,0,D3,Equipment                               ,55610.1,27/09/2016,C,XMA LIMITED                   ,
207,,,IT Equipment                            ,CT006EA,Vehicles Plant Equipment and Machinery,0,D3,Equipment                               ,27352.5,27/09/2016,C,XMA LIMITED                   ,
208,,,IT Equipment                            ,CT006EA,Vehicles Plant Equipment and Machinery,0,D3,Equipment                               ,1574.1,27/09/2016,C,XMA LIMITED                   ,
209,,,IT Equipment                            ,CT006EA,Vehicles Plant Equipment and Machinery,0,D5,Software                                ,8658.75,23/09/2016,C,ALTODIGITAL NETWORKS LTD      ,
210,,,IT Equipment                            ,CT006EA,Vehicles Plant Equipment and Machinery,0,D3,Equipment                               ,898,20/09/2016,C,EVERYTHING EVERYWHERE         ,
211,,,IT Equipment                            ,CT006EA,Vehicles Plant Equipment and Machinery,0,D3,Equipment                               ,1030.08,20/09/2016,C,SPECIALIST COMPUTER CENT. PLC ,
212,,,IT Equipment                            ,CT006EA,Vehicles Plant Equipment and Machinery,0,D3,Equipment                               ,12739.5,16/09/2016,C,SPECIALIST COMPUTER CENT. PLC ,
213,,,Stability Networks                      ,CT012ED,Other Capital Expenditure,0,E3,Miscellaneous Capital Expendit          ,1990,30/09/2016,C,CAPITA IT SERVICES LTD        ,
214,,,Stability Networks                      ,CT012ED,Other Capital Expenditure,0,E3,Miscellaneous Capital Expendit          ,995,30/09/2016,C,CAPITA IT SERVICES LTD        ,
215,,,Stability Networks                      ,CT012ED,Other Capital Expenditure,0,E3,Miscellaneous Capital Expendit          ,3100,09/09/2016,C,CIVICA UK LIMITED             ,
216,,,Improving Information Systems           ,CT020NB,Vehicles Plant Equipment and Machinery,0,D5,Software                                ,18905,30/09/2016,C,ADVANCED BUSINESS SOLUTIONS   ,
217,,,Improving Information Systems           ,CT020NB,Vehicles Plant Equipment and Machinery,0,D5,Software                                ,6964.5,30/09/2016,C,ADVANCED BUSINESS SOLUTIONS   ,
218,,,Improving Information Systems           ,CT020NB,Vehicles Plant Equipment and Machinery,0,D5,Software                                ,12935,31/08/2016,C,ADVANCED BUSINESS SOLUTIONS   ,
219,,,Improving Information Systems           ,CT020NB,Vehicles Plant Equipment and Machinery,0,D5,Software                                ,6000,29/04/2016,C,ADVANCED BUSINESS SOLUTIONS   ,
220,,,Improving Information Systems           ,CT020NB,Vehicles Plant Equipment and Machinery,0,D5,Software                                ,5000,23/03/2016,C,ADVANCED BUSINESS SOLUTIONS   ,
221,Central Services,Council tax collection,Local Taxation Services,E02100,Supplies & Services           ,Services                      ,DF11,Counsel's Fees                          ,2188.59,20/10/2016,R,HMCTS                         ,
222,Central Services,Council tax collection,Local Taxation Services,E02100,Supplies & Services           ,Comms and Computing           ,DG09,Computer Purchases - Misc               ,1895.12,19/10/2016,R,CIVICA UK LIMITED             ,
223,Central Services,Council tax collection,Local Taxation Services,E02100,Supplies & Services           ,Services                      ,DF11,Counsel's Fees                          ,845,13/10/2016,R,PHOENIX COMMERCIAL COLLECTIONS,
224,Central Services,Council tax collection,Local Taxation Services,E02100,Supplies & Services           ,Comms and Computing           ,DG09,Computer Purchases - Misc               ,2500,11/10/2016,R,CIVICA UK LIMITED             ,
225,Central Services,Council tax collection,Local Taxation Services,E02100,Supplies & Services           ,Services                      ,DF11,Counsel's Fees                          ,1891,01/10/2016,R,REDACTED,
226,Central Services,Council tax collection,Local Taxation Services,E02100,Supplies & Services           ,Services                      ,DF09,Miscellaneous Fees                      ,536.35,30/09/2016,R,EXPERIAN LTD                  ,
227,Central Services,Council tax collection,Local Taxation Services,E02100,Supplies & Services           ,Comms and Computing           ,DG09,Computer Purchases - Misc               ,2690.95,26/09/2016,R,CIVICA UK LIMITED             ,
228,Central Services,Council tax collection,Local Taxation Services,E02100,Supplies & Services           ,Comms and Computing           ,DG09,Computer Purchases - Misc               ,1608.81,26/09/2016,R,CIVICA UK LIMITED             ,
229,Central Services,Council tax collection,Local Taxation Bailiffs,E02101,Supplies & Services           ,Clothing Unfrms Laundry       ,DC02,Clothing & Uniforms                     ,1706.96,21/09/2016,R,HSBC INVOICE FINANCE (UK) LTD ,
230,Central Services,Council tax collection,Sutton Shared Bailiffs Service          ,E02102,Third Party Payments          ,Other Local Authorities       ,EB01,Payments to OLAs                        ,112331.73,18/10/2016,R,LONDON BOROUGH OF SUTTON      ,
231,Housing Services,HB Administration,Benefits Administration,E02120,Supplies & Services           ,Comms and Computing           ,DG09,Computer Purchases - Misc               ,1852.24,26/09/2016,R,CIVICA UK LIMITED             ,
232,Central Services,SupS Corporate Finance,TRANSACTIONS,E02139,#N/A,#N/A,DH15,CRB Payments                            ,26466,18/10/2016,R,LONDON BOROUGH OF SUTTON      ,
233,Central Services,SupS Corporate Finance,TRANSACTIONS,E02139,#N/A,#N/A,DH15,CRB Payments                            ,9301.3,18/10/2016,R,LONDON BOROUGH OF SUTTON      ,
234,Central Services,SupS Payroll,Payroll,E02140,Third Party Payments          ,Private Contractors           ,EH10,Contract Payments                       ,12220.93,26/09/2016,R,KINGSTON CORPORATION          ,
235,Central Services,SupS Payroll,Payroll,E02140,Third Party Payments          ,Private Contractors           ,EH10,Contract Payments                       ,6115.88,26/09/2016,R,KINGSTON CORPORATION          ,
236,Central Services,SupS Facilities,Post Room,E02220,Supplies & Services           ,Comms and Computing           ,DG04,Postage - General                       ,1045.69,17/10/2016,R,STREETWISE COURIERS           ,
237,Central Services,SupS Facilities,Post Room,E02220,Supplies & Services           ,Comms and Computing           ,DG04,Postage - General                       ,5000,14/10/2016,R,NEOPOST FINANCE LIMITED       ,
238,Central Services,SupS Facilities,Post Room,E02220,Supplies & Services           ,Comms and Computing           ,DG04,Postage - General                       ,737.92,10/10/2016,R,STREETWISE COURIERS           ,
239,Central Services,SupS Facilities,Post Room,E02220,Supplies & Services           ,Comms and Computing           ,DG04,Postage - General                       ,618.27,27/09/2016,R,NEOPOST FINANCE LIMITED       ,
240,Central Services,SupS Facilities,Post Room,E02220,Supplies & Services           ,Comms and Computing           ,DG04,Postage - General                       ,1278.5,27/09/2016,R,STREETWISE COURIERS           ,
241,Central Services,SupS Facilities,Security Services,E02221,Third Party Payments          ,Private Contractors           ,EH10,Contract Payments                       ,9416.9,01/10/2016,R,SIGHT & SOUND                 ,
242,Central Services,SupS Facilities,Civic Centre,E02222,Premises Related Expenditure  ,RepairsAlterations&MtceOfBldgs,BA29,BUILD MAINT MGT FEES                    ,1101.2,31/08/2016,R,EDE'S (U.K.) LTD              ,
243,Central Services,SupS Facilities,Facilities,E02231,Premises Related Expenditure  ,RepairsAlterations&MtceOfBldgs,BA02,ENERGY CONSERVATION                     ,523.8,14/10/2016,R,ENERGY ASSETS LIMITED         ,
244,Central Services,SupS Facilities,Facilities,E02231,Premises Related Expenditure  ,RepairsAlterations&MtceOfBldgs,BA02,ENERGY CONSERVATION                     ,5098.55,04/10/2016,R,STARK SOFTWARE INTERNATIONAL  ,
245,Central Services,SupS Facilities,Facilities,E02231,Premises Related Expenditure  ,RepairsAlterations&MtceOfBldgs,BA02,ENERGY CONSERVATION                     ,8120,30/09/2016,R,NDA CONSULTING                ,
246,Central Services,SupS Facilities,Corporate Services Buildings,E02240,Premises Related Expenditure  ,RepairsAlterations&MtceOfBldgs,BA03,DDM - Mechanical                        ,3787.99,12/10/2016,R,BILFINGER EUROPA FACILITY     ,
247,Central Services,SupS Facilities,Corporate Services Buildings,E02240,Premises Related Expenditure  ,RepairsAlterations&MtceOfBldgs,BA29,Build Maint Mgt Fees                    ,2567.25,12/10/2016,R,BILFINGER EUROPA FACILITY     ,
248,Central Services,SupS Facilities,Corporate Services Buildings,E02240,Premises Related Expenditure  ,RepairsAlterations&MtceOfBldgs,BA03,DDM - Mechanical                        ,554.49,12/10/2016,R,BILFINGER EUROPA FACILITY     ,
249,Central Services,SupS Facilities,Corporate Services Buildings,E02240,Premises Related Expenditure  ,RepairsAlterations&MtceOfBldgs,BA01,DDM - General Building                  ,1270,10/10/2016,R,KH FLOORING LTD               ,
250,Central Services,SupS Facilities,Corporate Services Buildings,E02240,Premises Related Expenditure  ,RepairsAlterations&MtceOfBldgs,BA01,DDM - General Building                  ,729.84,27/09/2016,R,SALTASH ENTERPRISES LTD       ,
251,Central Services,SupS Facilities,Corporate Services Buildings,E02240,Premises Related Expenditure  ,RepairsAlterations&MtceOfBldgs,BA03,DDM - Mechanical                        ,2080.6,06/09/2016,R,BILFINGER EUROPA FACILITY     ,
252,Childrens & Education Services,Strategic Management,PDC,E02254,Supplies & Services           ,Comms and Computing           ,DG50,Other IT Expenditure                    ,795,30/09/2016,R,NETWORK SOLUTIONS INC         ,
253,Childrens & Education Services,Strategic Management,CSF Buildings,E02256,Premises Related Expenditure  ,RepairsAlterations&MtceOfBldgs,BA01,DDM - General Building                  ,561.73,27/09/2016,R,SALTASH ENTERPRISES LTD       ,
254,Adult Social Care,OP 65 & Over Day Care,Pollards Hill Day Centre,E02270,Premises Related Expenditure  ,Cleaning and Domestic Supplies,BH01,Cleaning Materials                      ,504,27/10/2016,R,GREENHAM                      ,
255,Adult Social Care,OP 65 & Over Day Care,Pollards Hill Day Centre,E02270,Premises Related Expenditure  ,Cleaning and Domestic Supplies,BH01,Cleaning Materials                      ,504,05/10/2016,R,GREENHAM                      ,
256,Adult Social Care,OP 65 & Over Day Care,Pollards Hill Day Centre,E02270,Premises Related Expenditure  ,Cleaning and Domestic Supplies,BH03,Cleaning Services                       ,7302.68,01/10/2016,R,BIRKIN CLEANING SERVICES LTD  ,
257,Adult Social Care,OP 65 & Over Day Care,Pollards Hill Day Centre,E02270,Premises Related Expenditure  ,Cleaning and Domestic Supplies,BH03,Cleaning Services                       ,5216.05,01/10/2016,R,BIRKIN CLEANING SERVICES LTD  ,
258,Adult Social Care,OP 65 & Over Day Care,Pollards Hill Day Centre,E02270,Premises Related Expenditure  ,Cleaning and Domestic Supplies,BH03,Cleaning Services                       ,1764.19,01/10/2016,R,BIRKIN CLEANING SERVICES LTD  ,
259,Adult Social Care,OP 65 & Over Day Care,Pollards Hill Day Centre,E02270,Premises Related Expenditure  ,Cleaning and Domestic Supplies,BH03,Cleaning Services                       ,1623.45,01/10/2016,R,BIRKIN CLEANING SERVICES LTD  ,
260,Adult Social Care,OP 65 & Over Day Care,Pollards Hill Day Centre,E02270,Premises Related Expenditure  ,Cleaning and Domestic Supplies,BH03,Cleaning Services                       ,1591.8,01/10/2016,R,BIRKIN CLEANING SERVICES LTD  ,
261,Adult Social Care,OP 65 & Over Day Care,Pollards Hill Day Centre,E02270,Premises Related Expenditure  ,Cleaning and Domestic Supplies,BH03,Cleaning Services                       ,1497.38,01/10/2016,R,BIRKIN CLEANING SERVICES LTD  ,
262,Adult Social Care,OP 65 & Over Day Care,Pollards Hill Day Centre,E02270,Premises Related Expenditure  ,Cleaning and Domestic Supplies,BH03,Cleaning Services                       ,1304.95,01/10/2016,R,BIRKIN CLEANING SERVICES LTD  ,
263,Adult Social Care,OP 65 & Over Day Care,Pollards Hill Day Centre,E02270,Premises Related Expenditure  ,Cleaning and Domestic Supplies,BH03,Cleaning Services                       ,892.7,01/10/2016,R,BIRKIN CLEANING SERVICES LTD  ,
264,Adult Social Care,OP 65 & Over Day Care,Pollards Hill Day Centre,E02270,Premises Related Expenditure  ,Cleaning and Domestic Supplies,BH03,Cleaning Services                       ,885.31,01/10/2016,R,BIRKIN CLEANING SERVICES LTD  ,
265,Adult Social Care,OP 65 & Over Day Care,Pollards Hill Day Centre,E02270,Premises Related Expenditure  ,Cleaning and Domestic Supplies,BH03,Cleaning Services                       ,865.12,01/10/2016,R,BIRKIN CLEANING SERVICES LTD  ,
266,Central Services,SupS Facilities,CORPORATE ELECTRICITY RECHARGE,E02275,Premises Related Expenditure  ,Energy Costs                  ,BB02,Electricity                             ,21843.43,20/10/2016,R,SCOTTISH POWER                ,
267,Central Services,SupS Facilities,CORPORATE ELECTRICITY RECHARGE,E02275,Premises Related Expenditure  ,Energy Costs                  ,BB02,Electricity                             ,2521.62,20/10/2016,R,SCOTTISH POWER                ,
268,Cultural Env Reg&Plan Services,Parks & Open Spaces,E & R Buildings,E02344,Premises Related Expenditure  ,RepairsAlterations&MtceOfBldgs,BA03,DDM - Mechanical                        ,542.52,12/10/2016,R,BILFINGER EUROPA FACILITY     ,
269,Cultural Env Reg&Plan Services,Parks & Open Spaces,E & R Buildings,E02344,Premises Related Expenditure  ,RepairsAlterations&MtceOfBldgs,BA05,DDM - Electrical                        ,626.32,04/10/2016,R,BILFINGER EUROPA FACILITY     ,
270,Adult Social Care,PS u65 Day Care,C & H Buildings,E02345,Premises Related Expenditure  ,RepairsAlterations&MtceOfBldgs,BA03,DDM - Mechanical                        ,515.32,12/10/2016,R,BILFINGER EUROPA FACILITY     ,
271,Cultural Env Reg&Plan Services,Parks & Open Spaces,Leisure Buildings,E02350,Premises Related Expenditure  ,RepairsAlterations&MtceOfBldgs,BA03,DDM - Mechanical                        ,557.76,12/10/2016,R,BILFINGER EUROPA FACILITY     ,
272,Central Services,SupS DOF,AD RESOURCES,E04061,Supplies & Services           ,Services                      ,DF03,CONSULTANTS                             ,8050,07/10/2016,R,PUBLIC SECTOR CONSULTANTS     ,
273,Central Services,Officer support time,Corporately Funded Items,E04065,Supplies & Services           ,Services                      ,DF11,Counsel's Fees                          ,3750,11/08/2016,R,REDACTED,
274,Central Services,Officer support time,Corporately Funded Items,E04065,Supplies & Services           ,Services                      ,DF11,Counsel's Fees                          ,518,28/07/2016,R,REDACTED,
275,Central Services,SupS Corporate Finance,Corporate Accountancy,E06209,Supplies & Services           ,Services                      ,DF58,Audit Fee                               ,2980,25/10/2016,R,ERNST & YOUNG LLP             ,
276,Central Services,SupS Strategic Finance,Business Planning,E06221,Supplies & Services           ,Comms and Computing           ,DG07,Computer Software                       ,1800,24/10/2016,R,CIVICA UK LIMITED             ,
277,Central Services,SupS Strategic Finance,Business Planning,E06221,Supplies & Services           ,Grants and Subscriptions      ,DJ04,Subscriptions                           ,1560,11/08/2016,R,RICS BUSINESS SERVICE LTD     ,
278,Central Services,SupS Strategic Finance,Treasury & Insurance,E06222,Employees                     ,Direct Employee Expenses      ,AA17,Agency Staff & Casual Paymts            ,2260,19/10/2016,R,HAYS SPECIALIST RECRUITM'T LTD,
279,Central Services,SupS Strategic Finance,Treasury & Insurance,E06222,Employees                     ,Direct Employee Expenses      ,AA17,Agency Staff & Casual Paymts            ,2260,14/10/2016,R,HAYS SPECIALIST RECRUITM'T LTD,
280,Central Services,SupS Strategic Finance,Treasury & Insurance,E06222,Employees                     ,Direct Employee Expenses      ,AA17,Agency Staff & Casual Paymts            ,2260,07/10/2016,R,HAYS SPECIALIST RECRUITM'T LTD,
281,Central Services,SupS Strategic Finance,Treasury & Insurance,E06222,Employees                     ,Direct Employee Expenses      ,AA17,Agency Staff & Casual Paymts            ,2260,28/09/2016,R,HAYS SPECIALIST RECRUITM'T LTD,
282,Central Services,SupS Strategic Finance,Treasury & Insurance,E06222,Employees                     ,Direct Employee Expenses      ,AA17,Agency Staff & Casual Paymts            ,2260,21/09/2016,R,HAYS SPECIALIST RECRUITM'T LTD,
283,Central Services,GENERATED ACCOUNT,Parking Cash Collect'n Contrct,E06225,Third Party Payments          ,Private Contractors           ,EH02,Miscellaneous Hired Services            ,10923.9,30/09/2016,R,JADE SECURITY SERVICE LTD     ,
284,Central Services,GENERATED ACCOUNT,Parking Cash Collect'n Contrct,E06225,Third Party Payments          ,Private Contractors           ,EH02,Miscellaneous Hired Services            ,10743.29,30/06/2016,R,JADE SECURITY SERVICE LTD     ,
285,Central Services,GENERATED ACCOUNT,Establishments' Cash Collect'n,E06226,Third Party Payments          ,Private Contractors           ,EH02,Miscellaneous Hired Services            ,516.15,30/09/2016,R,JADE SECURITY SERVICE LTD     ,
286,Central Services,Registration of electors,Electoral Registration,E10285,Supplies & Services           ,Comms and Computing           ,DG04,Postage - General                       ,2470.5,17/10/2016,R,ROYAL MAIL GROUP LTD          ,
287,Central Services,Registration of electors,Electoral Registration,E10285,Supplies & Services           ,Comms and Computing           ,DG04,Postage - General                       ,9754.71,03/10/2016,R,FINANCIAL DATA MANAGEMENT PLC ,
288,Central Services,Registration of electors,Electoral Registration,E10285,Supplies & Services           ,Prntng Stnry Gen Off Exp      ,DE01,External Printing                       ,2519.19,03/10/2016,R,FINANCIAL DATA MANAGEMENT PLC ,
289,Central Services,Registration of electors,Electoral Registration,E10285,Supplies & Services           ,Comms and Computing           ,DG04,Postage - General                       ,785.4,03/10/2016,R,FINANCIAL DATA MANAGEMENT PLC ,
290,Central Services,Registration of electors,Electoral Registration,E10285,Supplies & Services           ,Comms and Computing           ,DG04,Postage - General                       ,1109.69,03/10/2016,R,ROYAL MAIL GROUP LTD          ,
291,Central Services,Registration of electors,Electoral Registration,E10285,Supplies & Services           ,Prntng Stnry Gen Off Exp      ,DE01,External Printing                       ,18394.69,02/10/2016,R,FINANCIAL DATA MANAGEMENT PLC ,
292,Central Services,Registration of electors,Electoral Registration,E10285,Supplies & Services           ,Comms and Computing           ,DG04,Postage - General                       ,1196.16,26/09/2016,R,ROYAL MAIL GROUP LTD          ,
293,Central Services,Registration of electors,Electoral Registration,E10285,Supplies & Services           ,Comms and Computing           ,DG04,Postage - General                       ,2927.49,19/09/2016,R,ROYAL MAIL GROUP LTD          ,
294,Central Services,SupS Legal,Shared Legal Service,E10288,Employees                     ,Indirect Employee Expenses    ,AB02,Recruitment Adverts                     ,600,19/10/2016,R,H B EDITORIAL SERV (LOCAL GOV ,
295,Central Services,SupS Legal,Shared Legal Service,E10288,Supplies & Services           ,Grants and Subscriptions      ,DJ04,Subscriptions                           ,12638,13/10/2016,R,THE LAW SOCIETY               ,
296,Central Services,SupS Legal,Shared Legal Service,E10288,Supplies & Services           ,Equip Furniture/Materials     ,DA80,Books                                   ,20149,11/10/2016,R,THOMSON REUTERS PROF. UK LTD  ,
297,Central Services,SupS Legal,Shared Legal Service,E10288,Supplies & Services           ,Prntng Stnry Gen Off Exp      ,DE30,General Office Expense                  ,766.93,30/09/2016,R,RESTORE PLC                   ,
298,Central Services,SupS Legal,Shared Legal Service,E10288,Supplies & Services           ,Comms and Computing           ,DG50,Other IT Expenditure                    ,5750,30/09/2016,R,ZYLPHA LIMITED                ,
299,Central Services,SupS Legal,Shared Legal Service,E10288,Supplies & Services           ,Comms and Computing           ,DG04,Postage - General                       ,530,28/09/2016,R,NEOPOST FINANCE LIMITED       ,
300,Central Services,SupS Legal,Shared Legal Service,E10288,Employees                     ,Indirect Employee Expenses    ,AB57,External Training Costs                 ,878.34,05/09/2016,R,GOLD EDGE TRAINING LTD        ,
301,Central Services,SupS Legal,Shared Legal Service,E10288,Employees                     ,Indirect Employee Expenses    ,AB57,External Training Costs                 ,549,05/09/2016,R,GOLD EDGE TRAINING LTD        ,
302,Central Services,SupS Legal,Shared Legal Service,E10288,Supplies & Services           ,Services                      ,DF95,Services from Provider                  ,15246.5,26/08/2016,R,LEWIS SILKIN LLP              ,
303,Central Services,SupS Legal,Shared Legal Service,E10288,Supplies & Services           ,Services                      ,DF95,Services from Provider                  ,3459,06/05/2016,R,LEWIS SILKIN LLP              ,
304,Central Services,SupS Legal,Richmond Legal,E10289,Supplies & Services           ,Services                      ,DF11,Counsel's Fees                          ,1000,17/10/2016,R,REDACTED,
305,Central Services,SupS Legal,Richmond Legal,E10289,Supplies & Services           ,Services                      ,DF11,Counsel's Fees                          ,900,03/10/2016,R,REDACTED,
306,Central Services,SupS Legal,Richmond Legal,E10289,Supplies & Services           ,Services                      ,DF11,Counsel's Fees                          ,900,30/09/2016,R,REDACTED,
307,Central Services,SupS Legal,Richmond Legal,E10289,Supplies & Services           ,Services                      ,DF95,Services from Provider                  ,1183,30/09/2016,R,SHARPE PRITCHARD SOLICITORS   ,
308,Central Services,SupS Legal,Richmond Legal,E10289,Supplies & Services           ,Services                      ,DF95,Services from Provider                  ,2221,31/08/2016,R,SHARPE PRITCHARD SOLICITORS   ,
309,Central Services,SupS Legal,Richmond Legal,E10289,Supplies & Services           ,Services                      ,DF95,Services from Provider                  ,4874,31/08/2016,R,WARD HADAWAY                  ,
310,Central Services,SupS Legal,Richmond Legal,E10289,Supplies & Services           ,Services                      ,DF95,Services from Provider                  ,3397.5,31/07/2016,R,SHARPE PRITCHARD SOLICITORS   ,
311,Central Services,SupS Legal,Richmond Legal,E10289,Supplies & Services           ,Services                      ,DF95,Services from Provider                  ,570,29/07/2016,R,GOODWIN MALATESTA LEGAL COSTS ,
312,Central Services,SupS Legal,Richmond Legal,E10289,Supplies & Services           ,Services                      ,DF95,Services from Provider                  ,8729,28/07/2016,R,WARD HADAWAY                  ,
313,Central Services,SupS Legal,LBR INCOME,E10290,Third Party Payments          ,Other Local Authorities       ,EB01,Payments to OLAs                        ,9875,10/10/2016,R,L.B OF RICHMOND UPON THAMES   ,
314,Central Services,SupS Legal,K&S Shared Legal,E10291,Third Party Payments          ,Other Local Authorities       ,EB01,Payments to OLAs                        ,20050,11/10/2016,R,KINGSTON CORPORATION          ,
315,Central Services,SupS Legal,K&S Shared Legal,E10291,Third Party Payments          ,Other Local Authorities       ,EB01,Payments to OLAs                        ,14016.8,10/10/2016,R,LONDON BOROUGH OF SUTTON      ,
316,Central Services,SupS Legal,K&S Shared Legal,E10291,Third Party Payments          ,Other Local Authorities       ,EB01,Payments to OLAs                        ,3182,10/10/2016,R,SUTTON HOUSING PARTNERSHIP LTD,
317,Central Services,SupS Legal,Kingston Legal                          ,E10292,Supplies & Services           ,Services                      ,DF11,Counsel's Fees                          ,3000,10/10/2016,R,REDACTED,
318,Central Services,SupS Legal,Kingston Legal                          ,E10292,Supplies & Services           ,Services                      ,DF11,Counsel's Fees                          ,550,14/09/2016,R,REDACTED,
319,Central Services,SupS Legal,Kingston Legal                          ,E10292,Supplies & Services           ,Services                      ,DF95,Services from Provider                  ,600,31/08/2016,R,G L HEARN LTD                 ,
320,Central Services,SupS Legal,Kingston Legal                          ,E10292,Supplies & Services           ,Services                      ,DF95,Services from Provider                  ,1050,29/07/2016,R,G L HEARN LTD                 ,
321,Central Services,SupS Legal,Sutton Legal                            ,E10293,Supplies & Services           ,Services                      ,DF14,Doctors and Other Fees                  ,519.74,18/10/2016,R,CARTER BROWN THE EXPERT SERV  ,
322,Central Services,SupS Legal,Sutton Legal                            ,E10293,Supplies & Services           ,Services                      ,DF11,Counsel's Fees                          ,4995,12/10/2016,R,REDACTED,
323,Central Services,SupS Legal,Sutton Legal                            ,E10293,Supplies & Services           ,Services                      ,DF14,Doctors and Other Fees                  ,715.4,12/10/2016,R,REDACTED,
324,Central Services,SupS Legal,Sutton Legal                            ,E10293,Supplies & Services           ,Services                      ,DF11,Counsel's Fees                          ,2500,11/10/2016,R,REDACTED,
325,Central Services,SupS Legal,Sutton Legal                            ,E10293,Supplies & Services           ,Services                      ,DF11,Counsel's Fees                          ,1250,11/10/2016,R,REDACTED,
326,Central Services,SupS Legal,Sutton Legal                            ,E10293,Supplies & Services           ,Services                      ,DF14,Doctors and Other Fees                  ,2103.75,10/10/2016,R,MARK HATTER ASSOCIATES        ,
327,Central Services,SupS Legal,Sutton Legal                            ,E10293,Supplies & Services           ,Services                      ,DF11,Counsel's Fees                          ,510,03/10/2016,R,REDACTED,
328,Central Services,SupS Legal,Sutton Legal                            ,E10293,Supplies & Services           ,Services                      ,DF14,Doctors and Other Fees                  ,506,30/09/2016,R,REDACTED,
329,Central Services,SupS Legal,Sutton Legal                            ,E10293,Supplies & Services           ,Services                      ,DF14,Doctors and Other Fees                  ,905.98,29/09/2016,R,CARTER BROWN THE EXPERT SERV  ,
330,Central Services,SupS Legal,Sutton Legal                            ,E10293,Supplies & Services           ,Services                      ,DF11,Counsel's Fees                          ,590,28/09/2016,R,REDACTED,
331,Central Services,SupS Legal,Sutton Legal                            ,E10293,Supplies & Services           ,Services                      ,DF14,Doctors and Other Fees                  ,1290.26,27/09/2016,R,LEXTOX                        ,
332,Central Services,SupS Legal,Sutton Legal                            ,E10293,Supplies & Services           ,Services                      ,DF11,Counsel's Fees                          ,2800,21/09/2016,R,REDACTED,
333,Central Services,SupS Legal,Sutton Legal                            ,E10293,Supplies & Services           ,Services                      ,DF14,Doctors and Other Fees                  ,1889,06/09/2016,R,CARTER BROWN THE EXPERT SERV  ,
334,Central Services,SupS Legal,Sutton Legal                            ,E10293,Supplies & Services           ,Services                      ,DF14,Doctors and Other Fees                  ,1925.4,31/08/2016,R,SISK SOCIAL WORK CONSULTING   ,
335,Central Services,SupS Legal,Sutton Legal                            ,E10293,Supplies & Services           ,Services                      ,DF11,Counsel's Fees                          ,610,26/08/2016,R,REDACTED,
336,Central Services,SupS Legal,Sutton Legal                            ,E10293,Supplies & Services           ,Services                      ,DF14,Doctors and Other Fees                  ,1620,22/07/2016,R,REDACTED,
337,Central Services,SupS Legal,Sutton Legal                            ,E10293,Supplies & Services           ,Services                      ,DF14,Doctors and Other Fees                  ,4002.44,14/07/2016,R,CORAL COMMUNITY ASSESSMENTS   ,
338,Central Services,SupS Legal,Sutton Legal                            ,E10293,Supplies & Services           ,Services                      ,DF14,Doctors and Other Fees                  ,3800,12/07/2016,R,CORAL COMMUNITY ASSESSMENTS   ,
339,Central Services,SupS Legal,Sutton Legal                            ,E10293,Supplies & Services           ,Services                      ,DF14,Doctors and Other Fees                  ,1788.8,12/07/2016,R,EXPERT IN MIND                ,
340,Central Services,SupS Legal,Sutton Legal                            ,E10293,Supplies & Services           ,Services                      ,DF14,Doctors and Other Fees                  ,3200,20/06/2016,R,CORAL COMMUNITY ASSESSMENTS   ,
341,Central Services,SupS Legal,Sutton Legal                            ,E10293,Supplies & Services           ,Services                      ,DF14,Doctors and Other Fees                  ,1112.9,31/05/2016,R,CAMBRIDGE LONDON GROUP LIMITED,
342,Central Services,SupS Legal,Sutton Legal                            ,E10293,Supplies & Services           ,Services                      ,DF14,Doctors and Other Fees                  ,1268,26/02/2016,R,LEXTOX                        ,
343,Central Services,SupS Legal,Sutton Legal                            ,E10293,Supplies & Services           ,Services                      ,DF14,Doctors and Other Fees                  ,919.2,30/10/2015,R,REDACTED,
344,Central Services,SupS Legal,Sutton Legal                            ,E10293,Supplies & Services           ,Services                      ,DF11,Counsel's Fees                          ,650,30/10/2015,R,REDACTED,
345,Central Services,SupS Legal,Sutton Legal                            ,E10293,Supplies & Services           ,Services                      ,DF95,Services from Provider                  ,536.32,23/01/2014,R,ATKINS HOPE SOLICITORS        ,
346,Central Services,SupS Legal,Achieving for Children (AFC),E10295,Supplies & Services           ,Services                      ,DF11,Counsel's Fees                          ,925,24/10/2016,R,REDACTED,
347,Central Services,SupS Legal,Achieving for Children (AFC),E10295,Supplies & Services           ,Services                      ,DF11,Counsel's Fees                          ,725,18/10/2016,R,REDACTED,
348,Central Services,SupS Legal,Achieving for Children (AFC),E10295,Supplies & Services           ,Services                      ,DF11,Counsel's Fees                          ,1750,05/10/2016,R,REDACTED,
349,Central Services,SupS Legal,Achieving for Children (AFC),E10295,Supplies & Services           ,Services                      ,DF11,Counsel's Fees                          ,600,05/10/2016,R,REDACTED,
350,Central Services,SupS Legal,Achieving for Children (AFC),E10295,Supplies & Services           ,Services                      ,DF11,Counsel's Fees                          ,1195,03/10/2016,R,REDACTED,
351,Central Services,SupS Legal,Achieving for Children (AFC),E10295,Supplies & Services           ,Services                      ,DF14,Doctors and Other Fees                  ,550.85,20/09/2016,R,REDACTED,
352,Central Services,SupS Legal,Achieving for Children (AFC),E10295,Supplies & Services           ,Services                      ,DF11,Counsel's Fees                          ,675,15/09/2016,R,REDACTED,
353,Central Services,SupS Legal,Achieving for Children (AFC),E10295,Supplies & Services           ,Services                      ,DF11,Counsel's Fees                          ,1300,12/09/2016,R,33 BEDFORD ROW                ,
354,Central Services,SupS Legal,Achieving for Children (AFC),E10295,Supplies & Services           ,Services                      ,DF11,Counsel's Fees                          ,600,08/09/2016,R,REDACTED,
355,Central Services,SupS Legal,Achieving for Children (AFC),E10295,Supplies & Services           ,Services                      ,DF11,Counsel's Fees                          ,510,08/09/2016,R,REDACTED,
356,Central Services,SupS Legal,Achieving for Children (AFC),E10295,Supplies & Services           ,Services                      ,DF95,Services from Provider                  ,600,13/05/2016,R,LUQMANI THOMPSON & PARTNERS   ,
357,Central Services,SupS Legal,Achieving for Children (AFC),E10295,Supplies & Services           ,Services                      ,DF14,Doctors and Other Fees                  ,634.23,27/01/2015,R,REDACTED,
358,Central Services,SupS Legal,Wandsworth Project(SLLP),E10296,Supplies & Services           ,Comms and Computing           ,DG02,Software Licences                       ,28500,17/10/2016,R,LEXIS NEXIS                   ,
359,Central Services,SupS Legal,Wandsworth Project(SLLP),E10296,Supplies & Services           ,Grants and Subscriptions      ,DJ04,Subscriptions                           ,3099,13/10/2016,R,THE LAW SOCIETY               ,
360,Central Services,SupS Legal,Wandsworth Project(SLLP),E10296,Supplies & Services           ,Equip Furniture/Materials     ,DA80,Books                                   ,2783,11/10/2016,R,THOMSON REUTERS PROF. UK LTD  ,
361,Central Services,SupS Legal,Wandsworth Project(SLLP),E10296,Third Party Payments          ,Other Local Authorities       ,EB01,Payments to OLAs                        ,3257.24,29/09/2016,R,WANDSWORTH BOROUGH COUNCIL    ,
362,Central Services,SupS Legal,Wandsworth Project(SLLP),E10296,Third Party Payments          ,Other Local Authorities       ,EB01,Payments to OLAs                        ,3257.24,29/09/2016,R,WANDSWORTH BOROUGH COUNCIL    ,
363,Central Services,SupS IT,Social Care Info System (SCI)           ,E14357,Employees                     ,Direct Employee Expenses      ,AA17,Agency Staff & Casual Paymts            ,2500,17/10/2016,R,NUMBER 10 INTERIM LTD         ,
364,Central Services,SupS IT,Social Care Info System (SCI)           ,E14357,Employees                     ,Direct Employee Expenses      ,AA17,Agency Staff & Casual Paymts            ,5000,10/10/2016,R,NUMBER 10 INTERIM LTD         ,
365,Central Services,SupS IT,Social Care Info System (SCI)           ,E14357,Employees                     ,Direct Employee Expenses      ,AA17,Agency Staff & Casual Paymts            ,1575,09/10/2016,R,HAMPTON'S RESOURCING          ,
366,Central Services,SupS IT,Social Care Info System (SCI)           ,E14357,Employees                     ,Direct Employee Expenses      ,AA17,Agency Staff & Casual Paymts            ,3175,07/10/2016,R,NUMBER 10 INTERIM LTD         ,
367,Central Services,SupS IT,Social Care Info System (SCI)           ,E14357,Employees                     ,Direct Employee Expenses      ,AA17,Agency Staff & Casual Paymts            ,10725,04/10/2016,R,NUMBER 10 INTERIM LTD         ,
368,Central Services,SupS IT,Social Care Info System (SCI)           ,E14357,Employees                     ,Direct Employee Expenses      ,AA17,Agency Staff & Casual Paymts            ,1575,02/10/2016,R,HAMPTON'S RESOURCING          ,
369,Central Services,SupS IT,Social Care Info System (SCI)           ,E14357,Employees                     ,Direct Employee Expenses      ,AA17,Agency Staff & Casual Paymts            ,2500,26/09/2016,R,NUMBER 10 INTERIM LTD         ,
370,Central Services,SupS IT,Social Care Info System (SCI)           ,E14357,Employees                     ,Direct Employee Expenses      ,AA17,Agency Staff & Casual Paymts            ,1575,25/09/2016,R,HAMPTON'S RESOURCING          ,
371,Central Services,SupS IT,Social Care Info System (SCI)           ,E14357,Employees                     ,Direct Employee Expenses      ,AA17,Agency Staff & Casual Paymts            ,7590,23/09/2016,R,REDACTED,
372,Central Services,SupS IT,Social Care Info System (SCI)           ,E14357,Employees                     ,Direct Employee Expenses      ,AA17,Agency Staff & Casual Paymts            ,1575,18/09/2016,R,HAMPTON'S RESOURCING          ,
373,Central Services,SupS IT,Social Care Info System (SCI)           ,E14357,Employees                     ,Direct Employee Expenses      ,AA17,Agency Staff & Casual Paymts            ,1575,11/09/2016,R,HAMPTON'S RESOURCING          ,
374,Central Services,SupS IT,Corp Saving-Print Strategy,E14359,Supplies & Services           ,Prntng Stnry Gen Off Exp      ,DE11,Print Room Costs                        ,570,15/10/2016,R,REDACTED,
375,Central Services,SupS IT,BI IT Projects,E14360,Employees                     ,Direct Employee Expenses      ,AA17,Agency Staff & Casual Paymts            ,2240,12/10/2016,R,REDACTED,
376,Central Services,SupS IT,BI IT Projects,E14360,Employees                     ,Direct Employee Expenses      ,AA17,Agency Staff & Casual Paymts            ,2800,05/10/2016,R,REDACTED,
377,Central Services,SupS IT,BI IT Projects,E14360,Supplies & Services           ,Comms and Computing           ,DG65,Application Licences                    ,23205,30/09/2016,R,OLM SYSTEMS                   ,
378,Central Services,SupS IT,BI IT Projects,E14360,Employees                     ,Direct Employee Expenses      ,AA17,Agency Staff & Casual Paymts            ,2760,27/09/2016,R,REDACTED,
379,CS -Oth Operating Inc & Expend,SupS Codes No Longer Used,No longer used,E14362,Transfer Payments             ,Housing Benefits              ,FA50,Burial and Cremation                    ,1555,05/10/2016,R,F.W. PAINE                    ,
380,Central Services,SupS IT,Systems & Projects,E14366,Supplies & Services           ,Comms and Computing           ,DG65,Application Licences                    ,72968.21,12/10/2016,R,OPEN TEXT UK LTD              ,
381,Central Services,SupS IT,Systems & Projects,E14366,Supplies & Services           ,Comms and Computing           ,DG65,Application Licences                    ,4397.05,03/10/2016,R,OPEN TEXT UK LTD              ,
382,Central Services,SupS IT,Systems & Projects,E14366,Supplies & Services           ,Comms and Computing           ,DG61,Computer Servs Special                  ,7586,29/09/2016,R,PITNEY BOWES SOFTWARE EUROPE  ,
383,Central Services,SupS IT,Systems & Projects,E14366,Supplies & Services           ,Comms and Computing           ,DG50,Other IT Expenditure                    ,12000,27/09/2016,R,DUE NORTH LTD                 ,
384,Central Services,SupS IT,Systems & Projects,E14366,Supplies & Services           ,Comms and Computing           ,DG50,Other IT Expenditure                    ,20331.98,13/09/2016,R,INFOR GLOBAL SOLUTIONS-FRIMLEY,
385,Central Services,SupS IT,Systems & Projects,E14366,Supplies & Services           ,Comms and Computing           ,DG50,Other IT Expenditure                    ,2750,31/08/2016,R,NORTHGATE PUBLIC SERV (UK) LTD,
386,Central Services,SupS IT,Systems & Projects,E14366,Supplies & Services           ,Comms and Computing           ,DG61,Computer Servs Special                  ,10125,31/08/2016,R,PITNEY BOWES SOFTWARE EUROPE  ,
387,Central Services,SupS IT,Systems & Projects,E14366,Supplies & Services           ,Comms and Computing           ,DG61,Computer Servs Special                  ,5855,27/07/2016,R,PITNEY BOWES SOFTWARE EUROPE  ,
388,Central Services,SupS IT,Operations & Telecomms,E14367,Supplies & Services           ,Comms and Computing           ,DG54,Corporate Telephones                    ,11769.81,17/10/2016,R,ORANGE P'MENT PRO'SING AIRTIME,
389,Central Services,SupS IT,Operations & Telecomms,E14367,Supplies & Services           ,Comms and Computing           ,DG54,Corporate Telephones                    ,6336.4,02/10/2016,R,COLT TECHNOLOGY SERVICES      ,
390,Central Services,SupS IT,Operations & Telecomms,E14367,Supplies & Services           ,Comms and Computing           ,DG54,Corporate Telephones                    ,751.14,26/09/2016,R,VIRGIN MEDIA PAYMENTS LTD     ,
391,Central Services,SupS IT,Operations & Telecomms,E14367,Supplies & Services           ,Comms and Computing           ,DG54,Corporate Telephones                    ,11319.93,17/09/2016,R,ORANGE P'MENT PRO'SING AIRTIME,
392,Central Services,SupS IT,Operations & Telecomms,E14367,Supplies & Services           ,Comms and Computing           ,DG54,Corporate Telephones                    ,9803.06,15/09/2016,R,BRITISH TELECOMMUNICATIONS PLC,
393,Central Services,SupS IT,Distributed Services,E14368,Supplies & Services           ,Comms and Computing           ,DG65,Application Licences                    ,1595,21/10/2016,R,NET-CTRL                      ,
394,Central Services,SupS IT,Distributed Services,E14368,Supplies & Services           ,Comms and Computing           ,DG63,Software Licences - Data                ,650,16/08/2016,R,TRUECOMMERCE (OLDHAM) LIMITED ,
395,Central Services,SupS IT,Distributed Services,E14368,Supplies & Services           ,Comms and Computing           ,DG63,Software Licences - Data                ,3800,20/07/2016,R,ULTRA ELECTRONICS AEP         ,
396,Central Services,SupS IT,Corp Saving-IT Consolidation,E14370,Premises Related Expenditure  ,RepairsAlterations&MtceOfBldgs,BA03,DDM - Mechanical                        ,1693.8,27/10/2016,R,FUTURE TECH                   ,
397,Central Services,SupS IT,Corp Saving-IT Consolidation,E14370,Premises Related Expenditure  ,RepairsAlterations&MtceOfBldgs,BA01,DDM - General Building                  ,2200,30/09/2016,R,ERGRO BUILDING SERVICES LTD   ,
398,Central Services,SupS IT,Corp Saving-IT Consolidation,E14370,Premises Related Expenditure  ,RepairsAlterations&MtceOfBldgs,BA03,DDM - Mechanical                        ,3594.38,23/09/2016,R,FUTURE TECH                   ,
399,Central Services,SupS IT,Corp Saving-IT Consolidation,E14370,Premises Related Expenditure  ,RepairsAlterations&MtceOfBldgs,BA03,DDM - Mechanical                        ,1463.4,23/09/2016,R,FUTURE TECH                   ,
400,Central Services,SupS IT,Corp Saving-IT Consolidation,E14370,Premises Related Expenditure  ,RepairsAlterations&MtceOfBldgs,BA03,DDM - Mechanical                        ,1059.75,23/09/2016,R,FUTURE TECH                   ,
401,Central Services,SupS IT,Corp Saving-IT Consolidation,E14370,Premises Related Expenditure  ,RepairsAlterations&MtceOfBldgs,BA03,DDM - Mechanical                        ,720,23/09/2016,R,FUTURE TECH                   ,
402,Central Services,SupS IT,Corp Saving-IT Consolidation,E14370,Premises Related Expenditure  ,RepairsAlterations&MtceOfBldgs,BA05,DDM - Electrical                        ,3047,22/09/2016,R,BILFINGER EUROPA FACILITY     ,
403,Central Services,SupS IT,Corp Saving-IT Consolidation,E14370,Premises Related Expenditure  ,RepairsAlterations&MtceOfBldgs,BA01,DDM - General Building                  ,3757,17/08/2016,R,SALTASH ENTERPRISES LTD       ,
404,Central Services,SupS IT,Corp Saving-IT Consolidation,E14370,Premises Related Expenditure  ,RepairsAlterations&MtceOfBldgs,BA01,DDM - General Building                  ,532,17/08/2016,R,SALTASH ENTERPRISES LTD       ,
405,Central Services,SupS IT,No longer used,E14371,Employees                     ,Direct Employee Expenses      ,AA17,Agency Staff & Casual Paymts            ,3300,19/10/2016,R,HAYS SPECIALIST RECRUITM'T LTD,
406,Central Services,SupS IT,No longer used,E14371,Employees                     ,Direct Employee Expenses      ,AA17,Agency Staff & Casual Paymts            ,6342,14/10/2016,R,REDACTED,
407,Central Services,SupS IT,No longer used,E14371,Employees                     ,Direct Employee Expenses      ,AA17,Agency Staff & Casual Paymts            ,3300,28/09/2016,R,HAYS SPECIALIST RECRUITM'T LTD,
408,Central Services,SupS IT,No longer used,E14371,Employees                     ,Direct Employee Expenses      ,AA17,Agency Staff & Casual Paymts            ,3300,28/09/2016,R,HAYS SPECIALIST RECRUITM'T LTD,
409,Central Services,SupS IT,No longer used,E14371,Employees                     ,Direct Employee Expenses      ,AA17,Agency Staff & Casual Paymts            ,8400,20/09/2016,R,REDACTED,
410,Central Services,SupS IT,No longer used,E14371,Employees                     ,Direct Employee Expenses      ,AA17,Agency Staff & Casual Paymts            ,3300,16/09/2016,R,HAYS SPECIALIST RECRUITM'T LTD,
411,Central Services,SupS IT,No longer used,E14371,Employees                     ,Direct Employee Expenses      ,AA17,Agency Staff & Casual Paymts            ,3300,07/09/2016,R,HAYS SPECIALIST RECRUITM'T LTD,
412,Central Services,SupS IT,No longer used,E14371,Employees                     ,Direct Employee Expenses      ,AA17,Agency Staff & Casual Paymts            ,3300,26/08/2016,R,HAYS SPECIALIST RECRUITM'T LTD,
413,Central Services,SupS IT,CS Procurement,E14372,Employees                     ,Direct Employee Expenses      ,AA17,Agency Staff & Casual Paymts            ,1581.75,19/10/2016,R,HAYS SPECIALIST RECRUITM'T LTD,
414,Central Services,SupS IT,CS Procurement,E14372,Employees                     ,Direct Employee Expenses      ,AA17,Agency Staff & Casual Paymts            ,1980,13/10/2016,R,HAYS SPECIALIST RECRUITM'T LTD,
415,Central Services,SupS IT,CS Procurement,E14372,Employees                     ,Direct Employee Expenses      ,AA17,Agency Staff & Casual Paymts            ,1054.5,12/10/2016,R,HAYS SPECIALIST RECRUITM'T LTD,
416,Central Services,SupS IT,CS Procurement,E14372,Employees                     ,Direct Employee Expenses      ,AA17,Agency Staff & Casual Paymts            ,2475,07/10/2016,R,HAYS SPECIALIST RECRUITM'T LTD,
417,Central Services,SupS IT,CS Procurement,E14372,Employees                     ,Direct Employee Expenses      ,AA17,Agency Staff & Casual Paymts            ,790,07/10/2016,R,HAYS SPECIALIST RECRUITM'T LTD,
418,Central Services,SupS IT,CS Procurement,E14372,Employees                     ,Direct Employee Expenses      ,AA17,Agency Staff & Casual Paymts            ,2636.25,05/10/2016,R,HAYS SPECIALIST RECRUITM'T LTD,
419,Central Services,SupS IT,CS Procurement,E14372,Employees                     ,Direct Employee Expenses      ,AA17,Agency Staff & Casual Paymts            ,2636.25,05/10/2016,R,HAYS SPECIALIST RECRUITM'T LTD,
420,Central Services,SupS IT,CS Procurement,E14372,Employees                     ,Direct Employee Expenses      ,AA17,Agency Staff & Casual Paymts            ,2475,01/09/2016,R,HAYS SPECIALIST RECRUITM'T LTD,
421,Central Services,SupS IT,CHAS Projects,E14378,Employees                     ,Direct Employee Expenses      ,AA17,Agency Staff & Casual Paymts            ,4950,03/10/2016,R,REDACTED,
422,Central Services,SupS IT,CHAS Projects,E14378,Employees                     ,Direct Employee Expenses      ,AA17,Agency Staff & Casual Paymts            ,1650,03/10/2016,R,REDACTED,
423,Central Services,SupS IT,CHAS Projects,E14378,Employees                     ,Direct Employee Expenses      ,AA17,Agency Staff & Casual Paymts            ,7642,01/09/2016,R,REDACTED,
424,Cultural Env Reg&Plan Services,Mgt & Support (Env),Shared Regulatory Service Proj,G00091,Employees                     ,Direct Employee Expenses      ,AA17,Agency Staff & Casual Paymts            ,3361.75,26/10/2016,R,HAYS SPECIALIST RECRUITM'T LTD,
425,Cultural Env Reg&Plan Services,Mgt & Support (Env),Shared Regulatory Service Proj,G00091,Employees                     ,Direct Employee Expenses      ,AA17,Agency Staff & Casual Paymts            ,3361.75,19/10/2016,R,HAYS SPECIALIST RECRUITM'T LTD,
426,Cultural Env Reg&Plan Services,Mgt & Support (Env),Shared Regulatory Service Proj,G00091,Employees                     ,Direct Employee Expenses      ,AA17,Agency Staff & Casual Paymts            ,3361.75,12/10/2016,R,HAYS SPECIALIST RECRUITM'T LTD,
427,Cultural Env Reg&Plan Services,Mgt & Support (Env),Shared Regulatory Service Proj,G00091,Employees                     ,Direct Employee Expenses      ,AA17,Agency Staff & Casual Paymts            ,3361.75,05/10/2016,R,HAYS EXECUTIVE                ,
428,Cultural Env Reg&Plan Services,Mgt & Support (Env),Shared Regulatory Service Proj,G00091,Employees                     ,Direct Employee Expenses      ,AA17,Agency Staff & Casual Paymts            ,3361.75,05/10/2016,R,HAYS SPECIALIST RECRUITM'T LTD,
429,Cultural Env Reg&Plan Services,Mgt & Support (Env),Shared Regulatory Service Proj,G00091,Employees                     ,Direct Employee Expenses      ,AA17,Agency Staff & Casual Paymts            ,3361.75,28/09/2016,R,HAYS SPECIALIST RECRUITM'T LTD,
430,Cultural Env Reg&Plan Services,Mgt & Support (Env),Shared Regulatory Service Proj,G00091,Employees                     ,Direct Employee Expenses      ,AA17,Agency Staff & Casual Paymts            ,3361.75,21/09/2016,R,HAYS SPECIALIST RECRUITM'T LTD,
431,Cultural Env Reg&Plan Services,Mgt & Support (Env),Senior Mgt. - E.S.C.,G00100,Employees                     ,Indirect Employee Expenses    ,AB02,Recruitment Adverts                     ,7000,27/09/2016,R,GATENBY SANDERSON LIMITED     ,
432,Cultural Env Reg&Plan Services,Mgt & Support (Env),Senior Mgt. - E.S.C.,G00100,Third Party Payments          ,Private Contractors           ,EH56,Carriageway/Fway Maint                  ,4095,08/07/2016,R,FM CONWAY LTD                 ,
433,Cultural Env Reg&Plan Services,Mgt & Support (Env),Senior Mgt. - E.S.C.,G00100,Employees                     ,Direct Employee Expenses      ,AA17,Agency Staff & Casual Paymts            ,3529.4,06/07/2016,R,REDACTED,
434,Cultural Env Reg&Plan Services,Mgt & Support (Env),Senior Mgt. - E.S.C.,G00100,Employees                     ,Direct Employee Expenses      ,AA17,Agency Staff & Casual Paymts            ,1411.76,06/07/2016,R,REDACTED,
435,Highways & Transport Services,Hwys/Rds (struct) not split,Surf Water Drainage,G00123,Third Party Payments          ,Private Contractors           ,EH56,Carriageway/Fway Maint                  ,1650,30/09/2016,R,FM CONWAY LTD                 ,
436,Highways & Transport Services,Hwys/Rds (struct) not split,Surf Water Drainage,G00123,Third Party Payments          ,Private Contractors           ,EH56,Carriageway/Fway Maint                  ,1650,13/09/2016,R,FM CONWAY LTD                 ,
437,Highways & Transport Services,Hwys/Rds (struct) not split,Surf Water Drainage,G00123,Third Party Payments          ,Private Contractors           ,EH56,Carriageway/Fway Maint                  ,1650,29/07/2016,R,FM CONWAY LTD                 ,
438,Highways & Transport Services,Hwys/Rds (struct) not split,Surf Water Drainage,G00123,Third Party Payments          ,Private Contractors           ,EH56,Carriageway/Fway Maint                  ,750,30/06/2016,R,FM CONWAY LTD                 ,
439,Highways & Transport Services,Hwys/Rds (struct) not split,Surf Water Drainage,G00123,Third Party Payments          ,Private Contractors           ,EH56,Carriageway/Fway Maint                  ,600,30/06/2016,R,FM CONWAY LTD                 ,
440,Highways & Transport Services,Hwys/Rds (struct) not split,Surf Water Drainage,G00123,Third Party Payments          ,Private Contractors           ,EH56,Carriageway/Fway Maint                  ,800,30/10/2015,R,FM CONWAY LTD                 ,
441,Highways & Transport Services,Repair prin/oth rds not split,Walk Sheets,G00127,Third Party Payments          ,Private Contractors           ,EH56,Carriageway/Fway Maint                  ,3689.33,24/10/2016,R,FM CONWAY LTD                 ,
442,Highways & Transport Services,Repair prin/oth rds not split,Walk Sheets,G00127,Third Party Payments          ,Private Contractors           ,EH56,Carriageway/Fway Maint                  ,1866.29,12/10/2016,R,FM CONWAY LTD                 ,
443,Highways & Transport Services,Repair prin/oth rds not split,Walk Sheets,G00127,Third Party Payments          ,Private Contractors           ,EH56,Carriageway/Fway Maint                  ,50000,06/10/2016,R,FM CONWAY LTD                 ,
444,Highways & Transport Services,Repair prin/oth rds not split,Walk Sheets,G00127,Third Party Payments          ,Private Contractors           ,EH56,Carriageway/Fway Maint                  ,4490.74,06/10/2016,R,FM CONWAY LTD                 ,
445,Highways & Transport Services,Repair prin/oth rds not split,Walk Sheets,G00127,Third Party Payments          ,Private Contractors           ,EH56,Carriageway/Fway Maint                  ,18469.18,14/09/2016,R,FM CONWAY LTD                 ,
446,Highways & Transport Services,Repair prin/oth rds not split,Walk Sheets,G00127,Third Party Payments          ,Private Contractors           ,EH56,Carriageway/Fway Maint                  ,11759.73,14/09/2016,R,FM CONWAY LTD                 ,
447,Highways & Transport Services,Repair prin/oth rds not split,Walk Sheets,G00127,Third Party Payments          ,Private Contractors           ,EH56,Carriageway/Fway Maint                  ,1600,14/09/2016,R,FM CONWAY LTD                 ,
448,Highways & Transport Services,Repair prin/oth rds not split,Walk Sheets,G00127,Third Party Payments          ,Private Contractors           ,EH56,Carriageway/Fway Maint                  ,800,14/09/2016,R,FM CONWAY LTD                 ,
449,Highways & Transport Services,Hwys/Rds (struct) not split,"Br., H'ways & Struct",G00128,Third Party Payments          ,Private Contractors           ,EH56,Carriageway/Fway Maint                  ,6000,17/06/2016,R,HENDERSON THOMAS ASSOC LTD    ,
450,Highways & Transport Services,Hwys/Rds (struct) not split,"Br., H'ways & Struct",G00128,Third Party Payments          ,Private Contractors           ,EH56,Carriageway/Fway Maint                  ,2292,17/06/2016,R,HENDERSON THOMAS ASSOC LTD    ,
451,Highways & Transport Services,Winter Maintenance.,Winter Maintenance,G00150,Third Party Payments          ,Other Local Authorities       ,EB50,WINTER CONTRACT                         ,993.83,28/09/2016,R,COMPASS MINERALS UK LTD       ,
452,Highways & Transport Services,Winter Maintenance.,Winter Maintenance,G00150,Third Party Payments          ,Other Local Authorities       ,EB50,WINTER CONTRACT                         ,4848.47,27/09/2016,R,COMPASS MINERALS UK LTD       ,
453,Highways & Transport Services,Saf mtc prin/oth rds not split,Traffic Signs.,G00160,Third Party Payments          ,Private Contractors           ,EH01,Miscellaneous Agency Services           ,2790.23,06/10/2016,R,FM CONWAY LTD                 ,
454,Highways & Transport Services,Saf mtc prin/oth rds not split,Traffic Signs.,G00160,Third Party Payments          ,Private Contractors           ,EH01,Miscellaneous Agency Services           ,517.28,30/09/2016,R,KIER INTEGRATED SERVICES LTD  ,
455,Highways & Transport Services,Saf mtc prin/oth rds not split,Traffic Signals .,G00170,Third Party Payments          ,Other Agencies                ,EJ57,Traffic Signals Control Unit            ,72476.07,04/10/2016,R,TRANSPORT FOR LONDON          ,
456,Highways & Transport Services,0,TRAF & HWYS CAPITAL PROJECTS,G00210,Third Party Payments          ,Private Contractors           ,EH56,Carriageway/Fway Maint                  ,4251.46,12/10/2016,R,FM CONWAY LTD                 ,
457,Highways & Transport Services,Transport Plg/Policy/Strategy,CPZ implementation & Consultat,G00211,Supplies & Services           ,Services                      ,DF02,Misc Advertising/Publicity              ,1392,07/10/2016,R,NEWSQUEST MEDIA GROUP LTD     ,
458,Highways & Transport Services,Transport Plg/Policy/Strategy,CPZ implementation & Consultat,G00211,Third Party Payments          ,Private Contractors           ,EH56,Carriageway/Fway Maint                  ,2145.66,06/10/2016,R,FM CONWAY LTD                 ,
459,Highways & Transport Services,Transport Plg/Policy/Strategy,CPZ implementation & Consultat,G00211,Third Party Payments          ,Private Contractors           ,EH56,Carriageway/Fway Maint                  ,1000,14/09/2016,R,FM CONWAY LTD                 ,
460,Highways & Transport Services,Street Lighting.,Street Lighting .,G00260,Premises Related Expenditure  ,Energy Costs                  ,BB02,Electricity                             ,44733.2,06/10/2016,R,SCOTTISH POWER                ,
461,Highways & Transport Services,Street Lighting.,Street Lighting .,G00260,Third Party Payments          ,Private Contractors           ,EH01,Miscellaneous Agency Services           ,1796.16,30/09/2016,R,KIER INTEGRATED SERVICES LTD  ,
462,Highways & Transport Services,Street Lighting.,Street Lighting .,G00260,Third Party Payments          ,Private Contractors           ,EH01,Miscellaneous Agency Services           ,2900.8,29/09/2016,R,KIER INTEGRATED SERVICES LTD  ,
463,Highways & Transport Services,Street Lighting.,Street Lighting .,G00260,Third Party Payments          ,Private Contractors           ,EH01,Miscellaneous Agency Services           ,2804.28,16/09/2016,R,KIER INTEGRATED SERVICES LTD  ,
464,Highways & Transport Services,Street Lighting.,Street Lighting .,G00260,Third Party Payments          ,Private Contractors           ,EH01,Miscellaneous Agency Services           ,1590.6,16/09/2016,R,KIER INTEGRATED SERVICES LTD  ,
465,Highways & Transport Services,Street Lighting.,Street Lighting .,G00260,Third Party Payments          ,Private Contractors           ,EH01,Miscellaneous Agency Services           ,6811,31/08/2016,R,KIER INTEGRATED SERVICES LTD  ,
466,Highways & Transport Services,Off-street parking,Car Parks (Unloc),G00291,Premises Related Expenditure  ,Rents                         ,BC01,MISCELLANEOUS RENTS                     ,49152,06/10/2016,R,TRANSPORT TRADING LTD PROP A/C,
467,Highways & Transport Services,Off-street parking,Car Parks (Unloc),G00291,Third Party Payments          ,Private Contractors           ,EH02,Miscellaneous Hired Services            ,3666,30/09/2016,R,COBALT TELEPHONE TECHNOLOGIES ,
468,Highways & Transport Services,Off-street parking,York Close CP,G00298,Premises Related Expenditure  ,Rents                         ,BC01,Miscellaneous Rents                     ,30460.5,15/09/2016,R,TRANSPORT TRADING LTD PROP A/C,
469,Highways & Transport Services,Off-street parking,Peel Hse C P - Upper,G00303,Premises Related Expenditure  ,Rents                         ,BC01,Miscellaneous Rents                     ,51652,06/10/2016,R,TRANSPORT TRADING LTD PROP A/C,
470,Highways & Transport Services,Off-street parking,"St. Mks Rd, Multi Sty",G00308,Premises Related Expenditure  ,Rents                         ,BD01,NNDR LBM                                ,1053.53,04/10/2016,R,REDACTED,
471,Highways & Transport Services,CYCLIST TRAINER,CYCLIST TRAINER,G00328,Third Party Payments          ,Private Contractors           ,EH10,Contract Payments                       ,13003.93,01/10/2016,R,CYCLE CONFIDENT               ,
472,Highways & Transport Services,Parking Enforcement not split,Civil Enforcement Officers,G00330,Supplies & Services           ,Equip Furniture/Materials     ,DA01,Equipment - R & M                       ,540,30/09/2016,R,TYCO FIRE & INTEGR'TD SOL (UK ,
473,Highways & Transport Services,Parking Enforcement not split,Operational Running Costs,G00331,Supplies & Services           ,Equip Furniture/Materials     ,DA09,Equip-Purchases                         ,4000,20/10/2016,R,PARKEON LTD                   ,
474,Highways & Transport Services,Parking Enforcement not split,Operational Running Costs,G00331,Third Party Payments          ,Other Agencies                ,EJ58,Parking Cttee for London                ,30000,17/10/2016,R,HMCTS                         ,
475,Highways & Transport Services,Parking Enforcement not split,Operational Running Costs,G00331,Third Party Payments          ,Other Agencies                ,EJ58,Parking Cttee for London                ,15885.89,07/10/2016,R,LONDON COUNCILS               ,
476,Highways & Transport Services,Parking Enforcement not split,Operational Running Costs,G00331,Supplies & Services           ,Equip Furniture/Materials     ,DA09,Equip-Purchases                         ,4152.74,01/10/2016,R,R.J.H.WELDING                 ,
477,Highways & Transport Services,Parking Enforcement not split,Operational Running Costs,G00331,Supplies & Services           ,Comms and Computing           ,DG61,Computer Servs Special                  ,541.62,30/09/2016,R,IMPERIAL CIVIL ENFORC.SOLUT.  ,
478,Highways & Transport Services,Parking Enforcement not split,Operational Running Costs,G00331,Supplies & Services           ,Prntng Stnry Gen Off Exp      ,DE01,External Printing                       ,1762,28/09/2016,R,LIBERTY PRINTERS (AR RF REDDIN,
479,Highways & Transport Services,Parking Enforcement not split,Operational Running Costs,G00331,Supplies & Services           ,Services                      ,DF95,Services from Provider                  ,534,26/09/2016,R,REDACTED,
480,Highways & Transport Services,Parking Enforcement not split,Operational Running Costs,G00331,Supplies & Services           ,Prntng Stnry Gen Off Exp      ,DE01,External Printing                       ,515,20/09/2016,R,LIBERTY PRINTERS (AR RF REDDIN,
481,Highways & Transport Services,Parking Enforcement not split,Operational Running Costs,G00331,Supplies & Services           ,Comms and Computing           ,DG61,Computer Servs Special                  ,36656.4,06/09/2016,R,IMPERIAL CIVIL ENFORC.SOLUT.  ,
482,Highways & Transport Services,Parking Enforcement not split,Operational Running Costs,G00331,Supplies & Services           ,Services                      ,DF95,Services from Provider                  ,1098.5,31/08/2016,R,REDACTED,
483,Highways & Transport Services,Hwys/Rds (struct) not split,Footpath Crossings.,G00390,Third Party Payments          ,Private Contractors           ,EH56,Carriageway/Fway Maint                  ,11728.82,24/10/2016,R,FM CONWAY LTD                 ,
484,Highways & Transport Services,Hwys/Rds (struct) not split,Footpath Crossings.,G00390,Third Party Payments          ,Private Contractors           ,EH56,Carriageway/Fway Maint                  ,3767.27,24/10/2016,R,FM CONWAY LTD                 ,
485,Highways & Transport Services,Hwys/Rds (struct) not split,Footpath Crossings.,G00390,Third Party Payments          ,Private Contractors           ,EH56,Carriageway/Fway Maint                  ,1800.84,24/10/2016,R,FM CONWAY LTD                 ,
486,Highways & Transport Services,Hwys/Rds (struct) not split,Footpath Crossings.,G00390,Third Party Payments          ,Private Contractors           ,EH56,Carriageway/Fway Maint                  ,5187.28,12/10/2016,R,FM CONWAY LTD                 ,
487,Highways & Transport Services,Hwys/Rds (struct) not split,Footpath Crossings.,G00390,Third Party Payments          ,Private Contractors           ,EH56,Carriageway/Fway Maint                  ,1261.14,12/10/2016,R,FM CONWAY LTD                 ,
488,Highways & Transport Services,Hwys/Rds (struct) not split,Footpath Crossings.,G00390,Third Party Payments          ,Private Contractors           ,EH56,Carriageway/Fway Maint                  ,792.8,12/10/2016,R,FM CONWAY LTD                 ,
489,Highways & Transport Services,Hwys/Rds (struct) not split,Footpath Crossings.,G00390,Third Party Payments          ,Private Contractors           ,EH56,Carriageway/Fway Maint                  ,749.98,12/10/2016,R,FM CONWAY LTD                 ,
490,Highways & Transport Services,Hwys/Rds (struct) not split,Footpath Crossings.,G00390,Third Party Payments          ,Private Contractors           ,EH56,Carriageway/Fway Maint                  ,4504.89,06/10/2016,R,FM CONWAY LTD                 ,
491,Highways & Transport Services,Hwys/Rds (struct) not split,Footpath Crossings.,G00390,Third Party Payments          ,Private Contractors           ,EH56,Carriageway/Fway Maint                  ,3987.77,06/10/2016,R,FM CONWAY LTD                 ,
492,Highways & Transport Services,Hwys/Rds (struct) not split,Footpath Crossings.,G00390,Third Party Payments          ,Private Contractors           ,EH56,Carriageway/Fway Maint                  ,3271.18,06/10/2016,R,FM CONWAY LTD                 ,
493,Highways & Transport Services,Hwys/Rds (struct) not split,Footpath Crossings.,G00390,Third Party Payments          ,Private Contractors           ,EH56,Carriageway/Fway Maint                  ,869.34,06/10/2016,R,FM CONWAY LTD                 ,
494,Highways & Transport Services,Hwys/Rds (struct) not split,Footpath Crossings.,G00390,Third Party Payments          ,Private Contractors           ,EH56,Carriageway/Fway Maint                  ,7908.81,03/10/2016,R,FM CONWAY LTD                 ,
495,Highways & Transport Services,Hwys/Rds (struct) not split,Footpath Crossings.,G00390,Third Party Payments          ,Private Contractors           ,EH56,Carriageway/Fway Maint                  ,5331.31,03/10/2016,R,FM CONWAY LTD                 ,
496,Highways & Transport Services,Hwys/Rds (struct) not split,Footpath Crossings.,G00390,Third Party Payments          ,Private Contractors           ,EH56,Carriageway/Fway Maint                  ,3935.31,03/10/2016,R,FM CONWAY LTD                 ,
497,Highways & Transport Services,Hwys/Rds (struct) not split,Footpath Crossings.,G00390,Third Party Payments          ,Private Contractors           ,EH56,Carriageway/Fway Maint                  ,3160.61,03/10/2016,R,FM CONWAY LTD                 ,
498,Highways & Transport Services,Hwys/Rds (struct) not split,Footpath Crossings.,G00390,Third Party Payments          ,Private Contractors           ,EH56,Carriageway/Fway Maint                  ,1159.06,03/10/2016,R,FM CONWAY LTD                 ,
499,Cultural Env Reg&Plan Services,Street Clean - Not highways,Street Cleansing (Inc. Gully),G00492,Supplies & Services           ,Equip Furniture/Materials     ,DA03,Hire of Equipment                       ,2170,29/09/2016,R,COMCIR RADIO COMMUNICATIONS LT,
500,Cultural Env Reg&Plan Services,Street Clean - Not highways,Street Cleansing (Inc. Gully),G00492,Supplies & Services           ,Equip Furniture/Materials     ,DA04,Materials                               ,655.16,28/09/2016,R,ADDEX GROUP                   ,
501,Adult Social Care,Supported/Sheltered Employment,Shltd Placement Sch.,G00520,Supplies & Services           ,Clothing Unfrms Laundry       ,DC02,Clothing & Uniforms                     ,543.2,19/10/2016,R,SMI GROUP                     ,
502,Adult Social Care,Supported/Sheltered Employment,Shltd Placement Sch.,G00520,Supplies & Services           ,Clothing Unfrms Laundry       ,DC02,Clothing & Uniforms                     ,960,10/10/2016,R,SMI GROUP                     ,
503,Cultural Env Reg&Plan Services,Waste Disposal (not separated),Waste Disposal .,G00550,Third Party Payments          ,Private Contractors           ,EH66,Clinical Waste Disposal                 ,674.15,30/09/2016,R,S.GRUNDON (WASTE) LTD.        ,
504,Cultural Env Reg&Plan Services,Waste Disposal (not separated),Waste Disposal .,G00550,Third Party Payments          ,Private Contractors           ,EH04,C1 Viridor SLWP Landfill Contract       ,334684.96,28/09/2016,R,KINGSTON CORPORATION          ,
505,Cultural Env Reg&Plan Services,Waste Disposal (not separated),Waste Disposal .,G00550,Third Party Payments          ,Private Contractors           ,EH04,C1 Viridor SLWP Landfill Contract       ,41232.56,28/09/2016,R,KINGSTON CORPORATION          ,
506,Cultural Env Reg&Plan Services,Waste Disposal (not separated),Waste Disposal .,G00550,Third Party Payments          ,Private Contractors           ,EH04,C1 Viridor SLWP Landfill Contract       ,25213.52,28/09/2016,R,KINGSTON CORPORATION          ,
507,Cultural Env Reg&Plan Services,Waste Disposal (not separated),Waste Disposal .,G00550,Third Party Payments          ,Private Contractors           ,EH04,C1 Viridor SLWP Landfill Contract       ,1192.32,28/09/2016,R,KINGSTON CORPORATION          ,
508,Cultural Env Reg&Plan Services,Civic Amenity Sites,Garth Road Site,G00580,Premises Related Expenditure  ,RepairsAlterations&MtceOfBldgs,BA06,Repairs & Maintenance General           ,27582,13/10/2016,R,APA CONCRETE REPAIRS LTD      ,
509,Cultural Env Reg&Plan Services,Civic Amenity Sites,Garth Road Site,G00580,Third Party Payments          ,Private Contractors           ,EH61,Green Waste Disposal                    ,11150.01,28/09/2016,R,KINGSTON CORPORATION          ,
510,Cultural Env Reg&Plan Services,Civic Amenity Sites,Garth Road Site,G00580,Third Party Payments          ,Private Contractors           ,EH18,SLWP C3 Food Waste Gate Fees            ,7185.92,28/09/2016,R,KINGSTON CORPORATION          ,
511,Cultural Env Reg&Plan Services,Civic Amenity Sites,Garth Road Site,G00580,Third Party Payments          ,Private Contractors           ,EH65,TRANSPORT FEE - COMPOST                 ,895.58,28/09/2016,R,KINGSTON CORPORATION          ,
512,Cultural Env Reg&Plan Services,Civic Amenity Sites,Garth Road Site,G00580,Supplies & Services           ,Equip Furniture/Materials     ,DA01,Equipment - R & M                       ,620,26/09/2016,R,MIST-AIR                      ,
513,Cultural Env Reg&Plan Services,Public Health,Dog Control.,G00620,Third Party Payments          ,Private Contractors           ,EH02,Miscellaneous Hired Services            ,1228.5,03/10/2016,R,NOAH'S ARK ENVIRONMENTAL SERV.,
514,Cultural Env Reg&Plan Services,Public Health,Dog Control.,G00620,Third Party Payments          ,Private Contractors           ,EH02,Miscellaneous Hired Services            ,2930,16/09/2016,R,NOAH'S ARK ENVIRONMENTAL SERV.,
515,Cultural Env Reg&Plan Services,Recycling (Collection),Recycling Activities,G00640,Supplies & Services           ,Equip Furniture/Materials     ,DA32,Wheeled Bins                            ,3023,18/10/2016,R,UK CONTAINER MAINTENANCE LTD  ,
516,Cultural Env Reg&Plan Services,Recycling (Collection),Recycling Activities,G00640,Supplies & Services           ,Equip Furniture/Materials     ,DA32,Wheeled Bins                            ,1077,18/10/2016,R,UK CONTAINER MAINTENANCE LTD  ,
517,Cultural Env Reg&Plan Services,Recycling (Collection),Recycling Activities,G00640,Supplies & Services           ,Equip Furniture/Materials     ,DA32,Wheeled Bins                            ,2687.5,30/09/2016,R,UK CONTAINER MAINTENANCE LTD  ,
518,Cultural Env Reg&Plan Services,Recycling (Collection),Recycling Activities,G00640,Supplies & Services           ,Equip Furniture/Materials     ,DA32,Wheeled Bins                            ,1557.5,30/09/2016,R,UK CONTAINER MAINTENANCE LTD  ,
519,Cultural Env Reg&Plan Services,Recycling (Collection),Recycling Activities,G00640,Supplies & Services           ,Equip Furniture/Materials     ,DA32,Wheeled Bins                            ,1360,30/09/2016,R,UK CONTAINER MAINTENANCE LTD  ,
520,Cultural Env Reg&Plan Services,Recycling (Collection),Recycling Activities,G00640,Third Party Payments          ,Private Contractors           ,EH08,SLWP C1 Haulage Dry Recyclable          ,27399.34,28/09/2016,R,KINGSTON CORPORATION          ,
521,Cultural Env Reg&Plan Services,Recycling (Collection),Recycling Activities,G00640,Third Party Payments          ,Private Contractors           ,EH94,C1 DRY RECYCLING ACCEPTANCE & BULK      ,5960.3,28/09/2016,R,KINGSTON CORPORATION          ,
522,Cultural Env Reg&Plan Services,Recycling (Collection),Recycling Activities,G00640,Third Party Payments          ,Private Contractors           ,EH08,SLWP C1 Haulage Dry Recyclable          ,990,28/09/2016,R,KINGSTON CORPORATION          ,
523,Cultural Env Reg&Plan Services,Recycling (Collection),Garden Waste Service,G00647,Supplies & Services           ,Equip Furniture/Materials     ,DA32,Wheeled Bins (GARDEN BINS)              ,5824,10/10/2016,R,MGB PLASTICS LTD              ,
524,Cultural Env Reg&Plan Services,Recycling (Collection),Garden Waste Service,G00647,Third Party Payments          ,Private Contractors           ,EH61,Green Waste Disposal                    ,13881.87,28/09/2016,R,KINGSTON CORPORATION          ,
525,Cultural Env Reg&Plan Services,Recycling (Collection),Food Waste Service,G00648,Third Party Payments          ,Private Contractors           ,EH19,SLWP C3 FOOD WASTE HAULAGE              ,2787.4,28/09/2016,R,KINGSTON CORPORATION          ,
526,Cultural Env Reg&Plan Services,Recycling (Collection),Food Waste Service,G00648,Third Party Payments          ,Private Contractors           ,EH19,SLWP C3 FOOD WASTE HAULAGE              ,2609.01,28/09/2016,R,KINGSTON CORPORATION          ,
527,Cultural Env Reg&Plan Services,Recycling (Collection),Food Waste Service,G00648,Supplies & Services           ,Equip Furniture/Materials     ,DA31,Waste Sacks & Bags                      ,2060,16/09/2016,R,LONDON LETTERBOX MARKETING    ,
528,Cultural Env Reg&Plan Services,Recycling (Collection),WCSS Recycl Encourgmnt&Incentv          ,G00650,Supplies & Services           ,Prntng Stnry Gen Off Exp      ,DE22,Marketing                               ,1092,07/10/2016,R,MORGARD COURT LTD T/A GARDNERS,
529,Cultural Env Reg&Plan Services,Trade Waste Collection,Commercial Waste,G00663,Supplies & Services           ,Equip Furniture/Materials     ,DA31,Waste Sacks & Bags                      ,4597,30/09/2016,R,BIBBY FACTORS MANCHESTER LTD  ,
530,Cultural Env Reg&Plan Services,Trade Waste Collection,Commercial Waste,G00663,Third Party Payments          ,Private Contractors           ,EH04,C1 VIRIDOR SLWP LANDFILL CONTRACT       ,30921.2,28/09/2016,R,KINGSTON CORPORATION          ,
531,Cultural Env Reg&Plan Services,Trade Waste Collection,Commercial Waste,G00663,Third Party Payments          ,Private Contractors           ,EH08,SLWP C1 Haulage Dry Recyclable          ,1759.7,28/09/2016,R,KINGSTON CORPORATION          ,
532,Cultural Env Reg&Plan Services,Trade Waste Collection,Commercial Waste Collection,G00665,Supplies & Services           ,Equip Furniture/Materials     ,DA09,Equip-Purchases                         ,955.68,30/09/2016,R,GREENHAM TRADING LTD          ,
533,Cultural Env Reg&Plan Services,Trade Waste Collection,Commercial Waste Collection,G00665,Supplies & Services           ,Equip Furniture/Materials     ,DA32,Wheeled Bins                            ,2261,30/09/2016,R,UK CONTAINER MAINTENANCE LTD  ,
534,Cultural Env Reg&Plan Services,Trade Waste Collection,Commercial Waste Collection,G00665,Supplies & Services           ,Equip Furniture/Materials     ,DA31,Waste Sacks & Bags                      ,3629.74,27/09/2016,R,SPHERE PROFFESSIONAL          ,
535,Cultural Env Reg&Plan Services,Street Clean - Not highways,Waste Enforcement,G00680,Third Party Payments          ,Private Contractors           ,EH02,Miscellaneous Hired Services            ,20565,30/09/2016,R,KINGDOM SECURITY              ,
536,Cultural Env Reg&Plan Services,Mgt & Support (Env),SLWP (rechargeable)                     ,G00905,Supplies & Services           ,Services                      ,DF03,Consultants                             ,4016.25,30/09/2016,R,BRAND NARRATIVE LIMITED       ,
537,Cultural Env Reg&Plan Services,Mgt & Support (Env),SLWP (rechargeable)                     ,G00905,Supplies & Services           ,Services                      ,DF03,Consultants                             ,15215,30/06/2016,R,MALPKA LTD                    ,
538,Cultural Env Reg&Plan Services,Mgt & Support (Env),SLWP (rechargeable)                     ,G00905,Supplies & Services           ,Services                      ,DF03,Consultants                             ,26850,24/06/2016,R,MALPKA LTD                    ,
539,Central Services,SupS Env and Regen,LBR - Pollution                         ,G01004,Supplies & Services           ,Equip Furniture/Materials     ,DA09,Equip-Purchases                         ,1875,11/07/2016,R,TEMPLE GROUP LTD              ,
540,Cultural Env Reg&Plan Services,Community Develop't (Plg),N.E.Mitcham Community Asso,G18250,Supplies & Services           ,Grants and Subscriptions      ,DJ01,Grants                                  ,18830,01/10/2016,R,NORTH EAST MITCHAM COMM ASSOC ,
541,Cultural Env Reg&Plan Services,Community Develop't (Plg),S Mitcham Community Asso,G18253,Supplies & Services           ,Grants and Subscriptions      ,DJ01,Grants                                  ,19510,01/10/2016,R,SOUTH MITCHAM COMMUNITY ASS   ,
542,Cultural Env Reg&Plan Services,Community Develop't (Plg),S Wimbledon Community Asso,G18254,Supplies & Services           ,Grants and Subscriptions      ,DJ01,Grants                                  ,2765,01/10/2016,R,SOUTH WIMBLEDON COMMUNITY ASSO,
543,Cultural Env Reg&Plan Services,Community Develop't (Plg),St. Marks Family Cntr,G18257,Supplies & Services           ,Grants and Subscriptions      ,DJ01,Grants                                  ,27320,01/10/2016,R,ST MARKS FAMILY CENTRE        ,
544,Cultural Env Reg&Plan Services,Museums & Galleries,Wandle Industrial Museum,G19289,Supplies & Services           ,Grants and Subscriptions      ,DJ01,Grants                                  ,1995,01/10/2016,R,THE WANDLE INDUSTRIAL MUSEUM  ,
545,Central Services,Grants - Voluntary Groups,Vestry Hall,G19290,Supplies & Services           ,Comms and Computing           ,DG50,Other IT Expenditure                    ,3530.3,20/10/2016,R,MARQUEST LIMITED              ,
546,Central Services,Grants - Voluntary Groups,Vestry Hall,G19290,Supplies & Services           ,Comms and Computing           ,DG50,Other IT Expenditure                    ,899.59,20/10/2016,R,MARQUEST LIMITED              ,
547,Central Services,Grants - Voluntary Groups,Vestry Hall,G19290,Supplies & Services           ,Comms and Computing           ,DG50,Other IT Expenditure                    ,866.85,20/10/2016,R,MARQUEST LIMITED              ,
548,Central Services,Grants - Voluntary Groups,Vestry Hall,G19290,Premises Related Expenditure  ,RepairsAlterations&MtceOfBldgs,BA79,Security of Premises                    ,5565.4,10/10/2016,R,KINGDOM SECURITY              ,
549,Central Services,Grants - Voluntary Groups,Vestry Hall,G19290,Premises Related Expenditure  ,Cleaning and Domestic Supplies,BH03,Cleaning Services                       ,1934.45,01/10/2016,R,BIRKIN CLEANING SERVICES LTD  ,
550,Central Services,Grants - Voluntary Groups,Vestry Hall,G19290,Premises Related Expenditure  ,RepairsAlterations&MtceOfBldgs,BA79,Security of Premises                    ,941.17,30/09/2016,R,KINGDOM SECURITY              ,
551,Central Services,Grants - Voluntary Groups,Vestry Hall,G40314,Supplies & Services           ,Grants and Subscriptions      ,DJ01,Grants                                  ,6230,01/10/2016,R,COLLIERS WOOD COMMUNITY ASSOC ,
552,Highways & Transport Services,Safe routes inc schl x patrol,School & Road Safety TFL                ,H01083,Supplies & Services           ,Equip Furniture/Materials     ,DA58,Education Materials                     ,562.52,05/10/2016,R,FOCUS MULTIMEDIA LIMITED      ,
553,Highways & Transport Services,Safe routes inc schl x patrol,School & Road Safety TFL                ,H01083,Supplies & Services           ,Equip Furniture/Materials     ,DA04,Materials                               ,935,29/09/2016,R,BIKEWIZE MOTORCYCLE TRAINING  ,
554,Highways & Transport Services,Safe routes inc schl x patrol,School & Road Safety TFL                ,H01083,Supplies & Services           ,Equip Furniture/Materials     ,DA04,Materials                               ,17900,23/09/2016,R,LIVING STREETS SERVICES LTD   ,
555,Highways & Transport Services,Safe routes inc schl x patrol,School & Road Safety TFL                ,H01083,Supplies & Services           ,Equip Furniture/Materials     ,DA83,Projects                                ,625,23/08/2016,R,PERFORMANCE IN EDUCATION LLP  ,
556,Highways & Transport Services,Safe routes inc schl x patrol,School & Road Safety TFL                ,H01083,Supplies & Services           ,Equip Furniture/Materials     ,DA83,Projects                                ,625,23/08/2016,R,PERFORMANCE IN EDUCATION LLP  ,
557,Highways & Transport Services,Safe routes inc schl x patrol,School & Road Safety TFL                ,H01083,Supplies & Services           ,Equip Furniture/Materials     ,DA09,Equip-Purchases                         ,800,19/05/2016,R,AHMADIYYA MUSLIM ASSOC.UK     ,
558,Cultural Env Reg&Plan Services,BC Regs & Other not split,Building Control,H01100,Supplies & Services           ,Comms and Computing           ,DG07,Computer Software                       ,750,30/09/2016,R,NORTHGATE PUBLIC SERV (UK) LTD,
559,Cultural Env Reg&Plan Services,BC Regs & Other not split,Building Control,H01100,Supplies & Services           ,Services                      ,DF04,Miscellaneous Expenses                  ,1720.4,20/09/2016,R,FM CONWAY LTD                 ,
560,Cultural Env Reg&Plan Services,DC Advice Apps & Reg not split,Development Control,H01130,Supplies & Services           ,Services                      ,DF95,Services from Provider                  ,4364.5,13/09/2016,R,SHARPE PRITCHARD SOLICITORS   ,
561,Cultural Env Reg&Plan Services,DC Advice Apps & Reg not split,Development Control,H01130,Supplies & Services           ,Services                      ,DF11,Counsel's fees                          ,1440,13/07/2016,R,REDACTED,
562,Cultural Env Reg&Plan Services,Planning Policy not split,Spatial Policy,H01173,Supplies & Services           ,Services                      ,DF03,Consultants                             ,9408,17/10/2016,R,JAM CONSULT LTD               ,
563,Cultural Env Reg&Plan Services,Planning Policy not split,Spatial Policy,H01173,Supplies & Services           ,Services                      ,DF03,Consultants                             ,4032,23/09/2016,R,JAM CONSULT LTD               ,
564,Cultural Env Reg&Plan Services,Economic Dev (Not separated),(LABGI)-BUSINESS SUPPORT,H01210,Supplies & Services           ,Grants and Subscriptions      ,DJ01,Grants                                  ,1160,27/10/2016,R,SHINE HAIR SALON              ,
565,Cultural Env Reg&Plan Services,Economic Dev (Not separated),(LABGI)-BUSINESS SUPPORT,H01210,Supplies & Services           ,Grants and Subscriptions      ,DJ01,Grants                                  ,900,26/10/2016,R,REDACTED,
566,Cultural Env Reg&Plan Services,Economic Dev (Not separated),(LABGI)-BUSINESS SUPPORT,H01210,Supplies & Services           ,Grants and Subscriptions      ,DJ01,Grants                                  ,600,26/10/2016,R,REDACTED,
567,Cultural Env Reg&Plan Services,Economic Dev (Not separated),(LABGI)-BUSINESS SUPPORT,H01210,Supplies & Services           ,Grants and Subscriptions      ,DJ01,Grants                                  ,600,25/10/2016,R,CAFFE D'ORO LTD               ,
568,Cultural Env Reg&Plan Services,Economic Dev (Not separated),Capt Ambition-Suburban Opprt Z,H01231,Supplies & Services           ,Services                      ,DF03,Consultants                             ,1137.5,20/10/2016,R,URBAN ENTERPRISE NETWORK      ,
569,Cultural Env Reg&Plan Services,Economic Dev (Not separated),Capt Ambition-Suburban Opprt Z,H01231,Supplies & Services           ,Services                      ,DF03,Consultants                             ,1137.5,11/10/2016,R,URBAN ENTERPRISE NETWORK      ,
570,Cultural Env Reg&Plan Services,Economic Dev (Not separated),Capt Ambition-Suburban Opprt Z,H01231,Supplies & Services           ,Services                      ,DF03,Consultants                             ,975,11/10/2016,R,URBAN ENTERPRISE NETWORK      ,
571,Cultural Env Reg&Plan Services,Economic Dev (Not separated),Capt Ambition-Suburban Opprt Z,H01231,Supplies & Services           ,Grants and Subscriptions      ,DJ54,Contributions                           ,9476.21,30/09/2016,R,CONCEPT BUILDING SERVICES LTD ,
572,Cultural Env Reg&Plan Services,Economic Dev (Not separated),Capt Ambition-Suburban Opprt Z,H01231,Supplies & Services           ,Services                      ,DF03,Consultants                             ,1300,28/09/2016,R,URBAN ENTERPRISE NETWORK      ,
573,Cultural Env Reg&Plan Services,Economic Dev (Not separated),Capt Ambition-Suburban Opprt Z,H01231,Supplies & Services           ,Services                      ,DF30,Activities Programme                    ,650,23/09/2016,R,GBG ROOFING&BUILDING LTD      ,
574,Cultural Env Reg&Plan Services,Economic Dev (Not separated),Capt Ambition-Suburban Opprt Z,H01231,Supplies & Services           ,Services                      ,DF30,Activities Programme                    ,660,21/09/2016,R,GBG ROOFING&BUILDING LTD      ,
575,Cultural Env Reg&Plan Services,Economic Dev (Not separated),Capt Ambition-Suburban Opprt Z,H01231,Supplies & Services           ,Services                      ,DF30,Activities Programme                    ,730,16/09/2016,R,PANTONIC STEEL ORCHESTRA      ,
576,CS -Oth Operating Inc & Expend,T/A Vehicle Maintenance etc,Transport-Contract Hire,J01374,Supplies & Services           ,Prntng Stnry Gen Off Exp      ,DE11,Print Room Costs                        ,984,28/10/2016,R,REDACTED,
577,CS -Oth Operating Inc & Expend,T/A Vehicle Maintenance etc,Transport-Contract Hire,J01374,Transport Related Expenditure ,Direct Transport Costs        ,CA01,Petrol Derv & Oil                       ,32803.63,19/10/2016,R,EMO OILS LTD                  ,
578,CS -Oth Operating Inc & Expend,T/A Vehicle Maintenance etc,Transport-Contract Hire,J01374,Transport Related Expenditure ,Contract Hire and Op Leasing  ,CC69,LB Sutt Minibuses Trm Contract          ,745,17/10/2016,R,GULLIVER'S TRUCK HIRE LTD.    ,
579,CS -Oth Operating Inc & Expend,T/A Vehicle Maintenance etc,Transport-Contract Hire,J01374,Transport Related Expenditure ,Contract Hire and Op Leasing  ,CC69,LB Sutt Minibuses Trm Contract          ,2400,14/10/2016,R,C P DAVIDSON & SONS LTD       ,
580,CS -Oth Operating Inc & Expend,T/A Vehicle Maintenance etc,Transport-Contract Hire,J01374,Transport Related Expenditure ,Contract Hire and Op Leasing  ,CC69,LB Sutt Minibuses Trm Contract          ,2400,14/10/2016,R,C P DAVIDSON & SONS LTD       ,
581,CS -Oth Operating Inc & Expend,T/A Vehicle Maintenance etc,Transport-Contract Hire,J01374,Transport Related Expenditure ,Contract Hire and Op Leasing  ,CC69,LB Sutt Minibuses Trm Contract          ,2400,14/10/2016,R,C P DAVIDSON & SONS LTD       ,
582,CS -Oth Operating Inc & Expend,T/A Vehicle Maintenance etc,Transport-Contract Hire,J01374,Transport Related Expenditure ,Contract Hire and Op Leasing  ,CC69,LB Sutt Minibuses Trm Contract          ,585,12/10/2016,R,E H ROBERTS                   ,
583,CS -Oth Operating Inc & Expend,T/A Vehicle Maintenance etc,Transport-Contract Hire,J01374,Transport Related Expenditure ,Contract Hire and Op Leasing  ,CC59,HIRING TRANSPORT OPERATIONS             ,559.58,12/10/2016,R,E H ROBERTS                   ,
584,CS -Oth Operating Inc & Expend,T/A Vehicle Maintenance etc,Transport-Contract Hire,J01374,Transport Related Expenditure ,Contract Hire and Op Leasing  ,CC69,LB Sutt Minibuses Trm Contract          ,4977,12/10/2016,R,STENNETTS LTD                 ,
585,CS -Oth Operating Inc & Expend,T/A Vehicle Maintenance etc,Transport-Contract Hire,J01374,Supplies & Services           ,Grants and Subscriptions      ,DJ04,Subscriptions                           ,750,11/10/2016,R,AECOM LTD FORS                ,
586,CS -Oth Operating Inc & Expend,T/A Vehicle Maintenance etc,Transport-Contract Hire,J01374,Transport Related Expenditure ,Contract Hire and Op Leasing  ,CC69,LB Sutt Minibuses Trm Contract          ,745,10/10/2016,R,GULLIVER'S TRUCK HIRE LTD.    ,
587,CS -Oth Operating Inc & Expend,T/A Vehicle Maintenance etc,Transport-Contract Hire,J01374,Employees                     ,Direct Employee Expenses      ,AA17,Agency Staff & Casual Paymts            ,8352,05/10/2016,R,REDACTED,
588,CS -Oth Operating Inc & Expend,T/A Vehicle Maintenance etc,Transport-Contract Hire,J01374,Transport Related Expenditure ,Contract Hire and Op Leasing  ,CC69,LB Sutt Minibuses Trm Contract          ,745,03/10/2016,R,GULLIVER'S TRUCK HIRE LTD.    ,
589,CS -Oth Operating Inc & Expend,T/A Vehicle Maintenance etc,Transport-Contract Hire,J01374,Transport Related Expenditure ,Contract Hire and Op Leasing  ,CC64,CSF - SEN CABS (RK02)                   ,3382,30/09/2016,R,BARCLAYS ASSET & SALES FINANCE,
590,CS -Oth Operating Inc & Expend,T/A Vehicle Maintenance etc,Transport-Contract Hire,J01374,Transport Related Expenditure ,Contract Hire and Op Leasing  ,CC64,CSF - SEN CABS (RK02)                   ,2888,30/09/2016,R,BARCLAYS ASSET & SALES FINANCE,
591,CS -Oth Operating Inc & Expend,T/A Vehicle Maintenance etc,Transport-Contract Hire,J01374,Transport Related Expenditure ,Contract Hire and Op Leasing  ,CC64,CSF - SEN CABS (RK02)                   ,2700,30/09/2016,R,BARCLAYS ASSET & SALES FINANCE,
592,CS -Oth Operating Inc & Expend,T/A Vehicle Maintenance etc,Transport-Contract Hire,J01374,Transport Related Expenditure ,Contract Hire and Op Leasing  ,CC64,CSF - SEN CABS (RK02)                   ,2584,30/09/2016,R,BARCLAYS ASSET & SALES FINANCE,
593,CS -Oth Operating Inc & Expend,T/A Vehicle Maintenance etc,Transport-Contract Hire,J01374,Transport Related Expenditure ,Contract Hire and Op Leasing  ,CC64,CSF - SEN CABS (RK02)                   ,1710,30/09/2016,R,BARCLAYS ASSET & SALES FINANCE,
594,CS -Oth Operating Inc & Expend,T/A Vehicle Maintenance etc,Transport-Contract Hire,J01374,Transport Related Expenditure ,Contract Hire and Op Leasing  ,CC64,CSF - SEN CABS (RK02)                   ,3610,30/09/2016,R,BRUNSWICK CARS LTD            ,
595,CS -Oth Operating Inc & Expend,T/A Vehicle Maintenance etc,Transport-Contract Hire,J01374,Transport Related Expenditure ,Contract Hire and Op Leasing  ,CC64,CSF - SEN CABS (RK02)                   ,3058,30/09/2016,R,BRUNSWICK CARS LTD            ,
596,CS -Oth Operating Inc & Expend,T/A Vehicle Maintenance etc,Transport-Contract Hire,J01374,Transport Related Expenditure ,Contract Hire and Op Leasing  ,CC64,CSF - SEN CABS (RK02)                   ,3024,30/09/2016,R,BRUNSWICK CARS LTD            ,
597,CS -Oth Operating Inc & Expend,T/A Vehicle Maintenance etc,Transport-Contract Hire,J01374,Transport Related Expenditure ,Contract Hire and Op Leasing  ,CC64,CSF - SEN CABS (RK02)                   ,2980.5,30/09/2016,R,BRUNSWICK CARS LTD            ,
598,CS -Oth Operating Inc & Expend,T/A Vehicle Maintenance etc,Transport-Contract Hire,J01374,Transport Related Expenditure ,Contract Hire and Op Leasing  ,CC64,CSF - SEN CABS (RK02)                   ,2831,30/09/2016,R,BRUNSWICK CARS LTD            ,
599,CS -Oth Operating Inc & Expend,T/A Vehicle Maintenance etc,Transport-Contract Hire,J01374,Transport Related Expenditure ,Contract Hire and Op Leasing  ,CC64,CSF - SEN CABS (RK02)                   ,2556,30/09/2016,R,BRUNSWICK CARS LTD            ,
600,CS -Oth Operating Inc & Expend,T/A Vehicle Maintenance etc,Transport-Contract Hire,J01374,Transport Related Expenditure ,Contract Hire and Op Leasing  ,CC64,CSF - SEN CABS (RK02)                   ,2502,30/09/2016,R,BRUNSWICK CARS LTD            ,
601,CS -Oth Operating Inc & Expend,T/A Vehicle Maintenance etc,Transport-Contract Hire,J01374,Transport Related Expenditure ,Contract Hire and Op Leasing  ,CC64,CSF - SEN CABS (RK02)                   ,2204,30/09/2016,R,BRUNSWICK CARS LTD            ,
602,CS -Oth Operating Inc & Expend,T/A Vehicle Maintenance etc,Transport-Contract Hire,J01374,Transport Related Expenditure ,Contract Hire and Op Leasing  ,CC64,CSF - SEN CABS (RK02)                   ,2200,30/09/2016,R,BRUNSWICK CARS LTD            ,
603,CS -Oth Operating Inc & Expend,T/A Vehicle Maintenance etc,Transport-Contract Hire,J01374,Transport Related Expenditure ,Contract Hire and Op Leasing  ,CC64,CSF - SEN CABS (RK02)                   ,1944,30/09/2016,R,BRUNSWICK CARS LTD            ,
604,CS -Oth Operating Inc & Expend,T/A Vehicle Maintenance etc,Transport-Contract Hire,J01374,Transport Related Expenditure ,Contract Hire and Op Leasing  ,CC64,CSF - SEN CABS (RK02)                   ,1890,30/09/2016,R,BRUNSWICK CARS LTD            ,
605,CS -Oth Operating Inc & Expend,T/A Vehicle Maintenance etc,Transport-Contract Hire,J01374,Transport Related Expenditure ,Contract Hire and Op Leasing  ,CC66,CSF - CHILDREN CABS (RK09)              ,1820,30/09/2016,R,BRUNSWICK CARS LTD            ,
606,CS -Oth Operating Inc & Expend,T/A Vehicle Maintenance etc,Transport-Contract Hire,J01374,Transport Related Expenditure ,Contract Hire and Op Leasing  ,CC64,CSF - SEN CABS (RK02)                   ,1800,30/09/2016,R,BRUNSWICK CARS LTD            ,
607,CS -Oth Operating Inc & Expend,T/A Vehicle Maintenance etc,Transport-Contract Hire,J01374,Transport Related Expenditure ,Contract Hire and Op Leasing  ,CC64,CSF - SEN CABS (RK02)                   ,1728,30/09/2016,R,BRUNSWICK CARS LTD            ,
608,CS -Oth Operating Inc & Expend,T/A Vehicle Maintenance etc,Transport-Contract Hire,J01374,Transport Related Expenditure ,Contract Hire and Op Leasing  ,CC64,CSF - SEN CABS (RK02)                   ,1728,30/09/2016,R,BRUNSWICK CARS LTD            ,
609,CS -Oth Operating Inc & Expend,T/A Vehicle Maintenance etc,Transport-Contract Hire,J01374,Transport Related Expenditure ,Contract Hire and Op Leasing  ,CC64,CSF - SEN CABS (RK02)                   ,1710,30/09/2016,R,BRUNSWICK CARS LTD            ,
610,CS -Oth Operating Inc & Expend,T/A Vehicle Maintenance etc,Transport-Contract Hire,J01374,Transport Related Expenditure ,Contract Hire and Op Leasing  ,CC64,CSF - SEN CABS (RK02)                   ,1620,30/09/2016,R,BRUNSWICK CARS LTD            ,
611,CS -Oth Operating Inc & Expend,T/A Vehicle Maintenance etc,Transport-Contract Hire,J01374,Transport Related Expenditure ,Contract Hire and Op Leasing  ,CC64,CSF - SEN CABS (RK02)                   ,1615,30/09/2016,R,BRUNSWICK CARS LTD            ,
612,CS -Oth Operating Inc & Expend,T/A Vehicle Maintenance etc,Transport-Contract Hire,J01374,Transport Related Expenditure ,Contract Hire and Op Leasing  ,CC64,CSF - SEN CABS (RK02)                   ,1592,30/09/2016,R,BRUNSWICK CARS LTD            ,
613,CS -Oth Operating Inc & Expend,T/A Vehicle Maintenance etc,Transport-Contract Hire,J01374,Transport Related Expenditure ,Contract Hire and Op Leasing  ,CC64,CSF - SEN CABS (RK02)                   ,1581,30/09/2016,R,BRUNSWICK CARS LTD            ,
614,CS -Oth Operating Inc & Expend,T/A Vehicle Maintenance etc,Transport-Contract Hire,J01374,Transport Related Expenditure ,Contract Hire and Op Leasing  ,CC64,CSF - SEN CABS (RK02)                   ,1512,30/09/2016,R,BRUNSWICK CARS LTD            ,
615,CS -Oth Operating Inc & Expend,T/A Vehicle Maintenance etc,Transport-Contract Hire,J01374,Transport Related Expenditure ,Contract Hire and Op Leasing  ,CC68,CSF - COLLEGES CABS (RK03)              ,1408,30/09/2016,R,BRUNSWICK CARS LTD            ,
616,CS -Oth Operating Inc & Expend,T/A Vehicle Maintenance etc,Transport-Contract Hire,J01374,Transport Related Expenditure ,Contract Hire and Op Leasing  ,CC64,CSF - SEN CABS (RK02)                   ,1406,30/09/2016,R,BRUNSWICK CARS LTD            ,
617,CS -Oth Operating Inc & Expend,T/A Vehicle Maintenance etc,Transport-Contract Hire,J01374,Transport Related Expenditure ,Contract Hire and Op Leasing  ,CC64,CSF - SEN CABS (RK02)                   ,1180,30/09/2016,R,BRUNSWICK CARS LTD            ,
618,CS -Oth Operating Inc & Expend,T/A Vehicle Maintenance etc,Transport-Contract Hire,J01374,Transport Related Expenditure ,Contract Hire and Op Leasing  ,CC64,CSF - SEN CABS (RK02)                   ,1152,30/09/2016,R,BRUNSWICK CARS LTD            ,
619,CS -Oth Operating Inc & Expend,T/A Vehicle Maintenance etc,Transport-Contract Hire,J01374,Transport Related Expenditure ,Contract Hire and Op Leasing  ,CC64,CSF - SEN CABS (RK02)                   ,1045,30/09/2016,R,BRUNSWICK CARS LTD            ,
620,CS -Oth Operating Inc & Expend,T/A Vehicle Maintenance etc,Transport-Contract Hire,J01374,Transport Related Expenditure ,Contract Hire and Op Leasing  ,CC64,CSF - SEN CABS (RK02)                   ,1000,30/09/2016,R,BRUNSWICK CARS LTD            ,
621,CS -Oth Operating Inc & Expend,T/A Vehicle Maintenance etc,Transport-Contract Hire,J01374,Transport Related Expenditure ,Contract Hire and Op Leasing  ,CC64,CSF - SEN CABS (RK02)                   ,940,30/09/2016,R,BRUNSWICK CARS LTD            ,
622,CS -Oth Operating Inc & Expend,T/A Vehicle Maintenance etc,Transport-Contract Hire,J01374,Transport Related Expenditure ,Contract Hire and Op Leasing  ,CC64,CSF - SEN CABS (RK02)                   ,900,30/09/2016,R,BRUNSWICK CARS LTD            ,
623,CS -Oth Operating Inc & Expend,T/A Vehicle Maintenance etc,Transport-Contract Hire,J01374,Transport Related Expenditure ,Contract Hire and Op Leasing  ,CC64,CSF - SEN CABS (RK02)                   ,540,30/09/2016,R,BRUNSWICK CARS LTD            ,
624,CS -Oth Operating Inc & Expend,T/A Vehicle Maintenance etc,Transport-Contract Hire,J01374,Transport Related Expenditure ,Contract Hire and Op Leasing  ,CC69,LB Sutt Minibuses Trm Contract          ,1600,30/09/2016,R,C P DAVIDSON & SONS LTD       ,
625,CS -Oth Operating Inc & Expend,T/A Vehicle Maintenance etc,Transport-Contract Hire,J01374,Transport Related Expenditure ,Contract Hire and Op Leasing  ,CC69,LB Sutt Minibuses Trm Contract          ,1600,30/09/2016,R,C P DAVIDSON & SONS LTD       ,
626,CS -Oth Operating Inc & Expend,T/A Vehicle Maintenance etc,Transport-Contract Hire,J01374,Transport Related Expenditure ,Contract Hire and Op Leasing  ,CC69,LB Sutt Minibuses Trm Contract          ,1440,30/09/2016,R,C P DAVIDSON & SONS LTD       ,
627,CS -Oth Operating Inc & Expend,T/A Vehicle Maintenance etc,Transport-Contract Hire,J01374,Transport Related Expenditure ,Contract Hire and Op Leasing  ,CC69,LB Sutt Minibuses Trm Contract          ,640,30/09/2016,R,C P DAVIDSON & SONS LTD       ,
628,CS -Oth Operating Inc & Expend,T/A Vehicle Maintenance etc,Transport-Contract Hire,J01374,Transport Related Expenditure ,Contract Hire and Op Leasing  ,CC64,CSF - SEN CABS (RK02)                   ,1056,30/09/2016,R,CAPITAL CARS                  ,
629,CS -Oth Operating Inc & Expend,T/A Vehicle Maintenance etc,Transport-Contract Hire,J01374,Transport Related Expenditure ,Contract Hire and Op Leasing  ,CC64,CSF - SEN CABS (RK02)                   ,950,30/09/2016,R,CAPITAL CARS                  ,
630,CS -Oth Operating Inc & Expend,T/A Vehicle Maintenance etc,Transport-Contract Hire,J01374,Transport Related Expenditure ,Contract Hire and Op Leasing  ,CC64,CSF - SEN CABS (RK02)                   ,884,30/09/2016,R,CAPITAL CARS                  ,
631,CS -Oth Operating Inc & Expend,T/A Vehicle Maintenance etc,Transport-Contract Hire,J01374,Transport Related Expenditure ,Contract Hire and Op Leasing  ,CC64,CSF - SEN CABS (RK02)                   ,1728,30/09/2016,R,CHEAM STATION CARS            ,
632,CS -Oth Operating Inc & Expend,T/A Vehicle Maintenance etc,Transport-Contract Hire,J01374,Transport Related Expenditure ,Contract Hire and Op Leasing  ,CC68,CSF - COLLEGES CABS (RK03)              ,1416,30/09/2016,R,CHEAM STATION CARS            ,
633,CS -Oth Operating Inc & Expend,T/A Vehicle Maintenance etc,Transport-Contract Hire,J01374,Transport Related Expenditure ,Contract Hire and Op Leasing  ,CC64,CSF - SEN CABS (RK02)                   ,1404,30/09/2016,R,CHEAM STATION CARS            ,
634,CS -Oth Operating Inc & Expend,T/A Vehicle Maintenance etc,Transport-Contract Hire,J01374,Transport Related Expenditure ,Contract Hire and Op Leasing  ,CC64,CSF - SEN CABS (RK02)                   ,1365,30/09/2016,R,CHEAM STATION CARS            ,
635,CS -Oth Operating Inc & Expend,T/A Vehicle Maintenance etc,Transport-Contract Hire,J01374,Transport Related Expenditure ,Contract Hire and Op Leasing  ,CC64,CSF - SEN CABS (RK02)                   ,1260,30/09/2016,R,CHEAM STATION CARS            ,
636,CS -Oth Operating Inc & Expend,T/A Vehicle Maintenance etc,Transport-Contract Hire,J01374,Transport Related Expenditure ,Contract Hire and Op Leasing  ,CC64,CSF - SEN CABS (RK02)                   ,1140,30/09/2016,R,CHEAM STATION CARS            ,
637,CS -Oth Operating Inc & Expend,T/A Vehicle Maintenance etc,Transport-Contract Hire,J01374,Transport Related Expenditure ,Contract Hire and Op Leasing  ,CC64,CSF - SEN CABS (RK02)                   ,1120,30/09/2016,R,CHEAM STATION CARS            ,
638,CS -Oth Operating Inc & Expend,T/A Vehicle Maintenance etc,Transport-Contract Hire,J01374,Transport Related Expenditure ,Contract Hire and Op Leasing  ,CC64,CSF - SEN CABS (RK02)                   ,1080,30/09/2016,R,CHEAM STATION CARS            ,
639,CS -Oth Operating Inc & Expend,T/A Vehicle Maintenance etc,Transport-Contract Hire,J01374,Transport Related Expenditure ,Contract Hire and Op Leasing  ,CC68,CSF - COLLEGES CABS (RK03)              ,976,30/09/2016,R,CHEAM STATION CARS            ,
640,CS -Oth Operating Inc & Expend,T/A Vehicle Maintenance etc,Transport-Contract Hire,J01374,Transport Related Expenditure ,Contract Hire and Op Leasing  ,CC67,C&H - ADULTS CABS (RK08)                ,936,30/09/2016,R,CHEAM STATION CARS            ,
641,CS -Oth Operating Inc & Expend,T/A Vehicle Maintenance etc,Transport-Contract Hire,J01374,Transport Related Expenditure ,Contract Hire and Op Leasing  ,CC64,CSF - SEN CABS (RK02)                   ,896,30/09/2016,R,CHEAM STATION CARS            ,
642,CS -Oth Operating Inc & Expend,T/A Vehicle Maintenance etc,Transport-Contract Hire,J01374,Transport Related Expenditure ,Contract Hire and Op Leasing  ,CC64,CSF - SEN CABS (RK02)                   ,765,30/09/2016,R,CHEAM STATION CARS            ,
643,CS -Oth Operating Inc & Expend,T/A Vehicle Maintenance etc,Transport-Contract Hire,J01374,Transport Related Expenditure ,Contract Hire and Op Leasing  ,CC67,C&H - ADULTS CABS (RK08)                ,704,30/09/2016,R,CHEAM STATION CARS            ,
644,CS -Oth Operating Inc & Expend,T/A Vehicle Maintenance etc,Transport-Contract Hire,J01374,Transport Related Expenditure ,Contract Hire and Op Leasing  ,CC69,LB Sutt Minibuses Trm Contract          ,1430,30/09/2016,R,E H ROBERTS                   ,
645,CS -Oth Operating Inc & Expend,T/A Vehicle Maintenance etc,Transport-Contract Hire,J01374,Transport Related Expenditure ,Contract Hire and Op Leasing  ,CC53,Plant Hire for MRCS                     ,726,30/09/2016,R,E H ROBERTS                   ,
646,CS -Oth Operating Inc & Expend,T/A Vehicle Maintenance etc,Transport-Contract Hire,J01374,Transport Related Expenditure ,Contract Hire and Op Leasing  ,CC69,LB Sutt Minibuses Trm Contract          ,726,30/09/2016,R,E H ROBERTS                   ,
647,CS -Oth Operating Inc & Expend,T/A Vehicle Maintenance etc,Transport-Contract Hire,J01374,Transport Related Expenditure ,Contract Hire and Op Leasing  ,CC56,Plant Hire for Leisure                  ,585,30/09/2016,R,E H ROBERTS                   ,
648,CS -Oth Operating Inc & Expend,T/A Vehicle Maintenance etc,Transport-Contract Hire,J01374,Transport Related Expenditure ,Contract Hire and Op Leasing  ,CC69,LB Sutt Minibuses Trm Contract          ,585,30/09/2016,R,E H ROBERTS                   ,
649,CS -Oth Operating Inc & Expend,T/A Vehicle Maintenance etc,Transport-Contract Hire,J01374,Transport Related Expenditure ,Contract Hire and Op Leasing  ,CC69,LB Sutt Minibuses Trm Contract          ,585,30/09/2016,R,E H ROBERTS                   ,
650,CS -Oth Operating Inc & Expend,T/A Vehicle Maintenance etc,Transport-Contract Hire,J01374,Transport Related Expenditure ,Contract Hire and Op Leasing  ,CC69,LB Sutt Minibuses Trm Contract          ,585,30/09/2016,R,E H ROBERTS                   ,
651,CS -Oth Operating Inc & Expend,T/A Vehicle Maintenance etc,Transport-Contract Hire,J01374,Transport Related Expenditure ,Contract Hire and Op Leasing  ,CC59,HIRING TRANSPORT OPERATIONS             ,559.58,30/09/2016,R,E H ROBERTS                   ,
652,CS -Oth Operating Inc & Expend,T/A Vehicle Maintenance etc,Transport-Contract Hire,J01374,Transport Related Expenditure ,Contract Hire and Op Leasing  ,CC59,HIRING TRANSPORT OPERATIONS             ,559.58,30/09/2016,R,E H ROBERTS                   ,
653,CS -Oth Operating Inc & Expend,T/A Vehicle Maintenance etc,Transport-Contract Hire,J01374,Transport Related Expenditure ,Contract Hire and Op Leasing  ,CC59,HIRING TRANSPORT OPERATIONS             ,559.58,30/09/2016,R,E H ROBERTS                   ,
654,CS -Oth Operating Inc & Expend,T/A Vehicle Maintenance etc,Transport-Contract Hire,J01374,Transport Related Expenditure ,Contract Hire and Op Leasing  ,CC59,HIRING TRANSPORT OPERATIONS             ,1452,30/09/2016,R,ENTERPRISE RENT-A-CAR UK LTD  ,
655,CS -Oth Operating Inc & Expend,T/A Vehicle Maintenance etc,Transport-Contract Hire,J01374,Transport Related Expenditure ,Contract Hire and Op Leasing  ,CC59,HIRING TRANSPORT OPERATIONS             ,1452,30/09/2016,R,ENTERPRISE RENT-A-CAR UK LTD  ,
656,CS -Oth Operating Inc & Expend,T/A Vehicle Maintenance etc,Transport-Contract Hire,J01374,Transport Related Expenditure ,Contract Hire and Op Leasing  ,CC59,HIRING TRANSPORT OPERATIONS             ,1452,30/09/2016,R,ENTERPRISE RENT-A-CAR UK LTD  ,
657,CS -Oth Operating Inc & Expend,T/A Vehicle Maintenance etc,Transport-Contract Hire,J01374,Transport Related Expenditure ,Contract Hire and Op Leasing  ,CC64,CSF - SEN CABS (RK02)                   ,3229.62,30/09/2016,R,KAT TRANSPORT LTD             ,
658,CS -Oth Operating Inc & Expend,T/A Vehicle Maintenance etc,Transport-Contract Hire,J01374,Transport Related Expenditure ,Contract Hire and Op Leasing  ,CC64,CSF - SEN CABS (RK02)                   ,3198,30/09/2016,R,KAT TRANSPORT LTD             ,
659,CS -Oth Operating Inc & Expend,T/A Vehicle Maintenance etc,Transport-Contract Hire,J01374,Transport Related Expenditure ,Contract Hire and Op Leasing  ,CC67,C&H - ADULTS CABS (RK08)                ,2959.12,30/09/2016,R,KAT TRANSPORT LTD             ,
660,CS -Oth Operating Inc & Expend,T/A Vehicle Maintenance etc,Transport-Contract Hire,J01374,Transport Related Expenditure ,Contract Hire and Op Leasing  ,CC64,CSF - SEN CABS (RK02)                   ,2908.44,30/09/2016,R,KAT TRANSPORT LTD             ,
661,CS -Oth Operating Inc & Expend,T/A Vehicle Maintenance etc,Transport-Contract Hire,J01374,Transport Related Expenditure ,Contract Hire and Op Leasing  ,CC64,CSF - SEN CABS (RK02)                   ,2848.86,30/09/2016,R,KAT TRANSPORT LTD             ,
662,CS -Oth Operating Inc & Expend,T/A Vehicle Maintenance etc,Transport-Contract Hire,J01374,Transport Related Expenditure ,Contract Hire and Op Leasing  ,CC64,CSF - SEN CABS (RK02)                   ,2818.2,30/09/2016,R,KAT TRANSPORT LTD             ,
663,CS -Oth Operating Inc & Expend,T/A Vehicle Maintenance etc,Transport-Contract Hire,J01374,Transport Related Expenditure ,Contract Hire and Op Leasing  ,CC64,CSF - SEN CABS (RK02)                   ,2783.49,30/09/2016,R,KAT TRANSPORT LTD             ,
664,CS -Oth Operating Inc & Expend,T/A Vehicle Maintenance etc,Transport-Contract Hire,J01374,Transport Related Expenditure ,Contract Hire and Op Leasing  ,CC64,CSF - SEN CABS (RK02)                   ,2663.28,30/09/2016,R,KAT TRANSPORT LTD             ,
665,CS -Oth Operating Inc & Expend,T/A Vehicle Maintenance etc,Transport-Contract Hire,J01374,Transport Related Expenditure ,Contract Hire and Op Leasing  ,CC64,CSF - SEN CABS (RK02)                   ,2659.24,30/09/2016,R,KAT TRANSPORT LTD             ,
666,CS -Oth Operating Inc & Expend,T/A Vehicle Maintenance etc,Transport-Contract Hire,J01374,Transport Related Expenditure ,Contract Hire and Op Leasing  ,CC64,CSF - SEN CABS (RK02)                   ,2631.6,30/09/2016,R,KAT TRANSPORT LTD             ,
667,CS -Oth Operating Inc & Expend,T/A Vehicle Maintenance etc,Transport-Contract Hire,J01374,Transport Related Expenditure ,Contract Hire and Op Leasing  ,CC64,CSF - SEN CABS (RK02)                   ,2304,30/09/2016,R,KAT TRANSPORT LTD             ,
668,CS -Oth Operating Inc & Expend,T/A Vehicle Maintenance etc,Transport-Contract Hire,J01374,Transport Related Expenditure ,Contract Hire and Op Leasing  ,CC64,CSF - SEN CABS (RK02)                   ,2258.42,30/09/2016,R,KAT TRANSPORT LTD             ,
669,CS -Oth Operating Inc & Expend,T/A Vehicle Maintenance etc,Transport-Contract Hire,J01374,Transport Related Expenditure ,Contract Hire and Op Leasing  ,CC64,CSF - SEN CABS (RK02)                   ,2194.2,30/09/2016,R,KAT TRANSPORT LTD             ,
670,CS -Oth Operating Inc & Expend,T/A Vehicle Maintenance etc,Transport-Contract Hire,J01374,Transport Related Expenditure ,Contract Hire and Op Leasing  ,CC64,CSF - SEN CABS (RK02)                   ,2179.24,30/09/2016,R,KAT TRANSPORT LTD             ,
671,CS -Oth Operating Inc & Expend,T/A Vehicle Maintenance etc,Transport-Contract Hire,J01374,Transport Related Expenditure ,Contract Hire and Op Leasing  ,CC64,CSF - SEN CABS (RK02)                   ,2156.04,30/09/2016,R,KAT TRANSPORT LTD             ,
672,CS -Oth Operating Inc & Expend,T/A Vehicle Maintenance etc,Transport-Contract Hire,J01374,Transport Related Expenditure ,Contract Hire and Op Leasing  ,CC64,CSF - SEN CABS (RK02)                   ,2125.72,30/09/2016,R,KAT TRANSPORT LTD             ,
673,CS -Oth Operating Inc & Expend,T/A Vehicle Maintenance etc,Transport-Contract Hire,J01374,Transport Related Expenditure ,Contract Hire and Op Leasing  ,CC64,CSF - SEN CABS (RK02)                   ,2116.44,30/09/2016,R,KAT TRANSPORT LTD             ,
674,CS -Oth Operating Inc & Expend,T/A Vehicle Maintenance etc,Transport-Contract Hire,J01374,Transport Related Expenditure ,Contract Hire and Op Leasing  ,CC67,C&H - ADULTS CABS (RK08)                ,2050.2,30/09/2016,R,KAT TRANSPORT LTD             ,
675,CS -Oth Operating Inc & Expend,T/A Vehicle Maintenance etc,Transport-Contract Hire,J01374,Transport Related Expenditure ,Contract Hire and Op Leasing  ,CC64,CSF - SEN CABS (RK02)                   ,1904.04,30/09/2016,R,KAT TRANSPORT LTD             ,
676,CS -Oth Operating Inc & Expend,T/A Vehicle Maintenance etc,Transport-Contract Hire,J01374,Transport Related Expenditure ,Contract Hire and Op Leasing  ,CC64,CSF - SEN CABS (RK02)                   ,1824,30/09/2016,R,KAT TRANSPORT LTD             ,
677,CS -Oth Operating Inc & Expend,T/A Vehicle Maintenance etc,Transport-Contract Hire,J01374,Transport Related Expenditure ,Contract Hire and Op Leasing  ,CC64,CSF - SEN CABS (RK02)                   ,1798.2,30/09/2016,R,KAT TRANSPORT LTD             ,
678,CS -Oth Operating Inc & Expend,T/A Vehicle Maintenance etc,Transport-Contract Hire,J01374,Transport Related Expenditure ,Contract Hire and Op Leasing  ,CC64,CSF - SEN CABS (RK02)                   ,1684.54,30/09/2016,R,KAT TRANSPORT LTD             ,
679,CS -Oth Operating Inc & Expend,T/A Vehicle Maintenance etc,Transport-Contract Hire,J01374,Transport Related Expenditure ,Contract Hire and Op Leasing  ,CC64,CSF - SEN CABS (RK02)                   ,1499.4,30/09/2016,R,KAT TRANSPORT LTD             ,
680,CS -Oth Operating Inc & Expend,T/A Vehicle Maintenance etc,Transport-Contract Hire,J01374,Transport Related Expenditure ,Contract Hire and Op Leasing  ,CC64,CSF - SEN CABS (RK02)                   ,1166.4,30/09/2016,R,KAT TRANSPORT LTD             ,
681,CS -Oth Operating Inc & Expend,T/A Vehicle Maintenance etc,Transport-Contract Hire,J01374,Transport Related Expenditure ,Contract Hire and Op Leasing  ,CC64,CSF - SEN CABS (RK02)                   ,1099.6,30/09/2016,R,KAT TRANSPORT LTD             ,
682,CS -Oth Operating Inc & Expend,T/A Vehicle Maintenance etc,Transport-Contract Hire,J01374,Transport Related Expenditure ,Contract Hire and Op Leasing  ,CC64,CSF - SEN CABS (RK02)                   ,657.48,30/09/2016,R,KAT TRANSPORT LTD             ,
683,CS -Oth Operating Inc & Expend,T/A Vehicle Maintenance etc,Transport-Contract Hire,J01374,Transport Related Expenditure ,Contract Hire and Op Leasing  ,CC64,CSF - SEN CABS (RK02)                   ,1680,30/09/2016,R,KENDALL CARS                  ,
684,CS -Oth Operating Inc & Expend,T/A Vehicle Maintenance etc,Transport-Contract Hire,J01374,Transport Related Expenditure ,Contract Hire and Op Leasing  ,CC69,LB Sutt Minibuses Trm Contract          ,3570,30/09/2016,R,M6 VEHICLE HIRE               ,
685,CS -Oth Operating Inc & Expend,T/A Vehicle Maintenance etc,Transport-Contract Hire,J01374,Transport Related Expenditure ,Contract Hire and Op Leasing  ,CC66,CSF - CHILDREN CABS (RK09)              ,1260,30/09/2016,R,OAKMARKET GROUP LTD           ,
686,CS -Oth Operating Inc & Expend,T/A Vehicle Maintenance etc,Transport-Contract Hire,J01374,Transport Related Expenditure ,Contract Hire and Op Leasing  ,CC64,CSF - SEN CABS (RK02)                   ,1949.5,30/09/2016,R,PREMIER MINICAB SER.(SURBITON),
687,CS -Oth Operating Inc & Expend,T/A Vehicle Maintenance etc,Transport-Contract Hire,J01374,Transport Related Expenditure ,Contract Hire and Op Leasing  ,CC67,C&H - ADULTS CABS (RK08)                ,1898.23,30/09/2016,R,PREMIER MINICAB SER.(SURBITON),
688,CS -Oth Operating Inc & Expend,T/A Vehicle Maintenance etc,Transport-Contract Hire,J01374,Transport Related Expenditure ,Contract Hire and Op Leasing  ,CC64,CSF - SEN CABS (RK02)                   ,1800,30/09/2016,R,PREMIER MINICAB SER.(SURBITON),
689,CS -Oth Operating Inc & Expend,T/A Vehicle Maintenance etc,Transport-Contract Hire,J01374,Transport Related Expenditure ,Contract Hire and Op Leasing  ,CC68,CSF - COLLEGES CABS (RK03)              ,1638.94,30/09/2016,R,PREMIER MINICAB SER.(SURBITON),
690,CS -Oth Operating Inc & Expend,T/A Vehicle Maintenance etc,Transport-Contract Hire,J01374,Transport Related Expenditure ,Contract Hire and Op Leasing  ,CC64,CSF - SEN CABS (RK02)                   ,1482,30/09/2016,R,PREMIER MINICAB SER.(SURBITON),
691,CS -Oth Operating Inc & Expend,T/A Vehicle Maintenance etc,Transport-Contract Hire,J01374,Transport Related Expenditure ,Contract Hire and Op Leasing  ,CC67,C&H - ADULTS CABS (RK08)                ,1280,30/09/2016,R,PREMIER MINICAB SER.(SURBITON),
692,CS -Oth Operating Inc & Expend,T/A Vehicle Maintenance etc,Transport-Contract Hire,J01374,Transport Related Expenditure ,Contract Hire and Op Leasing  ,CC64,CSF - SEN CABS (RK02)                   ,1188,30/09/2016,R,PREMIER MINICAB SER.(SURBITON),
693,CS -Oth Operating Inc & Expend,T/A Vehicle Maintenance etc,Transport-Contract Hire,J01374,Transport Related Expenditure ,Contract Hire and Op Leasing  ,CC64,CSF - SEN CABS (RK02)                   ,1128.1,30/09/2016,R,PREMIER MINICAB SER.(SURBITON),
694,CS -Oth Operating Inc & Expend,T/A Vehicle Maintenance etc,Transport-Contract Hire,J01374,Transport Related Expenditure ,Contract Hire and Op Leasing  ,CC64,CSF - SEN CABS (RK02)                   ,956.8,30/09/2016,R,PREMIER MINICAB SER.(SURBITON),
695,CS -Oth Operating Inc & Expend,T/A Vehicle Maintenance etc,Transport-Contract Hire,J01374,Transport Related Expenditure ,Contract Hire and Op Leasing  ,CC64,CSF - SEN CABS (RK02)                   ,678.9,30/09/2016,R,PREMIER MINICAB SER.(SURBITON),
696,CS -Oth Operating Inc & Expend,T/A Vehicle Maintenance etc,Transport-Contract Hire,J01374,Transport Related Expenditure ,Contract Hire and Op Leasing  ,CC53,Plant Hire for MRCS                     ,3344,30/09/2016,R,RIVERSIDE TRUCK RENTAL LTD    ,
697,CS -Oth Operating Inc & Expend,T/A Vehicle Maintenance etc,Transport-Contract Hire,J01374,Transport Related Expenditure ,Contract Hire and Op Leasing  ,CC53,Plant Hire for MRCS                     ,3168,30/09/2016,R,RIVERSIDE TRUCK RENTAL LTD    ,
698,CS -Oth Operating Inc & Expend,T/A Vehicle Maintenance etc,Transport-Contract Hire,J01374,Transport Related Expenditure ,Contract Hire and Op Leasing  ,CC64,CSF - SEN CABS (RK02)                   ,2826,30/09/2016,R,SILVERBURN FINANCE (UK) LTD   ,
699,CS -Oth Operating Inc & Expend,T/A Vehicle Maintenance etc,Transport-Contract Hire,J01374,Transport Related Expenditure ,Contract Hire and Op Leasing  ,CC64,CSF - SEN CABS (RK02)                   ,2622,30/09/2016,R,SILVERBURN FINANCE (UK) LTD   ,
700,CS -Oth Operating Inc & Expend,T/A Vehicle Maintenance etc,Transport-Contract Hire,J01374,Transport Related Expenditure ,Contract Hire and Op Leasing  ,CC64,CSF - SEN CABS (RK02)                   ,2500,30/09/2016,R,SILVERBURN FINANCE (UK) LTD   ,
701,CS -Oth Operating Inc & Expend,T/A Vehicle Maintenance etc,Transport-Contract Hire,J01374,Transport Related Expenditure ,Contract Hire and Op Leasing  ,CC64,CSF - SEN CABS (RK02)                   ,2260,30/09/2016,R,SILVERBURN FINANCE (UK) LTD   ,
702,CS -Oth Operating Inc & Expend,T/A Vehicle Maintenance etc,Transport-Contract Hire,J01374,Transport Related Expenditure ,Contract Hire and Op Leasing  ,CC64,CSF - SEN CABS (RK02)                   ,2135,30/09/2016,R,SILVERBURN FINANCE (UK) LTD   ,
703,CS -Oth Operating Inc & Expend,T/A Vehicle Maintenance etc,Transport-Contract Hire,J01374,Transport Related Expenditure ,Contract Hire and Op Leasing  ,CC67,C&H - ADULTS CABS (RK08)                ,1782,30/09/2016,R,SILVERBURN FINANCE (UK) LTD   ,
704,CS -Oth Operating Inc & Expend,T/A Vehicle Maintenance etc,Transport-Contract Hire,J01374,Transport Related Expenditure ,Contract Hire and Op Leasing  ,CC64,CSF - SEN CABS (RK02)                   ,1728,30/09/2016,R,SILVERBURN FINANCE (UK) LTD   ,
705,CS -Oth Operating Inc & Expend,T/A Vehicle Maintenance etc,Transport-Contract Hire,J01374,Transport Related Expenditure ,Contract Hire and Op Leasing  ,CC64,CSF - SEN CABS (RK02)                   ,1596,30/09/2016,R,SILVERBURN FINANCE (UK) LTD   ,
706,CS -Oth Operating Inc & Expend,T/A Vehicle Maintenance etc,Transport-Contract Hire,J01374,Transport Related Expenditure ,Contract Hire and Op Leasing  ,CC64,CSF - SEN CABS (RK02)                   ,1566,30/09/2016,R,SILVERBURN FINANCE (UK) LTD   ,
707,CS -Oth Operating Inc & Expend,T/A Vehicle Maintenance etc,Transport-Contract Hire,J01374,Transport Related Expenditure ,Contract Hire and Op Leasing  ,CC64,CSF - SEN CABS (RK02)                   ,1554,30/09/2016,R,SILVERBURN FINANCE (UK) LTD   ,
708,CS -Oth Operating Inc & Expend,T/A Vehicle Maintenance etc,Transport-Contract Hire,J01374,Transport Related Expenditure ,Contract Hire and Op Leasing  ,CC66,CSF - CHILDREN CABS (RK09)              ,784.5,30/09/2016,R,SILVERBURN FINANCE (UK) LTD   ,
709,CS -Oth Operating Inc & Expend,T/A Vehicle Maintenance etc,Transport-Contract Hire,J01374,Transport Related Expenditure ,Contract Hire and Op Leasing  ,CC64,CSF - SEN CABS (RK02)                   ,630,30/09/2016,R,SILVERBURN FINANCE (UK) LTD   ,
710,CS -Oth Operating Inc & Expend,T/A Vehicle Maintenance etc,Transport-Contract Hire,J01374,Transport Related Expenditure ,Contract Hire and Op Leasing  ,CC64,CSF - SEN CABS (RK02)                   ,2700,30/09/2016,R,SNA TRANSPORT LTD             ,
711,CS -Oth Operating Inc & Expend,T/A Vehicle Maintenance etc,Transport-Contract Hire,J01374,Transport Related Expenditure ,Contract Hire and Op Leasing  ,CC64,CSF - SEN CABS (RK02)                   ,2500,30/09/2016,R,SNA TRANSPORT LTD             ,
712,CS -Oth Operating Inc & Expend,T/A Vehicle Maintenance etc,Transport-Contract Hire,J01374,Transport Related Expenditure ,Contract Hire and Op Leasing  ,CC64,CSF - SEN CABS (RK02)                   ,2141.4,30/09/2016,R,SNA TRANSPORT LTD             ,
713,CS -Oth Operating Inc & Expend,T/A Vehicle Maintenance etc,Transport-Contract Hire,J01374,Transport Related Expenditure ,Contract Hire and Op Leasing  ,CC64,CSF - SEN CABS (RK02)                   ,2090,30/09/2016,R,SNA TRANSPORT LTD             ,
714,CS -Oth Operating Inc & Expend,T/A Vehicle Maintenance etc,Transport-Contract Hire,J01374,Transport Related Expenditure ,Contract Hire and Op Leasing  ,CC67,C&H - ADULTS CABS (RK08)                ,1995,30/09/2016,R,SNA TRANSPORT LTD             ,
715,CS -Oth Operating Inc & Expend,T/A Vehicle Maintenance etc,Transport-Contract Hire,J01374,Transport Related Expenditure ,Contract Hire and Op Leasing  ,CC64,CSF - SEN CABS (RK02)                   ,1991.2,30/09/2016,R,SNA TRANSPORT LTD             ,
716,CS -Oth Operating Inc & Expend,T/A Vehicle Maintenance etc,Transport-Contract Hire,J01374,Transport Related Expenditure ,Contract Hire and Op Leasing  ,CC64,CSF - SEN CABS (RK02)                   ,1908,30/09/2016,R,SNA TRANSPORT LTD             ,
717,CS -Oth Operating Inc & Expend,T/A Vehicle Maintenance etc,Transport-Contract Hire,J01374,Transport Related Expenditure ,Contract Hire and Op Leasing  ,CC64,CSF - SEN CABS (RK02)                   ,1852.5,30/09/2016,R,SNA TRANSPORT LTD             ,
718,CS -Oth Operating Inc & Expend,T/A Vehicle Maintenance etc,Transport-Contract Hire,J01374,Transport Related Expenditure ,Contract Hire and Op Leasing  ,CC64,CSF - SEN CABS (RK02)                   ,1800,30/09/2016,R,SNA TRANSPORT LTD             ,
719,CS -Oth Operating Inc & Expend,T/A Vehicle Maintenance etc,Transport-Contract Hire,J01374,Transport Related Expenditure ,Contract Hire and Op Leasing  ,CC64,CSF - SEN CABS (RK02)                   ,1642.8,30/09/2016,R,SNA TRANSPORT LTD             ,
720,CS -Oth Operating Inc & Expend,T/A Vehicle Maintenance etc,Transport-Contract Hire,J01374,Transport Related Expenditure ,Contract Hire and Op Leasing  ,CC64,CSF - SEN CABS (RK02)                   ,1526.4,30/09/2016,R,SNA TRANSPORT LTD             ,
721,CS -Oth Operating Inc & Expend,T/A Vehicle Maintenance etc,Transport-Contract Hire,J01374,Transport Related Expenditure ,Contract Hire and Op Leasing  ,CC64,CSF - SEN CABS (RK02)                   ,1509.6,30/09/2016,R,SNA TRANSPORT LTD             ,
722,CS -Oth Operating Inc & Expend,T/A Vehicle Maintenance etc,Transport-Contract Hire,J01374,Transport Related Expenditure ,Contract Hire and Op Leasing  ,CC64,CSF - SEN CABS (RK02)                   ,1501,30/09/2016,R,SNA TRANSPORT LTD             ,
723,CS -Oth Operating Inc & Expend,T/A Vehicle Maintenance etc,Transport-Contract Hire,J01374,Transport Related Expenditure ,Contract Hire and Op Leasing  ,CC64,CSF - SEN CABS (RK02)                   ,1407.6,30/09/2016,R,SNA TRANSPORT LTD             ,
724,CS -Oth Operating Inc & Expend,T/A Vehicle Maintenance etc,Transport-Contract Hire,J01374,Transport Related Expenditure ,Contract Hire and Op Leasing  ,CC64,CSF - SEN CABS (RK02)                   ,1287.6,30/09/2016,R,SNA TRANSPORT LTD             ,
725,CS -Oth Operating Inc & Expend,T/A Vehicle Maintenance etc,Transport-Contract Hire,J01374,Transport Related Expenditure ,Contract Hire and Op Leasing  ,CC64,CSF - SEN CABS (RK02)                   ,1190,30/09/2016,R,SNA TRANSPORT LTD             ,
726,CS -Oth Operating Inc & Expend,T/A Vehicle Maintenance etc,Transport-Contract Hire,J01374,Transport Related Expenditure ,Contract Hire and Op Leasing  ,CC64,CSF - SEN CABS (RK02)                   ,1106,30/09/2016,R,SNA TRANSPORT LTD             ,
727,CS -Oth Operating Inc & Expend,T/A Vehicle Maintenance etc,Transport-Contract Hire,J01374,Transport Related Expenditure ,Contract Hire and Op Leasing  ,CC68,CSF - COLLEGES CABS (RK03)              ,968,30/09/2016,R,SNA TRANSPORT LTD             ,
728,CS -Oth Operating Inc & Expend,T/A Vehicle Maintenance etc,Transport-Contract Hire,J01374,Transport Related Expenditure ,Contract Hire and Op Leasing  ,CC57,Pland Hire for Housing                  ,595,29/09/2016,R,ARVAL UK LTD                  ,
729,CS -Oth Operating Inc & Expend,T/A Vehicle Maintenance etc,Transport-Contract Hire,J01374,Transport Related Expenditure ,Direct Transport Costs        ,CA01,Petrol Derv & Oil                       ,30941.73,29/09/2016,R,EMO OILS LTD                  ,
730,CS -Oth Operating Inc & Expend,T/A Vehicle Maintenance etc,Transport-Contract Hire,J01374,Transport Related Expenditure ,Contract Hire and Op Leasing  ,CC69,LB Sutt Minibuses Trm Contract          ,745,26/09/2016,R,GULLIVER'S TRUCK HIRE LTD.    ,
731,CS -Oth Operating Inc & Expend,T/A Vehicle Maintenance etc,Transport-Contract Hire,J01374,Transport Related Expenditure ,Contract Hire and Op Leasing  ,CC57,Pland Hire for Housing                  ,1922.08,25/09/2016,R,COMMERCIAL SERV'S TRADING LTD ,
732,CS -Oth Operating Inc & Expend,T/A Vehicle Maintenance etc,Transport-Contract Hire,J01374,Transport Related Expenditure ,Contract Hire and Op Leasing  ,CC69,LB Sutt Minibuses Trm Contract          ,745,20/09/2016,R,GULLIVER'S TRUCK HIRE LTD.    ,
733,CS -Oth Operating Inc & Expend,T/A Vehicle Maintenance etc,Transport-Contract Hire,J01374,Transport Related Expenditure ,Direct Transport Costs        ,CA01,Petrol Derv & Oil                       ,30681.88,09/09/2016,R,EMO OILS LTD                  ,
734,CS -Oth Operating Inc & Expend,T/A Vehicle Maintenance etc,Transport-Contract Hire,J01374,Transport Related Expenditure ,Contract Hire and Op Leasing  ,CC66,CSF - CHILDREN CABS (RK09)              ,506,31/08/2016,R,CHEAM STATION CARS            ,
735,CS -Oth Operating Inc & Expend,T/A Vehicle Maintenance etc,Transport-Contract Hire,J01374,Transport Related Expenditure ,Contract Hire and Op Leasing  ,CC67,C&H - ADULTS CABS (RK08)                ,1822.4,31/08/2016,R,KAT TRANSPORT LTD             ,
736,CS -Oth Operating Inc & Expend,T/A Vehicle Maintenance etc,Transport-Workshop,J01376,Premises Related Expenditure  ,RepairsAlterations&MtceOfBldgs,BA03,DDM - Mechanical                        ,549.64,12/10/2016,R,BILFINGER EUROPA FACILITY     ,
737,CS -Oth Operating Inc & Expend,T/A Vehicle Maintenance etc,Transport-Workshop,J01376,Supplies & Services           ,Comms and Computing           ,DG07,Computer Software                       ,7504.93,01/10/2016,R,KAPPA LAMBDA SQUARED LTD      ,
738,CS -Oth Operating Inc & Expend,T/A Vehicle Maintenance etc,Transport-Workshop,J01376,Transport Related Expenditure ,Contract Hire and Op Leasing  ,CC65,Vehicle Hire for Education              ,3528,30/09/2016,R,BARCLAYS ASSET & SALES FINANCE,
739,CS -Oth Operating Inc & Expend,T/A Vehicle Maintenance etc,Transport-Workshop,J01376,Transport Related Expenditure ,Contract Hire and Op Leasing  ,CC65,Vehicle Hire for Education              ,2299,30/09/2016,R,BARCLAYS ASSET & SALES FINANCE,
740,CS -Oth Operating Inc & Expend,T/A Vehicle Maintenance etc,Transport-Workshop,J01376,Transport Related Expenditure ,Contract Hire and Op Leasing  ,CC65,Vehicle Hire for Education              ,2210,01/09/2016,R,SILVERBURN FINANCE (UK) LTD   ,
741,CS -Oth Operating Inc & Expend,T/A Vehicle Maintenance etc,Transport-Workshop,J01376,Transport Related Expenditure ,Contract Hire and Op Leasing  ,CC65,Vehicle Hire for Education              ,1530,01/09/2016,R,SILVERBURN FINANCE (UK) LTD   ,
742,CS -Oth Operating Inc & Expend,T/A Vehicle Maintenance etc,Vehicle Workshops,J01378,Transport Related Expenditure ,Direct Transport Costs        ,CA72,Vehicle Parts                           ,765.44,24/10/2016,R,COMMERCIAL & PLANT LTD        ,
743,CS -Oth Operating Inc & Expend,T/A Vehicle Maintenance etc,Vehicle Workshops,J01378,Transport Related Expenditure ,Direct Transport Costs        ,CA56,Specialist Maint. (On Site)             ,1317.7,21/10/2016,R,REDACTED,
744,CS -Oth Operating Inc & Expend,T/A Vehicle Maintenance etc,Vehicle Workshops,J01378,Transport Related Expenditure ,Direct Transport Costs        ,CA56,Specialist Maint. (On Site)             ,1162,21/10/2016,R,REDACTED,
745,CS -Oth Operating Inc & Expend,T/A Vehicle Maintenance etc,Vehicle Workshops,J01378,Transport Related Expenditure ,Direct Transport Costs        ,CA55,Specialist Maint. (Off Site)            ,630,20/10/2016,R,CLARK TRANSMISSION            ,
746,CS -Oth Operating Inc & Expend,T/A Vehicle Maintenance etc,Vehicle Workshops,J01378,Transport Related Expenditure ,Direct Transport Costs        ,CA72,Vehicle Parts                           ,507.5,19/10/2016,R,HITACHI CAPITAL INV. FINANCE  ,
747,CS -Oth Operating Inc & Expend,T/A Vehicle Maintenance etc,Vehicle Workshops,J01378,Transport Related Expenditure ,Direct Transport Costs        ,CA72,Vehicle Parts                           ,620.22,19/10/2016,R,JOHNSTON SWEEPERS LIMITED     ,
748,CS -Oth Operating Inc & Expend,T/A Vehicle Maintenance etc,Vehicle Workshops,J01378,Transport Related Expenditure ,Direct Transport Costs        ,CA72,Vehicle Parts                           ,774.5,19/10/2016,R,SCANIA(GREAT BRITAIN)LIMITED  ,
749,CS -Oth Operating Inc & Expend,T/A Vehicle Maintenance etc,Vehicle Workshops,J01378,Transport Related Expenditure ,Direct Transport Costs        ,CA72,Vehicle Parts                           ,520.63,18/10/2016,R,COMMERCIAL & PLANT LTD        ,
750,CS -Oth Operating Inc & Expend,T/A Vehicle Maintenance etc,Vehicle Workshops,J01378,Transport Related Expenditure ,Direct Transport Costs        ,CA72,Vehicle Parts                           ,981.26,17/10/2016,R,JOHNSTON SWEEPERS LIMITED     ,
751,CS -Oth Operating Inc & Expend,T/A Vehicle Maintenance etc,Vehicle Workshops,J01378,Transport Related Expenditure ,Direct Transport Costs        ,CA56,Specialist Maint. (On Site)             ,1400.55,17/10/2016,R,REDACTED,
752,CS -Oth Operating Inc & Expend,T/A Vehicle Maintenance etc,Vehicle Workshops,J01378,Transport Related Expenditure ,Direct Transport Costs        ,CA72,Vehicle Parts                           ,1131.01,13/10/2016,R,MC TRUCK & BUS                ,
753,CS -Oth Operating Inc & Expend,T/A Vehicle Maintenance etc,Vehicle Workshops,J01378,Transport Related Expenditure ,Direct Transport Costs        ,CA72,Vehicle Parts                           ,734.95,07/10/2016,R,DENNIS EAGLE LIMITED          ,
754,CS -Oth Operating Inc & Expend,T/A Vehicle Maintenance etc,Vehicle Workshops,J01378,Transport Related Expenditure ,Direct Transport Costs        ,CA72,Vehicle Parts                           ,1323.22,07/10/2016,R,JOHNSTON SWEEPERS LIMITED     ,
755,CS -Oth Operating Inc & Expend,T/A Vehicle Maintenance etc,Vehicle Workshops,J01378,Transport Related Expenditure ,Direct Transport Costs        ,CA56,Specialist Maint. (On Site)             ,868.3,07/10/2016,R,MITCHELL POWER SYSTEMS        ,
756,CS -Oth Operating Inc & Expend,T/A Vehicle Maintenance etc,Vehicle Workshops,J01378,Transport Related Expenditure ,Direct Transport Costs        ,CA55,Specialist Maint. (Off Site)            ,4062.49,07/10/2016,R,REDACTED,
757,CS -Oth Operating Inc & Expend,T/A Vehicle Maintenance etc,Vehicle Workshops,J01378,Transport Related Expenditure ,Direct Transport Costs        ,CA72,Vehicle Parts                           ,578.57,06/10/2016,R,GEESINK NORBA                 ,
758,CS -Oth Operating Inc & Expend,T/A Vehicle Maintenance etc,Vehicle Workshops,J01378,Employees                     ,Direct Employee Expenses      ,AA17,Agency Staff & Casual Paymts            ,855,05/10/2016,R,REDACTED,
759,CS -Oth Operating Inc & Expend,T/A Vehicle Maintenance etc,Vehicle Workshops,J01378,Transport Related Expenditure ,Direct Transport Costs        ,CA72,Vehicle Parts                           ,1259.3,04/10/2016,R,GEESINK NORBA                 ,
760,CS -Oth Operating Inc & Expend,T/A Vehicle Maintenance etc,Vehicle Workshops,J01378,Transport Related Expenditure ,Direct Transport Costs        ,CA56,Specialist Maint. (On Site)             ,831.2,04/10/2016,R,REDACTED,
761,CS -Oth Operating Inc & Expend,T/A Vehicle Maintenance etc,Vehicle Workshops,J01378,Transport Related Expenditure ,Direct Transport Costs        ,CA02,Tyres                                   ,6795.46,03/10/2016,R,DIRECT TYRE MANAGEMENT LTD    ,
762,CS -Oth Operating Inc & Expend,T/A Vehicle Maintenance etc,Vehicle Workshops,J01378,Supplies & Services           ,Clothing Unfrms Laundry       ,DC01,Laundry                                 ,717.76,01/10/2016,R,BERENDSEN UK LTD              ,
763,CS -Oth Operating Inc & Expend,T/A Vehicle Maintenance etc,Vehicle Workshops,J01378,Transport Related Expenditure ,Direct Transport Costs        ,CA56,Specialist Maint. (On Site)             ,1380,01/10/2016,R,R.J.H.WELDING                 ,
764,CS -Oth Operating Inc & Expend,T/A Vehicle Maintenance etc,Vehicle Workshops,J01378,Transport Related Expenditure ,Direct Transport Costs        ,CA56,Specialist Maint. (On Site)             ,1174.92,01/10/2016,R,R.J.H.WELDING                 ,
765,CS -Oth Operating Inc & Expend,T/A Vehicle Maintenance etc,Vehicle Workshops,J01378,Transport Related Expenditure ,Direct Transport Costs        ,CA56,Specialist Maint. (On Site)             ,916.44,01/10/2016,R,R.J.H.WELDING                 ,
766,CS -Oth Operating Inc & Expend,T/A Vehicle Maintenance etc,Vehicle Workshops,J01378,Transport Related Expenditure ,Direct Transport Costs        ,CA56,Specialist Maint. (On Site)             ,856.2,01/10/2016,R,R.J.H.WELDING                 ,
767,CS -Oth Operating Inc & Expend,T/A Vehicle Maintenance etc,Vehicle Workshops,J01378,Transport Related Expenditure ,Direct Transport Costs        ,CA56,Specialist Maint. (On Site)             ,822.08,01/10/2016,R,R.J.H.WELDING                 ,
768,CS -Oth Operating Inc & Expend,T/A Vehicle Maintenance etc,Vehicle Workshops,J01378,Transport Related Expenditure ,Direct Transport Costs        ,CA56,Specialist Maint. (On Site)             ,720.11,01/10/2016,R,R.J.H.WELDING                 ,
769,CS -Oth Operating Inc & Expend,T/A Vehicle Maintenance etc,Vehicle Workshops,J01378,Transport Related Expenditure ,Direct Transport Costs        ,CA56,Specialist Maint. (On Site)             ,661.44,01/10/2016,R,R.J.H.WELDING                 ,
770,CS -Oth Operating Inc & Expend,T/A Vehicle Maintenance etc,Vehicle Workshops,J01378,Transport Related Expenditure ,Direct Transport Costs        ,CA56,Specialist Maint. (On Site)             ,659.45,01/10/2016,R,R.J.H.WELDING                 ,
771,CS -Oth Operating Inc & Expend,T/A Vehicle Maintenance etc,Vehicle Workshops,J01378,Transport Related Expenditure ,Direct Transport Costs        ,CA56,Specialist Maint. (On Site)             ,511.55,01/10/2016,R,R.J.H.WELDING                 ,
772,CS -Oth Operating Inc & Expend,T/A Vehicle Maintenance etc,Vehicle Workshops,J01378,Transport Related Expenditure ,Direct Transport Costs        ,CA56,Specialist Maint. (On Site)             ,1585.25,30/09/2016,R,REDACTED,
773,CS -Oth Operating Inc & Expend,T/A Vehicle Maintenance etc,Vehicle Workshops,J01378,Transport Related Expenditure ,Direct Transport Costs        ,CA55,Specialist Maint. (Off Site)            ,2560.49,28/09/2016,R,REDACTED,
774,CS -Oth Operating Inc & Expend,T/A Vehicle Maintenance etc,Vehicle Workshops,J01378,Employees                     ,Direct Employee Expenses      ,AA17,Agency Staff & Casual Paymts            ,855,28/09/2016,R,REDACTED,
775,CS -Oth Operating Inc & Expend,T/A Vehicle Maintenance etc,Vehicle Workshops,J01378,Transport Related Expenditure ,Direct Transport Costs        ,CA72,Vehicle Parts                           ,589.57,27/09/2016,R,COMMERCIAL & PLANT LTD        ,
776,CS -Oth Operating Inc & Expend,T/A Vehicle Maintenance etc,Vehicle Workshops,J01378,Transport Related Expenditure ,Direct Transport Costs        ,CA56,Specialist Maint. (On Site)             ,663.8,27/09/2016,R,GALLOWAY VEHICLE SERVICES     ,
777,CS -Oth Operating Inc & Expend,T/A Vehicle Maintenance etc,Vehicle Workshops,J01378,Transport Related Expenditure ,Direct Transport Costs        ,CA72,Vehicle Parts                           ,1030.59,26/09/2016,R,JD ASSOCIATES                 ,
778,CS -Oth Operating Inc & Expend,T/A Vehicle Maintenance etc,Vehicle Workshops,J01378,Transport Related Expenditure ,Direct Transport Costs        ,CA55,Specialist Maint. (Off Site)            ,802.4,22/09/2016,R,FLEETSPEED COACHWORKS LTD.    ,
779,CS -Oth Operating Inc & Expend,T/A Vehicle Maintenance etc,Vehicle Workshops,J01378,Transport Related Expenditure ,Direct Transport Costs        ,CA72,Vehicle Parts                           ,1247.38,22/09/2016,R,JOHNSTON SWEEPERS LIMITED     ,
780,CS -Oth Operating Inc & Expend,T/A Vehicle Maintenance etc,Vehicle Workshops,J01378,Employees                     ,Direct Employee Expenses      ,AA17,Agency Staff & Casual Paymts            ,855,21/09/2016,R,REDACTED,
781,CS -Oth Operating Inc & Expend,T/A Vehicle Maintenance etc,Vehicle Workshops,J01378,Transport Related Expenditure ,Direct Transport Costs        ,CA55,Specialist Maint. (Off Site)            ,1482.44,20/09/2016,R,FLEETSPEED COACHWORKS LTD.    ,
782,CS -Oth Operating Inc & Expend,T/A Vehicle Maintenance etc,Vehicle Workshops,J01378,Transport Related Expenditure ,Direct Transport Costs        ,CA55,Specialist Maint. (Off Site)            ,3493.67,16/09/2016,R,FLEETSPEED COACHWORKS LTD.    ,
783,CS -Oth Operating Inc & Expend,T/A Vehicle Maintenance etc,Vehicle Workshops,J01378,Transport Related Expenditure ,Direct Transport Costs        ,CA55,Specialist Maint. (Off Site)            ,1900.31,16/09/2016,R,FLEETSPEED COACHWORKS LTD.    ,
784,CS -Oth Operating Inc & Expend,T/A Vehicle Maintenance etc,Vehicle Workshops,J01378,Transport Related Expenditure ,Direct Transport Costs        ,CA55,Specialist Maint. (Off Site)            ,1723.58,16/09/2016,R,FLEETSPEED COACHWORKS LTD.    ,
785,Cultural Env Reg&Plan Services,Mgt & Support (Env),Estates Mgt,J01420,Supplies & Services           ,Grants and Subscriptions      ,DJ04,SUBSCRIPTION                            ,5000,26/10/2016,R,CIPFA                         ,
786,Cultural Env Reg&Plan Services,Mgt & Support (Env),Estates Mgt,J01420,Supplies & Services           ,Services                      ,DF50,Estate Management                       ,5130,07/10/2016,R,ANDREW SCOTT ROBERTSON        ,
787,Cultural Env Reg&Plan Services,Mgt & Support (Env),Estates Mgt,J01420,Supplies & Services           ,Services                      ,DF50,Estate Management                       ,10000,31/03/2016,R,ANDREW SCOTT ROBERTSON        ,
788,CS -Oth Operating Inc & Expend,Extraordinary Items & PY Adj.,Housing Shops,J01533,Premises Related Expenditure  ,RepairsAlterations&MtceOfBldgs,BA79,SECURITY OF PREMISES                    ,515.13,20/10/2016,R,P J HARVEY & CO LTD           ,
789,CS -Oth Operating Inc & Expend,Extraordinary Items & PY Adj.,Housing Shops,J01533,Premises Related Expenditure  ,RepairsAlterations&MtceOfBldgs,BA03,DDM - MECHANICAL                        ,12340.17,14/10/2016,R,BILFINGER EUROPA FACILITY     ,
790,CS -Oth Operating Inc & Expend,Extraordinary Items & PY Adj.,Pollards Hill Comm Cntre,J08074,Premises Related Expenditure  ,RepairsAlterations&MtceOfBldgs,BA03,DDM - Mechanical                        ,617.24,12/10/2016,R,BILFINGER EUROPA FACILITY     ,
791,Childrens & Education Services,Statutory & Regulatory Duties,Central Administration,K01008,Supplies & Services           ,Services                      ,DF03,CONSULTANTS                             ,3300,03/10/2016,R,BRAY VALLEY ASSOCIATES        ,
792,Childrens & Education Services,Statutory & Regulatory Duties,Schools IT Support,K02008,Supplies & Services           ,Comms and Computing           ,DG50,Other IT Expenditure                    ,1508.94,03/08/2016,R,ATOMWIDE LTD                  ,
793,Childrens & Education Services,Statutory & Regulatory Duties,Research and Statistics,K03016,Supplies & Services           ,Comms and Computing           ,DG07,Computer Software                       ,2413.97,03/10/2016,R,NCER CIC                      ,
794,Childrens & Education Services,Education Psychology Service,Education Psychology.,K04018,Employees                     ,Direct Employee Expenses      ,AA17,Agency Staff & Casual Paymts            ,4000,19/10/2016,R,REDACTED,
795,Childrens & Education Services,Education Psychology Service,Education Psychology.,K04018,Employees                     ,Direct Employee Expenses      ,AA17,Agency Staff & Casual Paymts            ,2000,05/10/2016,R,REDACTED,
796,Childrens & Education Services,Education Psychology Service,Education Psychology.,K04018,Employees                     ,Direct Employee Expenses      ,AA17,Agency Staff & Casual Paymts            ,2000,05/10/2016,R,REDACTED,
797,Childrens & Education Services,Education Psychology Service,Education Psychology.,K04018,Employees                     ,Direct Employee Expenses      ,AA17,Agency Staff & Casual Paymts            ,3800,02/10/2016,R,REDACTED,
798,Childrens & Education Services,Education Psychology Service,Education Psychology.,K04018,Supplies & Services           ,Equip Furniture/Materials     ,DA09,Equip-Purchases                         ,1159.47,05/09/2016,R,GL ASSESSMENT                 ,
799,Childrens & Education Services,Support for SEN Pupils,Statementing-Transport,K04023,Supplies & Services           ,Comms and Computing           ,DG02,Software Licences                       ,12500,12/09/2016,R,ADAM HTT LIMITED T/A ADAM     ,
800,Childrens & Education Services,Oth U5s Provn Not Prim or Spec,Provider Support,K05078,Supplies & Services           ,Comms and Computing           ,DG08,Computer Hardware                       ,899.59,20/10/2016,R,MARQUEST LIMITED              ,
801,Childrens & Education Services,Oth U5s Provn Not Prim or Spec,GSSG Workforce Development,K05111,Supplies & Services           ,Equip Furniture/Materials     ,DA09,EQUIP-PURCHASES                         ,2710,18/10/2016,R,OFFICE FURNITURE ONLINE       ,
802,Childrens & Education Services,Oth U5s Provn Not Prim or Spec,GSSG Workforce Development,K05111,Employees                     ,Indirect Employee Expenses    ,AB56,Internal Training Costs                 ,6300,01/09/2016,R,THE TRAINING & MANAGEMENT LTD ,
803,Childrens & Education Services,Oth U5s Provn Not Prim or Spec,GSSG Workforce Development,K05111,Supplies & Services           ,Equip Furniture/Materials     ,DA09,EQUIP-PURCHASES                         ,4153.33,14/07/2016,R,PREMIER BLINDS & AWNINGS      ,
804,Childrens & Education Services,GENERATED ACCOUNT,Children's centres,K05137,Premises Related Expenditure  ,RepairsAlterations&MtceOfBldgs,BA79,Security of Premises                    ,2310.8,01/10/2016,R,SIGHT & SOUND                 ,
805,Childrens & Education Services,GENERATED ACCOUNT,Children's centres,K05137,Premises Related Expenditure  ,RepairsAlterations&MtceOfBldgs,BA06,Repairs & Maintenance General           ,2705,31/08/2016,R,EDE'S (U.K.) LTD              ,
806,Childrens & Education Services,Nursery schools,GSSG Recruitment,K05401,Premises Related Expenditure  ,Cleaning and Domestic Supplies,BH03,Cleaning Services                       ,545.67,30/10/2016,R,JULIUS RUTHERFOORD & CO LTD   ,
807,Childrens & Education Services,Nursery schools,GSSG Recruitment,K05401,Premises Related Expenditure  ,Cleaning and Domestic Supplies,BH03,Cleaning Services                       ,545.67,30/09/2016,R,JULIUS RUTHERFOORD & CO LTD   ,
808,Childrens & Education Services,GENERATED ACCOUNT,Lavender Children's Centre,K05410,Supplies & Services           ,Equip Furniture/Materials     ,DA04,Materials                               ,590,30/09/2016,R,MAPAC GROUP LTD               ,
809,Childrens & Education Services,GENERATED ACCOUNT,Mitcham MAT (Premises),K05412,Supplies & Services           ,Prntng Stnry Gen Off Exp      ,DE52,Office Removal Expenses                 ,800,21/10/2016,R,REDACTED,
810,Childrens & Education Services,GENERATED ACCOUNT,Mitcham MAT (Premises),K05412,Premises Related Expenditure  ,Cleaning and Domestic Supplies,BH03,Cleaning Services                       ,1564.45,01/10/2016,R,BIRKIN CLEANING SERVICES LTD  ,
811,Childrens & Education Services,GENERATED ACCOUNT,Morden MAT,K05413,Premises Related Expenditure  ,RepairsAlterations&MtceOfBldgs,BA06,Repairs & Maintenance General           ,2680,25/10/2016,R,BA SUPPLIES & SERVICES LTD    ,
812,Childrens & Education Services,GENERATED ACCOUNT,Morden MAT,K05413,Premises Related Expenditure  ,RepairsAlterations&MtceOfBldgs,BA05,DDM - Electrical                        ,750,14/10/2016,R,CONTRACT FIRE SECURITY        ,
813,Childrens & Education Services,GENERATED ACCOUNT,Morden MAT,K05413,Premises Related Expenditure  ,RepairsAlterations&MtceOfBldgs,BA03,DDM - Mechanical                        ,596.89,04/10/2016,R,BILFINGER EUROPA FACILITY     ,
814,Childrens & Education Services,GENERATED ACCOUNT,Morden MAT,K05413,Premises Related Expenditure  ,Cleaning and Domestic Supplies,BH03,Cleaning Services                       ,1312.19,01/10/2016,R,BIRKIN CLEANING SERVICES LTD  ,
815,Childrens & Education Services,GENERATED ACCOUNT,Morden MAT,K05413,Premises Related Expenditure  ,RepairsAlterations&MtceOfBldgs,BA01,DDM - General Building                  ,1400,27/09/2016,R,A&M CARPENTERS                ,
816,Childrens & Education Services,GENERATED ACCOUNT,Wimbledon MAT,K05414,Supplies & Services           ,Equip Furniture/Materials     ,DA09,Equip-Purchases                         ,518.21,26/09/2016,R,GLS EDUCATIONAL SUPPLIES LTD  ,
817,Childrens & Education Services,GENERATED ACCOUNT,Wimbledon MAT,K05414,Supplies & Services           ,Equip Furniture/Materials     ,DA09,Equip-Purchases                         ,940.38,26/09/2016,R,TTS LTD                       ,
818,Childrens & Education Services,Nursery schools,Lavender CC Non Childcare,K05415,Supplies & Services           ,Equip Furniture/Materials     ,DA09,Equip-Purchases                         ,2949.62,25/10/2016,R,FAWNS RECREATIONAL SERVICES   ,
819,Childrens & Education Services,Nursery schools,Lavender CC Non Childcare,K05415,Supplies & Services           ,Equip Furniture/Materials     ,DA09,Equip-Purchases                         ,2526.8,18/10/2016,R,RHINO UK                      ,
820,Childrens & Education Services,Nursery schools,Lavender CC Non Childcare,K05415,Supplies & Services           ,Prntng Stnry Gen Off Exp      ,DE30,General Office Expense                  ,1200,11/10/2016,R,OFFICE FURNITURE ONLINE       ,
821,Childrens & Education Services,Nursery schools,Lavender CC Non Childcare,K05415,Supplies & Services           ,Equip Furniture/Materials     ,DA09,Equip-Purchases                         ,919.46,25/08/2016,R,GLS EDUCATIONAL SUPPLIES LTD  ,
822,Childrens & Education Services,Nursery schools,E.Years-Intergenerational Cntr,K05416,Premises Related Expenditure  ,Ground Maintenance Costs      ,BL03,Maintenance of Grounds                  ,520,14/10/2016,R,ANITA JOHNSTONE T/A EDS       ,
823,Childrens & Education Services,Nursery schools,E.Years-Intergenerational Cntr,K05416,Premises Related Expenditure  ,Cleaning and Domestic Supplies,BH03,Cleaning Services                       ,911.55,01/10/2016,R,BIRKIN CLEANING SERVICES LTD  ,
824,Childrens & Education Services,Nursery schools,E.Years-Intergenerational Cntr,K05416,Premises Related Expenditure  ,RepairsAlterations&MtceOfBldgs,BA06,Repairs & Maintenance General           ,513,07/09/2016,R,BA SUPPLIES & SERVICES LTD    ,
825,Childrens & Education Services,Vocational - Adult Education,AE-Adult Education Main,K06049,Premises Related Expenditure  ,Cleaning and Domestic Supplies,BH03,Cleaning Services                       ,658.27,01/10/2016,R,BIRKIN CLEANING SERVICES LTD  ,
826,Childrens & Education Services,Youth Centres (Residential),Youth Service,K06053,Supplies & Services           ,Expenses                      ,DH12,Young Peoples Expenses                  ,1166.67,25/10/2016,R,WHYTELEAFE PAVING             ,
827,Childrens & Education Services,Youth Centres (Residential),Leyton Rd Premises Costs.,K06054,Premises Related Expenditure  ,Cleaning and Domestic Supplies,BH03,Cleaning Services                       ,573.87,01/10/2016,R,BIRKIN CLEANING SERVICES LTD  ,
828,Childrens & Education Services,Youth Centres (Residential),Duke of Edinburgh Awrds,K06055,Supplies & Services           ,Expenses                      ,DH12,Young Peoples Expenses                  ,6700,21/09/2016,R,THE AWARD SCHEME LTD          ,
829,Childrens & Education Services,Youth Centres (Residential),Pollards Hll Yth Ctre,K06065,Supplies & Services           ,Expenses                      ,DH12,Young Peoples Expenses                  ,550,22/09/2016,R,YOUTH FUN DAYS                ,
830,Childrens & Education Services,Pupil Support,Young Person Substance Misuse,K06114,Third Party Payments          ,Private Contractors           ,EH01,Miscellaneous Agency Services           ,77041,07/10/2016,R,CATCH 22                      ,
831,Childrens & Education Services,Vocational-Adult Education,AE-Commissioning Team,K06200,Supplies & Services           ,Services                      ,DF03,Consultants                             ,6925.5,13/10/2016,R,TCMD LTD                      ,
832,Childrens & Education Services,Asset Management,S106 Bid,K08077,Premises Related Expenditure  ,RepairsAlterations&MtceOfBldgs,BA79,Security of Premises                    ,2850,01/10/2016,R,SIGHT & SOUND                 ,
833,Childrens & Education Services,Asset Management,S106 Bid,K08077,Supplies & Services           ,Prntng Stnry Gen Off Exp      ,DE52,Office Removal Expenses                 ,3700,30/09/2016,R,EDE'S (U.K.) LTD              ,
834,Childrens & Education Services,Asset Management,Centre Commissioned Servs,K08078,Supplies & Services           ,Grants and Subscriptions      ,DJ01,Grants                                  ,12977,12/10/2016,R,MERTON MENCAP                 ,
835,Childrens & Education Services,Asset Management,Centre Commissioned Servs,K08078,Supplies & Services           ,Grants and Subscriptions      ,DJ01,Grants                                  ,12000,12/10/2016,R,MERTON MENCAP                 ,
836,Childrens & Education Services,Asset Management,Centre Commissioned Servs,K08078,Supplies & Services           ,Grants and Subscriptions      ,DJ01,Grants                                  ,9334.75,12/10/2016,R,MERTON MENCAP                 ,
837,Childrens & Education Services,Asset Management,Centre Commissioned Servs,K08078,Supplies & Services           ,Grants and Subscriptions      ,DJ01,Grants                                  ,8130,12/10/2016,R,MERTON MENCAP                 ,
838,Childrens & Education Services,Asset Management,Centre Commissioned Servs,K08078,Supplies & Services           ,Grants and Subscriptions      ,DJ01,Grants                                  ,7000,12/10/2016,R,MERTON MENCAP                 ,
839,Childrens & Education Services,Asset Management,Centre Commissioned Servs,K08078,Supplies & Services           ,Grants and Subscriptions      ,DJ01,Grants                                  ,4500,12/10/2016,R,MERTON MENCAP                 ,
840,Childrens & Education Services,Asset Management,Centre Commissioned Servs,K08078,Supplies & Services           ,Grants and Subscriptions      ,DJ01,Grants                                  ,18750,01/10/2016,R,CARERS SUPPORT MERTON         ,
841,Childrens & Education Services,Facilitating School Improvemnt,SSQ,K09077,Supplies & Services           ,Services                      ,DF03,Consultants                             ,3250,20/10/2016,R,REDACTED,
842,Childrens & Education Services,Facilitating School Improvemnt,CPD TRAINING SSQ,K09078,Supplies & Services           ,Expenses                      ,DH02,Conferences                             ,500,19/10/2016,R,WIDEHORIZONS OUTDOOR EDUC TRUS,
843,Childrens & Education Services,Statutory & Regulatory Duties,Governor Support,K09081,Supplies & Services           ,Expenses                      ,DH02,Conferences                             ,1116.8,14/10/2016,R,CAPITA BUSINESS SERVICES LTD  ,
844,Childrens & Education Services,Asset Management,Stouthall,K09082,Supplies & Services           ,Services                      ,DF50,Estate Management                       ,950,14/10/2016,R,EBSFORD ENVIRONMENTAL LTD     ,
845,Childrens & Education Services,Facilitating School Improvemnt,Virtual Schools - PEA's,K90016,Supplies & Services           ,Expenses                      ,DH12,Young Peoples Expenses                  ,747,16/09/2016,R,THE ISLE OF WIGHT COLLEGE     ,
846,Childrens & Education Services,Support for SEN Pupils,Non-Delegated Statements,K90024,Third Party Payments          ,Other Local Authorities       ,EB48,OLA PAYMENTS-STATEMENTS                 ,4415.04,27/10/2016,R,THE LONDON ORATORY SCHOOL     ,
847,Childrens & Education Services,Support for SEN Pupils,Non-Delegated Statements,K90024,Third Party Payments          ,Other Local Authorities       ,EB51,OLA Payments - Special Units            ,6000,24/10/2016,R,THE ALTON PRIMARY SCHOOL      ,
848,Childrens & Education Services,Support for SEN Pupils,Non-Delegated Statements,K90024,Third Party Payments          ,Other Local Authorities       ,EB51,OLA Payments - Special Units            ,4000,24/10/2016,R,THE ALTON PRIMARY SCHOOL      ,
849,Childrens & Education Services,Support for SEN Pupils,Non-Delegated Statements,K90024,Third Party Payments          ,Other Local Authorities       ,EB51,OLA Payments - Special Units            ,2040,24/10/2016,R,THE ALTON PRIMARY SCHOOL      ,
850,Childrens & Education Services,Support for SEN Pupils,Non-Delegated Statements,K90024,Third Party Payments          ,Other Local Authorities       ,EB48,OLA PAYMENTS-STATEMENTS                 ,3635.77,24/10/2016,R,THE BEACON SCHOOL             ,
851,Childrens & Education Services,Support for SEN Pupils,Non-Delegated Statements,K90024,Third Party Payments          ,Other Local Authorities       ,EB50,OLA-Payments - Day Schools              ,29280,14/10/2016,R,BEORMUND PRIMARY SCHOOL       ,
852,Childrens & Education Services,Support for SEN Pupils,Non-Delegated Statements,K90024,Supplies & Services           ,Services                      ,DF09,Miscellaneous Fees                      ,1695,14/10/2016,R,BISHOP GILPIN C OF E PRIMARY  ,
853,Childrens & Education Services,Support for SEN Pupils,Non-Delegated Statements,K90024,Third Party Payments          ,Other Local Authorities       ,EB48,OLA PAYMENTS-STATEMENTS                 ,24755.71,14/10/2016,R,GRAVENEY SCHOOL               ,
854,Childrens & Education Services,Support for SEN Pupils,Non-Delegated Statements,K90024,Third Party Payments          ,Other Local Authorities       ,EB48,OLA PAYMENTS-STATEMENTS                 ,23631.2,14/10/2016,R,GRAVENEY SCHOOL               ,
855,Childrens & Education Services,Support for SEN Pupils,Non-Delegated Statements,K90024,Third Party Payments          ,Other Local Authorities       ,EB48,OLA PAYMENTS-STATEMENTS                 ,13374.03,14/10/2016,R,GRAVENEY SCHOOL               ,
856,Childrens & Education Services,Support for SEN Pupils,Non-Delegated Statements,K90024,Third Party Payments          ,Other Establishments          ,EG50,Ind Day Schs Payments                   ,7000,12/10/2016,R,ABINGDON HOUSE SCHOOL         ,
857,Childrens & Education Services,Support for SEN Pupils,Non-Delegated Statements,K90024,Third Party Payments          ,Other Establishments          ,EG50,Ind Day Schs Payments                   ,18973.38,10/10/2016,R,CRESSEY OASIS EDUCATION       ,
858,Childrens & Education Services,Support for SEN Pupils,Non-Delegated Statements,K90024,Third Party Payments          ,Other Establishments          ,EG50,Ind Day Schs Payments                   ,18929.68,10/10/2016,R,CRESSEY OASIS EDUCATION       ,
859,Childrens & Education Services,Support for SEN Pupils,Non-Delegated Statements,K90024,Third Party Payments          ,Other Establishments          ,EG50,Ind Day Schs Payments                   ,18326,10/10/2016,R,CRESSEY OASIS EDUCATION       ,
860,Childrens & Education Services,Support for SEN Pupils,Non-Delegated Statements,K90024,Third Party Payments          ,Other Establishments          ,EG50,Ind Day Schs Payments                   ,17631.18,10/10/2016,R,CRESSEY OASIS EDUCATION       ,
861,Childrens & Education Services,Support for SEN Pupils,Non-Delegated Statements,K90024,Third Party Payments          ,Other Establishments          ,EG50,Ind Day Schs Payments                   ,17339.14,10/10/2016,R,CRESSEY OASIS EDUCATION       ,
862,Childrens & Education Services,Support for SEN Pupils,Non-Delegated Statements,K90024,Third Party Payments          ,Other Establishments          ,EG50,Ind Day Schs Payments                   ,15993.6,10/10/2016,R,CRESSEY OASIS EDUCATION       ,
863,Childrens & Education Services,Support for SEN Pupils,Non-Delegated Statements,K90024,Third Party Payments          ,Other Establishments          ,EG50,Ind Day Schs Payments                   ,12345.06,10/10/2016,R,CRESSEY OASIS EDUCATION       ,
